Workbook

Sheet Formato_ActivosInf_VF
A1: INVENTARIO DE ACTIVOS DE INFORMACIÓN 2021
A4: Identificador | B4: =COUNTIF(B5:B950,"LEB") -> 0 | C4: Tipo | D4: Oficina | E4: Nombre | F4: Descripción | G4: Medio de Conservación | H4: Formato | I4: Idioma | J4: Lugar de Consulta o Ubicación (Física) | K4: Lugar de Consulta o Ubicación (Electrónica)
A5: =IF(D5<>"",VLOOKUP(Formato_ActivosInf_VF!D5,DATA!$B$2:$C$95,2,)&"-"&IF(ISERR(B5),"LEB",B5),"") -> 1-1 | B5: =IF(D5<>"",1,"") -> 1 | C5: Información Digital | D5: DESPACHO DEL MINISTRO | E5: COMUNICIONES A ENTES DE CONTROL Y VIGILANCIA | F5: Respuestas dirigidas a Fiscalia, Contraloria, Procuraduria, Congreso de la República, Presidencia de la República, Vicepresidencia de la República, Alcaldías, Gobernaciones, Ministerios, entidades Adscritas y vinculadas del Mintic y otras entidades que sean competencia del Despacho de la Ministra. | G5: Documentos de Archivo - electrónicos | H5: PDF | I5: Español | J5: No Aplica | K5: https://alfanet.mintic.gov.co//https://integratic.mintic.gov.co/AZDigital/Login/Login.php
A6: =IF(D6<>"",VLOOKUP(Formato_ActivosInf_VF!D6,DATA!$B$2:$C$95,2,)&"-"&IF(ISERR(B6),"LEB",B6),"") -> 1-2 | B6: =IF(AND(A5="",D6<>""),"LEB",IF(D6<>"",1+B5,"")) -> 2 | C6: Información Digital | D6: DESPACHO DEL MINISTRO | E6: INFORMES DE DELEGACIÓN | F6: Información oficial sobre el ejercicio de las dependencias y de la entidad misma | G6: Documentos de Archivo - electrónicos | H6: PDF | I6: Español | J6: No Aplica | K6: https://alfanet.mintic.gov.co//https://integratic.mintic.gov.co/AZDigital/Login/Login.php
A7: =IF(D7<>"",VLOOKUP(Formato_ActivosInf_VF!D7,DATA!$B$2:$C$95,2,)&"-"&IF(ISERR(B7),"LEB",B7),"") -> 1-3 | B7: =IF(AND(A6="",D7<>""),"LEB",IF(D7<>"",1+B6,"")) -> 3 | C7: Información Digital | D7: DESPACHO DEL MINISTRO | E7: COMUNICACINES PROYECTOS CANALES DE TELEVISIÓN | F7: Documentos dirigidos a canales nacionales | G7: Documentos de Archivo - electrónicos | H7: PDF | I7: Español | J7: No Aplica | K7: https://alfanet.mintic.gov.co//https://integratic.mintic.gov.co/AZDigital/Login/Login.php
A8: =IF(D8<>"",VLOOKUP(Formato_ActivosInf_VF!D8,DATA!$B$2:$C$95,2,)&"-"&IF(ISERR(B8),"LEB",B8),"") -> 1-4 | B8: =IF(AND(A7="",D8<>""),"LEB",IF(D8<>"",1+B7,"")) -> 4 | C8: Información Digital | D8: DESPACHO DEL MINISTRO | E8: DERECHOS DE PETICIÓN | F8: Respuesta a Derechos de petición, quejas, reclamos y sugerencias que por competencia sean del Despacho de la Ministra | G8: Documentos de Archivo - electrónicos | H8: PDF | I8: Español | J8: No Aplica | K8: https://alfanet.mintic.gov.co//https://integratic.mintic.gov.co/AZDigital/Login/Login.php
A9: =IF(D9<>"",VLOOKUP(Formato_ActivosInf_VF!D9,DATA!$B$2:$C$95,2,)&"-"&IF(ISERR(B9),"LEB",B9),"") -> 1-5 | B9: =IF(AND(A8="",D9<>""),"LEB",IF(D9<>"",1+B8,"")) -> 5 | C9: Recurso Humano - P | D9: DESPACHO DEL MINISTRO | E9: MINISTRO | F9: Ministro de Tecnologías de la Información y las Comunicaciones quien lidera las iniciativas públicas para impulsar la inversión en el sector TIC y para la transformación digital del Estado | G9: No Aplica | H9: No Aplica | I9: No Aplica | J9: No Aplica | K9: No Aplica
A10: =IF(D10<>"",VLOOKUP(Formato_ActivosInf_VF!D10,DATA!$B$2:$C$95,2,)&"-"&IF(ISERR(B10),"LEB",B10),"") -> 1-6 | B10: =IF(AND(A9="",D10<>""),"LEB",IF(D10<>"",1+B9,"")) -> 6 | C10: Recurso Humano - P | D10: DESPACHO DEL MINISTRO | E10: COLABORADORES DE PLANTA | F10: Servidores públicos quienes supervisan y resguardan la información correspondiente del Despacho de la Ministra | G10: No Aplica | H10: No Aplica | I10: No Aplica | J10: No Aplica | K10: No Aplica
A11: =IF(D11<>"",VLOOKUP(Formato_ActivosInf_VF!D11,DATA!$B$2:$C$95,2,)&"-"&IF(ISERR(B11),"LEB",B11),"") -> 1-7 | B11: =IF(AND(A10="",D11<>""),"LEB",IF(D11<>"",1+B10,"")) -> 7 | C11: Recurso Humano - C | D11: DESPACHO DEL MINISTRO | E11: COLOBORADORES CONTRATISTAS | F11: Contratistas quienes supervisan y resguardan a su vez la información emitida del Despacho de la Ministra | G11: No Aplica | H11: No Aplica | I11: No Aplica | J11: No Aplica | K11: No Aplica
A12: =IF(D12<>"",VLOOKUP(Formato_ActivosInf_VF!D12,DATA!$B$2:$C$95,2,)&"-"&IF(ISERR(B12),"LEB",B12),"") -> 1-8 | B12: =IF(AND(A11="",D12<>""),"LEB",IF(D12<>"",1+B11,"")) -> 8 | C12: Información Digital | D12: DESPACHO DEL MINISTRO | E12: Plan de implementación de seguridad y privacidad de la información | F12: Documento que definie los lineamientos y actividades a desarrollar en la implementación del Plan de Seguridad | G12: Archivos Institucionales - electrónico | H12: PDF | I12: Español | J12: No Aplica | K12: https://simig.mintic.gov.co/
A13: =IF(D13<>"",VLOOKUP(Formato_ActivosInf_VF!D13,DATA!$B$2:$C$95,2,)&"-"&IF(ISERR(B13),"LEB",B13),"") -> 1-9 | B13: =IF(AND(A12="",D13<>""),"LEB",IF(D13<>"",1+B12,"")) -> 9 | C13: Información Digital | D13: DESPACHO DEL MINISTRO | E13: Plan de tratamiento de riesgos de seguridad de la información | F13: Documento que definie los lineamientos para tratar de manera integral los riesgos de Seguridad y Privacidad de la Información, Seguridad Digital y Continuidad de la Operación de los servicios | G13: Archivos Institucionales - electrónico | H13: PDF | I13: Español | J13: No Aplica | K13: https://simig.mintic.gov.co/
A14: =IF(D14<>"",VLOOKUP(Formato_ActivosInf_VF!D14,DATA!$B$2:$C$95,2,)&"-"&IF(ISERR(B14),"LEB",B14),"") -> 1-10 | B14: =IF(AND(A13="",D14<>""),"LEB",IF(D14<>"",1+B13,"")) -> 10 | C14: Información Digital | D14: DESPACHO DEL MINISTRO | E14: Seguimiento al Plan de Implementación de Seguridad de la información | F14: Documento que contiene los seguimiento de las gestiones del Sistema de Gestión de seguridad de la información del Ministerio: activos, riesgos, continuidad del servicio, Gobierno en línea, cultura incidentes de seguridad de la información y Privacidad de la información. | G14: Archivos Institucionales - electrónico | H14: Hoja de cálculo | I14: Español | J14: No Aplica | K14: https://mintic-my.sharepoint.com/personal/adiazm_mintic_gov_co/_layouts/15/onedrive.aspx?originalPath=aHR0cHM6Ly9taW50aWMtbXkuc2hhcmVwb2ludC5jb20vOmY6L2cvcGVyc29uYWwvYWRpYXptX21pbnRpY19nb3ZfY28vRWtMZkdtNnVtWTVLdm52Q281dU5rejRCS1NjVXdOTG1UXzNaaUdIUGNUZWtJdz9ydGltZT0tMVdVVE5WYzJVZw&id=%2Fpersonal%2Fadiazm%5Fmintic%5Fgov%5Fco%2FDocuments%2FDocumentos%2FMINTIC%2FSGSI%2FImplementacion
A15: =IF(D15<>"",VLOOKUP(Formato_ActivosInf_VF!D15,DATA!$B$2:$C$95,2,)&"-"&IF(ISERR(B15),"LEB",B15),"") -> 1-11 | B15: =IF(AND(A14="",D15<>""),"LEB",IF(D15<>"",1+B14,"")) -> 11 | C15: Información Digital | D15: DESPACHO DEL MINISTRO | E15: Plan de continuidad de la operación | F15: Documentación refrente al Análisis de Impacto al Negocio - BIA, Análisis de Riesgos de Interrupción - RIA, Estrategias para la Continuidad de las Operaciones, Informe Plan de Continuidad de las Operaciones y Plan de Recuperación de Desastres Tecnológicos - DRP | G15: Sistemas de Información corporativos | H15: PDF | I15: Español | J15: No Aplica | K15: https://simig.mintic.gov.co/
A16: =IF(D16<>"",VLOOKUP(Formato_ActivosInf_VF!D16,DATA!$B$2:$C$95,2,)&"-"&IF(ISERR(B16),"LEB",B16),"") -> 1-12 | B16: =IF(AND(A15="",D16<>""),"LEB",IF(D16<>"",1+B15,"")) -> 12 | C16: Información Digital | D16: DESPACHO DEL MINISTRO | E16: Documentación de apoyo para la implementación y seguimiento de las políticas de SPI | F16: Documentación referente a los formatos, procedimientos y manuales a tener en cuenta para la implementación de las políticas de SPI | G16: Sistemas de Información corporativos | H16: HTML (Página Web) | I16: Español | J16: No Aplica | K16: https://simig.mintic.gov.co/
A17: =IF(D17<>"",VLOOKUP(Formato_ActivosInf_VF!D17,DATA!$B$2:$C$95,2,)&"-"&IF(ISERR(B17),"LEB",B17),"") -> 1101-13 | B17: =IF(AND(A16="",D17<>""),"LEB",IF(D17<>"",1+B16,"")) -> 13 | C17: Información Digital | D17: GRUPO INTERNO DE TRABAJO DE PLANEACIÓN Y SEGUIMIENTO | E17: Plan de Acción | F17: Plan de Acción Anual es la programación anual de las iniciativas, proyectos, actividades, y recursos que va a desarrollar en la vigencia cada dependencia de la entidad y está articulado con el Plan Estratégico Sectorial e Institucional. | G17: Archivos Institucionales - electrónico | H17: XLS -PDF | I17: Español | J17: No Aplica | K17: https://www.mintic.gov.co/portal/inicio/Planes/Planes-de-Accion/
A18: =IF(D18<>"",VLOOKUP(Formato_ActivosInf_VF!D18,DATA!$B$2:$C$95,2,)&"-"&IF(ISERR(B18),"LEB",B18),"") -> 1101-14 | B18: =IF(AND(A17="",D18<>""),"LEB",IF(D18<>"",1+B17,"")) -> 14 | C18: Información Digital | D18: GRUPO INTERNO DE TRABAJO DE PLANEACIÓN Y SEGUIMIENTO | E18: Plan Estratégico Sectorial | F18: Plan Estratégico Sectorial: organiza y orienta estratégicamente las acciones de las entidades pertenecientes a un sector administrativo en un plazo de 4 años, para alcanzar objetivos acordes con su misión y con el Plan Nacional de Desarrollo.Plan estratégico, comunicaciones y anexos referentes al plan estratégico. Esta compuesto por Plan Estratégico Sectorial y comunicación oficial | G18: Archivos Institucionales - electrónico | H18: HTML (Página Web) | I18: Español | J18: No Aplica | K18: https://www.mintic.gov.co/portal/inicio/Ministerio/Planes/Plan-Estrategico/
A19: =IF(D19<>"",VLOOKUP(Formato_ActivosInf_VF!D19,DATA!$B$2:$C$95,2,)&"-"&IF(ISERR(B19),"LEB",B19),"") -> 1101-15 | B19: =IF(AND(A18="",D19<>""),"LEB",IF(D19<>"",1+B18,"")) -> 15 | C19: Información Digital | D19: GRUPO INTERNO DE TRABAJO DE PLANEACIÓN Y SEGUIMIENTO | E19: Proyectos de gestión institucional, Proyectos misionales | F19: Listado de proyectos, cada proyecto es un conjunto de actividades limitadas en el tiempo, producto de un proceso de planificación que busca alcanzar los objetivos misionales y de apoyo definidos en el Plan Nacional de Desarrollo, Plan Estratégico Sectorial e Institucional, que se encuentra en el Plan de Acción, el cual está ajustado a un presupuesto y cuenta con criterios de calidad. Esta compuesto por proyectos de gestión internos, acta de reunión, comunicación oficial. | G19: Archivos Institucionales - electrónico | H19: PDF | I19: Español | J19: No Aplica | K19: https://www.mintic.gov.co/portal/inicio/Ministerio/Presupuestos/Proyectos-de-inversion/
A20: =IF(D20<>"",VLOOKUP(Formato_ActivosInf_VF!D20,DATA!$B$2:$C$95,2,)&"-"&IF(ISERR(B20),"LEB",B20),"") -> 1101-16 | B20: =IF(AND(A19="",D20<>""),"LEB",IF(D20<>"",1+B19,"")) -> 16 | C20: Información Digital | D20: GRUPO INTERNO DE TRABAJO DE PLANEACIÓN Y SEGUIMIENTO | E20: Actas de Comité Primario | F20: Actas de las reuniones de comites primarios realizados por el grupo interno de trabajo de seguimiento a la estrategia | G20: Documentos de Archivo - electrónicos | H20: HTML (Página Web) | I20: Español | J20: No Aplica | K20: MIG https://mintic.sharepoint.com/sites/mig/seguimiento/Paginas/gcp_seguimiento_estrategia.aspx
A21: =IF(D21<>"",VLOOKUP(Formato_ActivosInf_VF!D21,DATA!$B$2:$C$95,2,)&"-"&IF(ISERR(B21),"LEB",B21),"") -> 1101-17 | B21: =IF(AND(A20="",D21<>""),"LEB",IF(D21<>"",1+B20,"")) -> 17 | C21: Información Digital | D21: GRUPO INTERNO DE TRABAJO DE PLANEACIÓN Y SEGUIMIENTO | E21: Plan estrategico institucional | F21: Plan Estratégico Institucional: entiéndase como Plan Indicativo Cuatrienal como lo establece la Ley 152 de 1994. Instrumento que organiza y orienta estratégicamente las acciones de la entidad en un plazo de 4 años, para alcanzar objetivos acordes con su misión y con el Plan Nacional de Desarrollo. (Gobierno de Colombia, 2018-2022) | G21: Documentos de Archivo - electrónicos | H21: HTML (Página Web) | I21: Español | J21: No Aplica | K21: https://www.mintic.gov.co/portal/inicio/Ministerio/Planes/Plan-Estrategico/
A22: =IF(D22<>"",VLOOKUP(Formato_ActivosInf_VF!D22,DATA!$B$2:$C$95,2,)&"-"&IF(ISERR(B22),"LEB",B22),"") -> 1101-18 | B22: =IF(AND(A21="",D22<>""),"LEB",IF(D22<>"",1+B21,"")) -> 18 | C22: Información Digital | D22: GRUPO INTERNO DE TRABAJO DE PLANEACIÓN Y SEGUIMIENTO | E22: Informes | F22: De seguimiento a los proyectos de inversión a traves del Sistema de Información de los Proyectos de Inversión SPI, con corte mensual de las Metas e Indicadores y presupuesto de los respectivos proyectos. Esta compuesto por informes de gestión, comunicación oficial y el Informe de seguimiento a ejecución presupuestal. | G22: Documentos de Archivo - electrónicos | H22: HTML (Página Web) | I22: Español | J22: No Aplica | K22: https://spi.dnp.gov.co/ Usuario: Anonimo
A23: =IF(D23<>"",VLOOKUP(Formato_ActivosInf_VF!D23,DATA!$B$2:$C$95,2,)&"-"&IF(ISERR(B23),"LEB",B23),"") -> 1101-19 | B23: =IF(AND(A22="",D23<>""),"LEB",IF(D23<>"",1+B22,"")) -> 19 | C23: Información Digital | D23: GRUPO INTERNO DE TRABAJO DE PLANEACIÓN Y SEGUIMIENTO | E23: Anteproyecto del Presupuesto de Inversión | F23: Documentos que se consolida para Generar el Marco de Gasto de Mediano Plazo con la información presupuestal del siguiente año de las entidades del sector, y de los proyectos deinversión del Ministerio de Tecnología de la Información y las Comunicaciones. Esta compuesto por: Documentos formulación de proyectos, Anteproyecto de presupuesto, Marco de gasto de mediano plazo, Circulares de programación y Comunicación oficial | G23: Documentos de Archivo - electrónicos | H23: Office OpenXML | I23: Español | J23: No Aplica | K23: https://www.minhacienda.gov.co/webcenter/portal/Minhacienda/system/Search?resourceId=marco+de+gasto&wc.taskFlowId=dynamic-view&com.sun.faces.facelets.MARK_ID=goBtn&searchTaskflow=%2Foracle%2Fwebcenter%2Fsearch%2Fcontroller%2Ftaskflows%2FsearchMain%23main-taskflow&wc.taskFlowPath=%2Foracle%2Fwebcenter%2Fsearch%2Fcontroller%2Ftaskflows%2FdynamicSearch.xml&styleClass=WCSearchGoButton&resourceType=searchKeywords
A24: =IF(D24<>"",VLOOKUP(Formato_ActivosInf_VF!D24,DATA!$B$2:$C$95,2,)&"-"&IF(ISERR(B24),"LEB",B24),"") -> 1101-20 | B24: =IF(AND(A23="",D24<>""),"LEB",IF(D24<>"",1+B23,"")) -> 20 | C24: Recurso Humano - P | D24: GRUPO INTERNO DE TRABAJO DE PLANEACIÓN Y SEGUIMIENTO | E24: Colaboradores Planta | F24: Definir los lineamientos y criterios básicos para la formulación, evaluación y control de los planes, programas y proyectos del Ministerio y de las entidades vinculadas y adscritas al Sector | G24: No Aplica | H24: No Aplica | I24: No Aplica | J24: No Aplica | K24: No Aplica
A25: =IF(D25<>"",VLOOKUP(Formato_ActivosInf_VF!D25,DATA!$B$2:$C$95,2,)&"-"&IF(ISERR(B25),"LEB",B25),"") -> 1101-21 | B25: =IF(AND(A24="",D25<>""),"LEB",IF(D25<>"",1+B24,"")) -> 21 | C25: Hardware | D25: GRUPO INTERNO DE TRABAJO DE PLANEACIÓN Y SEGUIMIENTO | E25: Token | F25: Elemento (llave) que sirve para el ingreso al Sistema de Informaciòn Financiera SIIF, del Ministerio de Hacienda y Crèdito Pùblico. | G25: N/A | H25: No Aplica | I25: Español | J25: Cra. 8a entre calles 12 y 13 Edificio Murillo Toro - piso 6 Oficina Asesora de Planeación y Estudios Sectoriales | K25: No Aplica
A26: =IF(D26<>"",VLOOKUP(Formato_ActivosInf_VF!D26,DATA!$B$2:$C$95,2,)&"-"&IF(ISERR(B26),"LEB",B26),"") -> 1101-22 | B26: =IF(AND(A25="",D26<>""),"LEB",IF(D26<>"",1+B25,"")) -> 22 | C26: Recurso Humano - C | D26: GRUPO INTERNO DE TRABAJO DE PLANEACIÓN Y SEGUIMIENTO | E26: Colaboradores contratistas | F26: Definir los lineamientos y criterios básicos para la formulación, evaluación y control de los planes, programas y proyectos del Ministerio y de las entidades vinculadas y adscritas al Sector. Estos perfiles son usado para el desarrollo de todos los procesos de la entidad operaciones internas asesora a las áreas en la planeación estratégica, asesoría y seguimiento del plan de acción, plan estratégico sectorial, informes relacionados al seguimiento de metas de gobierno sinergia ; presta servicios a los usuarios y partes interesadas servicios tanto internos como externos. Realiza la gestión de avance en los proyectos misionales y de soporte institucional para dar a conocer a las partes interesadas. Asegura que la información publicada en planes proyectos programas, cuenta con la calidad, veracidad e intregridad. | G26: No Aplica | H26: No Aplica | I26: No Aplica | J26: No Aplica | K26: No Aplica
A27: =IF(D27<>"",VLOOKUP(Formato_ActivosInf_VF!D27,DATA!$B$2:$C$95,2,)&"-"&IF(ISERR(B27),"LEB",B27),"") -> 1101-23 | B27: =IF(AND(A26="",D27<>""),"LEB",IF(D27<>"",1+B26,"")) -> 23 | C27: Información Digital | D27: GRUPO INTERNO DE TRABAJO DE PLANEACIÓN Y SEGUIMIENTO | E27: Informes de Gestión | F27: Incluye el informe al congreso, informe de gestión del Plan de Acción, avances trimestrales del Plan de Acción, avances trimestrales de los planes estratégicos Sectorial e Institucional. Compuestos por comunicación oficial y los informes de gestión. | G27: Archivos Institucionales - electrónico | H27: HTML (Página Web) | I27: Español | J27: No Aplica | K27: https://www.mintic.gov.co/portal/inicio/Atencion-y-Servicio-a-la-Ciudadania/Transparencia/
A28: =IF(D28<>"",VLOOKUP(Formato_ActivosInf_VF!D28,DATA!$B$2:$C$95,2,)&"-"&IF(ISERR(B28),"LEB",B28),"") -> 1101-24 | B28: =IF(AND(A27="",D28<>""),"LEB",IF(D28<>"",1+B27,"")) -> 24 | C28: Información Digital | D28: GRUPO INTERNO DE TRABAJO DE PLANEACIÓN Y SEGUIMIENTO | E28: Proyectos de Inversión | F28: Compuesto por Proyectos de Inversión, PAC de Inversión, Conceptos de trámites presupuestales, Sistema de seguimiento a proyectos de inversión -SPI, Documentos formulación de proyectos, Anteproyecto de presupuesto, Marco de gasto de mediano plazo, Circulares de programación y Comunicación oficial | G28: Documentos de Archivo - electrónicos | H28: HTML (Página Web) | I28: Español | J28: No Aplica | K28: https://www.mintic.gov.co/portal/inicio/Ministerio/Presupuestos/
A29: =IF(D29<>"",VLOOKUP(Formato_ActivosInf_VF!D29,DATA!$B$2:$C$95,2,)&"-"&IF(ISERR(B29),"LEB",B29),"") -> 1102-25 | B29: =IF(AND(A28="",D29<>""),"LEB",IF(D29<>"",1+B28,"")) -> 25 | C29: Información Física | D29: GRUPO INTERNO DE TRABAJO DE ESTADÍSTICA Y ESTUDIOS SECTORIALES | E29: Acta Mesa técnica de estadísticas TIC | F29: La mesa técnica de estadísticas TIC, asesora a la organización en temas específicos de indicadores del Sector, razón por la cual en sus actas se encuentra información de carácter oficial y con un altísimo valor para la investifación. Por todo lo anterior el contenido de la agrupación se debe conservar en su totalidad y al terminar los tiempos de retención, este material debe ser transferido al Archivo General de la Nación. | G29: Archivos Institucionales - electrónico | H29: PDF | I29: Español | J29: Cra. 8a entre calles 12 y 13 Edificio Murillo Toro piso 1, Archivo de gestión | K29: No Aplica
A30: =IF(D30<>"",VLOOKUP(Formato_ActivosInf_VF!D30,DATA!$B$2:$C$95,2,)&"-"&IF(ISERR(B30),"LEB",B30),"") -> 1102-26 | B30: =IF(AND(A29="",D30<>""),"LEB",IF(D30<>"",1+B29,"")) -> 26 | C30: Información Digital | D30: GRUPO INTERNO DE TRABAJO DE ESTADÍSTICA Y ESTUDIOS SECTORIALES | E30: Certificación de calidad | F30: En el proceso mediante el cual se certifica el nivel de cumplimiento de los atributos de calidad establecidos internacionalmente para la producción estadística y que se enmarcan en los Principios Fundamentales de las Estadísticas Oficiales en la Organización de las Naciones Unidas (ONU) y del Código Nacional de Buenas Prácticas para las Estadísticas Oficiales, con el fin de satisfacer las necesidades de los usuarios, promoviendo así la credibilidad, la confiabilidad y la transparencia en la producción de información estadística. | G30: Documentos de Archivo - electrónicos | H30: PDF | I30: Español | J30: No Aplica | K30: https://colombiatic.mintic.gov.co/
A31: =IF(D31<>"",VLOOKUP(Formato_ActivosInf_VF!D31,DATA!$B$2:$C$95,2,)&"-"&IF(ISERR(B31),"LEB",B31),"") -> 1102-27 | B31: =IF(AND(A30="",D31<>""),"LEB",IF(D31<>"",1+B30,"")) -> 27 | C31: Información Digital | D31: GRUPO INTERNO DE TRABAJO DE ESTADÍSTICA Y ESTUDIOS SECTORIALES | E31: Fichas departamentales | F31: Se presentan indicadores por Departamento relacionados con el Sector TIC, que tienen como origen diversas fuentes de información (encuestas, registros administrativos, oferta MinTIC, entre otros). | G31: Archivos Institucionales - electrónico | H31: PDF | I31: Español | J31: No Aplica | K31: https://colombiatic.mintic.gov.co/
A32: =IF(D32<>"",VLOOKUP(Formato_ActivosInf_VF!D32,DATA!$B$2:$C$95,2,)&"-"&IF(ISERR(B32),"LEB",B32),"") -> 1102-28 | B32: =IF(AND(A31="",D32<>""),"LEB",IF(D32<>"",1+B31,"")) -> 28 | C32: Información Digital | D32: GRUPO INTERNO DE TRABAJO DE ESTADÍSTICA Y ESTUDIOS SECTORIALES | E32: Estudios del sector TIC | F32: Se presentan la elaboración de estudios sectoriales sobre temas de interés para el sector de las Tecnologías de la Información y las Comunicaciones (TIC) que apoyen la formulación de políticas, planes, programas (iniciativas) y proyectos, y la toma de decisiones informadas por parte de las dependencias del Ministerio TIC (MinTIC), de las entidades del sector TIC, y de otras entidades públicas del orden nacional y territorial; así mismo, que orienten las decisiones en temas TIC de las empresas privadas relacionadas con el sector, y las de la ciudadanía en general. | G32: Documentos de Archivo - electrónicos | H32: Base de datos | I32: Español | J32: No Aplica | K32: https://colombiatic.mintic.gov.co/
A33: =IF(D33<>"",VLOOKUP(Formato_ActivosInf_VF!D33,DATA!$B$2:$C$95,2,)&"-"&IF(ISERR(B33),"LEB",B33),"") -> 1102-29 | B33: =IF(AND(A32="",D33<>""),"LEB",IF(D33<>"",1+B32,"")) -> 29 | C33: Información Digital | D33: GRUPO INTERNO DE TRABAJO DE ESTADÍSTICA Y ESTUDIOS SECTORIALES | E33: Matriz de Oferta Institucional | F33: Compilar y visualizar los avances (inversión, beneficiarios y generación de empleo) de los diferentes programas y proyectos (regionalizables), ejecutados por las áreas del Ministerio de Tecnologías de la Información y las Comunicaciones en los Departamentos y municipios del país y dar a conocer los resultados a los diferentes grupos de interés. | G33: Documentos de Archivo - electrónicos | H33: Base de datos | I33: Español | J33: No Aplica | K33: https://mintic.sharepoint.com/planeacion/GITEES/SitePages/Home.aspx
A34: =IF(D34<>"",VLOOKUP(Formato_ActivosInf_VF!D34,DATA!$B$2:$C$95,2,)&"-"&IF(ISERR(B34),"LEB",B34),"") -> 1102-30 | B34: =IF(AND(A33="",D34<>""),"LEB",IF(D34<>"",1+B33,"")) -> 30 | C34: Información Digital | D34: GRUPO INTERNO DE TRABAJO DE ESTADÍSTICA Y ESTUDIOS SECTORIALES | E34: Atlas de Acceso Fijo a Internet | F34: Estos documentos tienen como objetivo presentar un análisis del servicio de acceso fijo a internet en las distintas regiones del país, mediante el estudio y comportamiento de la velocidad efectiva de bajada o descarga ofrecida por cada uno de los proveedores de redes y servicios. Se desagrega a nivel geográfico, por tecnología, segmento y estrato. | G34: Documentos de Archivo - electrónicos | H34: PDF | I34: Español | J34: No Aplica | K34: https://colombiatic.mintic.gov.co/
A35: =IF(D35<>"",VLOOKUP(Formato_ActivosInf_VF!D35,DATA!$B$2:$C$95,2,)&"-"&IF(ISERR(B35),"LEB",B35),"") -> 1102-31 | B35: =IF(AND(A34="",D35<>""),"LEB",IF(D35<>"",1+B34,"")) -> 31 | C35: Información Digital | D35: GRUPO INTERNO DE TRABAJO DE ESTADÍSTICA Y ESTUDIOS SECTORIALES | E35: Encuesta TIC | F35: Obtener información que permita analizar y realizar comparaciones de las condiciones de tenencia y uso de las TIC en los hogares colombianos. Esta información posibilitará el seguimiento a las variables necesarias para el diseño e implementación de políticas públicas y el fortalecimiento de alianzas público-privadas, en los planes y programas de estímulo y masificación social de las TIC para Colombia, con mayor articulación técnica y congruencia conceptual. Igualmente obtener información que permita analizar y realizar comparaciones de las condiciones de tenencia y uso de las TIC en las empresas, las cuales posibiliten el seguimiento y la formulación de políticas enfocadas al desarrollo y aprovechamiento de las TIC para el sector empresarial del pais. | G35: Documentos de Archivo - electrónicos | H35: PDF | I35: Español | J35: No Aplica | K35: https://colombiatic.mintic.gov.co/
A36: =IF(D36<>"",VLOOKUP(Formato_ActivosInf_VF!D36,DATA!$B$2:$C$95,2,)&"-"&IF(ISERR(B36),"LEB",B36),"") -> 1102-32 | B36: =IF(AND(A35="",D36<>""),"LEB",IF(D36<>"",1+B35,"")) -> 32 | C36: Información Digital | D36: GRUPO INTERNO DE TRABAJO DE ESTADÍSTICA Y ESTUDIOS SECTORIALES | E36: Cuenta Satelite TIC | F36: La Cuenta Satélite del Sector TIC, corresponde a un sistema de información económica continua, confiabble y comparable de actividades económicas productivas que combinan recursos tales como equipos, mano de obra, técnicas de fabricación e insumos para la producción de bienes y servicios TIC. | G36: Documentos de Archivo - electrónicos | H36: PDF | I36: Español | J36: No Aplica | K36: https://colombiatic.mintic.gov.co/
A37: =IF(D37<>"",VLOOKUP(Formato_ActivosInf_VF!D37,DATA!$B$2:$C$95,2,)&"-"&IF(ISERR(B37),"LEB",B37),"") -> 1102-33 | B37: =IF(AND(A36="",D37<>""),"LEB",IF(D37<>"",1+B36,"")) -> 33 | C37: Información Digital | D37: GRUPO INTERNO DE TRABAJO DE ESTADÍSTICA Y ESTUDIOS SECTORIALES | E37: Boletín de Sociedad Digital | F37: Este boletín presenta el comportamiento de diferentes aspectos de la sociedad digital en Colombia, con periodicidad semestral, haciendo énfasis en los aspectos centrales de la economía digital, especialmente, información relacionada con las firmas del sector, el comercio electrónico, el mercado laboral y la innovación. Su interpretación tiene flexibilidad estadística para lograr su publicación oportuna. | G37: Documentos de Archivo - electrónicos | H37: PDF | I37: Español | J37: No Aplica | K37: https://colombiatic.mintic.gov.co/
A38: =IF(D38<>"",VLOOKUP(Formato_ActivosInf_VF!D38,DATA!$B$2:$C$95,2,)&"-"&IF(ISERR(B38),"LEB",B38),"") -> 1102-34 | B38: =IF(AND(A37="",D38<>""),"LEB",IF(D38<>"",1+B37,"")) -> 34 | C38: Información Digital | D38: GRUPO INTERNO DE TRABAJO DE ESTADÍSTICA Y ESTUDIOS SECTORIALES | E38: Boletín TIC | F38: Este boletín tiene una periodicidad trimestral y su objetivo es divulgar los datos más relevantes del Sector de las TIC. Para conocer el detalle de la información se sugiere consultar el archivo Excel denominado Informe Trimestral de las TIC, publicado en el portal oficial de estadísticas del sector TIC - Colombia TIC. | G38: Documentos de Archivo - electrónicos | H38: PDF | I38: Español | J38: No Aplica | K38: https://colombiatic.mintic.gov.co/
A39: =IF(D39<>"",VLOOKUP(Formato_ActivosInf_VF!D39,DATA!$B$2:$C$95,2,)&"-"&IF(ISERR(B39),"LEB",B39),"") -> 1102-35 | B39: =IF(AND(A38="",D39<>""),"LEB",IF(D39<>"",1+B38,"")) -> 35 | C39: Información Digital | D39: GRUPO INTERNO DE TRABAJO DE ESTADÍSTICA Y ESTUDIOS SECTORIALES | E39: Boletín Postal | F39: El boletín tiene como objetivo dar a conocer el análisis y comportamiento estadístico de las cifras reportadas por los operadores de servicios postales en cuanto a la presentación de los servicios básicos y empresos definidos en la Ley 1369 de 2009; a través de los cuales se envían, movilizan y entregan cartas, paquetes, publicidad directa, publicaciones periódicas, catálogos y libros, entre otros objetos postales. | G39: Documentos de Archivo - electrónicos | H39: PDF | I39: Español | J39: No Aplica | K39: https://colombiatic.mintic.gov.co/
A40: =IF(D40<>"",VLOOKUP(Formato_ActivosInf_VF!D40,DATA!$B$2:$C$95,2,)&"-"&IF(ISERR(B40),"LEB",B40),"") -> 1103-36 | B40: =IF(AND(A39="",D40<>""),"LEB",IF(D40<>"",1+B39,"")) -> 36 | C40: Información Digital | D40: GRUPO INTERNO DE TRABAJO DE TRANSFORMACIÓN ORGANIZACIONAL | E40: Formulario Único de Reporte de Avances de la Gestión (FURAG) | F40: El Formulario Único de Reporte de Avances de la Gestión (FURAG) es la herramienta en línea de reporte de avances de la gestión, el cual es entregado al Departamento de la Función Pública como insumo para el monitoreo, evaluación y control del desempeño institucional. En la entidad está compuesto por: Comunicación Oficial de reporte FURAG Matrices de recopilación de respuestas FURAG Informe de resultados FURAG Certificación de reporte de avance a la gestión – FURAG. | G40: Archivos Institucionales - electrónico | H40: PDF | I40: Español | J40: No Aplica | K40: https://mintic.sharepoint.com/Gestion_Humana/transformacion_organizacional/Documentos%20compartidos/Forms/AllItems.aspx?viewid=3632d54b%2Dc64c%2D439b%2Db068%2D62de45b199cb&id=%2FGestion%5FHumana%2Ftransformacion%5Forganizacional%2FDocumentos%20compartidos%2FFURAG
A41: =IF(D41<>"",VLOOKUP(Formato_ActivosInf_VF!D41,DATA!$B$2:$C$95,2,)&"-"&IF(ISERR(B41),"LEB",B41),"") -> 1103-37 | B41: =IF(AND(A40="",D41<>""),"LEB",IF(D41<>"",1+B40,"")) -> 37 | C41: Información Digital | D41: GRUPO INTERNO DE TRABAJO DE TRANSFORMACIÓN ORGANIZACIONAL | E41: Mapa de riesgos de los procesos | F41: Mapa de riesgos de cada uno de lor procesos, el cual tiene como objetivo informar de manera preventiva el estado actual de la entidad frente al riesgo, que permita orientar las acciones adecuadas para la mitigación de los mismos de manera priorizada, que disminuya la probabilidad de materialización del riesgo, reducir la incertidumbre y aumentar la probabilidad de alcanzar los objetivos de cada uno de los procesos. Está compuesto por: Informe de administración de riesgo Comunicación oficial de Administración de riesgos Cuadro de seguimiento a controles de riesgos Cuadro de seguimiento a indicadores Listados de asistencia de administración de riesgos Actas de cierre de adminsitrción de riesgos Stakeholders y Contexto Matrices de riesgo | G41: Archivos Institucionales - electrónico | H41: PDF | I41: Español | J41: No Aplica | K41: https://mintic.sharepoint.com/Gestion_Humana/transformacion_organizacional/Documentos%20compartidos/Forms/AllItems.aspx?OR=Teams%2DHL&CT=1628698099151&viewid=3632d54b%2Dc64c%2D439b%2Db068%2D62de45b199cb&id=%2FGestion%5FHumana%2Ftransformacion%5Forganizacional%2FDocumentos%20compartidos%2FRIESGOS%20MINTIC
A42: =IF(D42<>"",VLOOKUP(Formato_ActivosInf_VF!D42,DATA!$B$2:$C$95,2,)&"-"&IF(ISERR(B42),"LEB",B42),"") -> 1103-38 | B42: =IF(AND(A41="",D42<>""),"LEB",IF(D42<>"",1+B41,"")) -> 38 | C42: Información Digital | D42: GRUPO INTERNO DE TRABAJO DE TRANSFORMACIÓN ORGANIZACIONAL | E42: Informe de Arquitectura Institucional | F42: Lineamientos para asesorar y estandarizar la presentación de la información de los documentos que integran el Sistema de Gestión de Calidad - SIG del Ministerio/Fondo Único de Tecnologías de la Información y las Comunicaciones, además se presenta el estado actual de cada uno de los procesos. Está compuesto por: Listados de asistencia de asesorías a procesos Boletin MIG Planes de mejoramiento de resultados de auditoría externa de calidad Comunicaciones oficial y certificacion de auditoria Informe de análisis de capacidades y entornos Acta de Reunion | G42: Archivos Institucionales - electrónico | H42: PDF | I42: Español | J42: No Aplica | K42: https://mintic.sharepoint.com/Gestion_Humana/transformacion_organizacional/Documentos%20compartidos/Forms/AllItems.aspx?viewid=3632d54b%2Dc64c%2D439b%2Db068%2D62de45b199cb
A43: =IF(D43<>"",VLOOKUP(Formato_ActivosInf_VF!D43,DATA!$B$2:$C$95,2,)&"-"&IF(ISERR(B43),"LEB",B43),"") -> 1103-39 | B43: =IF(AND(A42="",D43<>""),"LEB",IF(D43<>"",1+B42,"")) -> 39 | C43: Información Digital | D43: GRUPO INTERNO DE TRABAJO DE TRANSFORMACIÓN ORGANIZACIONAL | E43: Informes a organismos de control | F43: Respuesta a los diferentes informes emitidos por organismos de control. Está compuesto por: Comunicación oficial Informe | G43: Archivos Institucionales - electrónico | H43: PDF | I43: Español | J43: No Aplica | K43: https://mintic.sharepoint.com/Gestion_Humana/transformacion_organizacional/Documentos%20compartidos/Forms/AllItems.aspx?viewid=3632d54b%2Dc64c%2D439b%2Db068%2D62de45b199cb&id=%2FGestion%5FHumana%2Ftransformacion%5Forganizacional%2FDocumentos%20compartidos
A44: =IF(D44<>"",VLOOKUP(Formato_ActivosInf_VF!D44,DATA!$B$2:$C$95,2,)&"-"&IF(ISERR(B44),"LEB",B44),"") -> 1103-40 | B44: =IF(AND(A43="",D44<>""),"LEB",IF(D44<>"",1+B43,"")) -> 40 | C44: Información Digital | D44: GRUPO INTERNO DE TRABAJO DE TRANSFORMACIÓN ORGANIZACIONAL | E44: Informes de Apropiación Modelo Integrado de Gestión | F44: Informes correspondientes a la apropiación del modelo integrado de gestión, los cuales contienen archivos de actividades y estartegias para la apropiación del modelo integrado de gestión. Está compuesto por: Informe de Apropiación del Modelo Integrado de Gestión Actividades de apropiación del MIG Comunicación oficial de apropiación del MIG | G44: Archivos Institucionales - electrónico | H44: PDF | I44: Español | J44: No Aplica | K44: https://mintic.sharepoint.com/Gestion_Humana/transformacion_organizacional/Documentos_Grupo/Forms/AllItems.aspx?viewid=15940aa5%2Df69f%2D4d25%2Dbcf1%2D44e668511aed&id=%2FGestion%5FHumana%2Ftransformacion%5Forganizacional%2FDocumentos%5FGrupo%2F2021%2FControles%20Fortalecimiento%20Organizacional%2FCMIG1
A45: =IF(D45<>"",VLOOKUP(Formato_ActivosInf_VF!D45,DATA!$B$2:$C$95,2,)&"-"&IF(ISERR(B45),"LEB",B45),"") -> 1103-41 | B45: =IF(AND(A44="",D45<>""),"LEB",IF(D45<>"",1+B44,"")) -> 41 | C45: Información Digital | D45: GRUPO INTERNO DE TRABAJO DE TRANSFORMACIÓN ORGANIZACIONAL | E45: Políticas de Gestión y Desempeño | F45: Instrumento diseñado para que todas las entidades públicas, puedan determinar en cualquier momento, su estado de desarrollo frente a temas puntuales de su gestión y con base en ello establecer medidas y acciones de planeación para su mejoramiento continuo. Está compuesto por: Autodiagnóstico Comunicación Oficial de politicas de gestión y desempeño Plan de mejoramiento Evidencias de seguimiento a la politica de gestión y desempeño Listados de asistencia de seguimiento a politicas de gestión y desempeño Informe de seguimiento a las poltiicas de gestión y desempeño | G45: Archivos Institucionales - electrónico | H45: PDF | I45: Español | J45: No Aplica | K45: https://mintic.sharepoint.com/Gestion_Humana/transformacion_organizacional/Documentos%20compartidos/Forms/AllItems.aspx?viewid=3632d54b%2Dc64c%2D439b%2Db068%2D62de45b199cb&id=%2FGestion%5FHumana%2Ftransformacion%5Forganizacional%2FDocumentos%20compartidos%2FFOGEDI
A46: =IF(D46<>"",VLOOKUP(Formato_ActivosInf_VF!D46,DATA!$B$2:$C$95,2,)&"-"&IF(ISERR(B46),"LEB",B46),"") -> 1103-42 | B46: =IF(AND(A45="",D46<>""),"LEB",IF(D46<>"",1+B45,"")) -> 42 | C46: Información Digital | D46: GRUPO INTERNO DE TRABAJO DE TRANSFORMACIÓN ORGANIZACIONAL | E46: Informes de los Grupos Comité Primario (GCP) | F46: Estategia de autocontrol y seguimiento a las actividades realizadas por cada una de las dependencias, con el fin de generar recomendaciones por parte del equipo de trabajo y así mismo, informar al grupo sobre el trabajo realizado en el área; de esta forma se fortalece su capacidad de evaluación, detecta desviaciones, establece tendencias y genera recomendaciones que orienten acciones oportunas de mejoramiento institucional. Está compuesto por: Informe de análisis de la estrategia de Grupo Comité Primario Comunicación oficial de informes de seguimiento control y mejora | G46: Archivos Institucionales - electrónico | H46: PDF | I46: Español | J46: No Aplica | K46: https://mintic.sharepoint.com/Gestion_Humana/transformacion_organizacional/Documentos_Grupo/Forms/AllItems.aspx?viewid=15940aa5%2Df69f%2D4d25%2Dbcf1%2D44e668511aed&id=%2FGestion%5FHumana%2Ftransformacion%5Forganizacional%2FDocumentos%5FGrupo%2F2021%2FControles%20Fortalecimiento%20Organizacional%2FCMIG8
A47: =IF(D47<>"",VLOOKUP(Formato_ActivosInf_VF!D47,DATA!$B$2:$C$95,2,)&"-"&IF(ISERR(B47),"LEB",B47),"") -> 1103-43 | B47: =IF(AND(A46="",D47<>""),"LEB",IF(D47<>"",1+B46,"")) -> 43 | C47: Información Digital | D47: GRUPO INTERNO DE TRABAJO DE TRANSFORMACIÓN ORGANIZACIONAL | E47: Documentación de la Gestión del Conocimiento | F47: Contenido académico digital relacionado con tematicas " tecnologia de información", "tecnologias de las comunicaciones", "Modelo integrado de gestión y desarrollo personal", desarrollados en formato scorm para ser implementados dentro del sistema gestor de aprendizaje- LMS- que la entidad disponga. Está compuesto por: *Objetos virtuales de aprendizaje - módulos virtuales * Herramientas digitales para apropiar la gestión del conocimiento en la entidad *Piezas Audiovisuales *Informe *Seguimiento Política de gestión y desempeño institucional - Gestión del conocimiento y la innovación | G47: Archivos Institucionales - electrónico | H47: PDF | I47: Español | J47: No Aplica | K47: https://mintic.sharepoint.com/Gestion_Humana/transformacion_organizacional/Documentos%20compartidos/Forms/AllItems.aspx?csf=1&web=1&e=pnFkGt&cid=f8fec2c9%2D1188%2D461d%2Dbb4a%2D731e7b29d503&FolderCTID=0x012000852A9ECFDEDB50468A89B8011B956361&viewid=3632d54b%2Dc64c%2D439b%2Db068%2D62de45b199cb&id=%2FGestion%5FHumana%2Ftransformacion%5Forganizacional%2FDocumentos%20compartidos%2FGesti%C3%B3n%20del%20Conocimiento%202021
A48: =IF(D48<>"",VLOOKUP(Formato_ActivosInf_VF!D48,DATA!$B$2:$C$95,2,)&"-"&IF(ISERR(B48),"LEB",B48),"") -> 1103-44 | B48: =IF(AND(A47="",D48<>""),"LEB",IF(D48<>"",1+B47,"")) -> 44 | C48: Información Digital | D48: GRUPO INTERNO DE TRABAJO DE TRANSFORMACIÓN ORGANIZACIONAL | E48: Respuesta a PQRSD | F48: Son las inquietudes o manifestaciones generadas por los diferentes grupos de interés, a las cuales se les genera su respectiva respuesta. Está compuesto por: Petición Queja Reclamo Sugerencias Denuncias Respuestas a derechos de petición | G48: Archivos Institucionales - electrónico | H48: PDF | I48: Español | J48: No Aplica | K48: https://integratic.mintic.gov.co/
A49: =IF(D49<>"",VLOOKUP(Formato_ActivosInf_VF!D49,DATA!$B$2:$C$95,2,)&"-"&IF(ISERR(B49),"LEB",B49),"") -> 1103-45 | B49: =IF(AND(A48="",D49<>""),"LEB",IF(D49<>"",1+B48,"")) -> 45 | C49: Información Digital | D49: GRUPO INTERNO DE TRABAJO DE TRANSFORMACIÓN ORGANIZACIONAL | E49: Plan anticorrupción y de atención al ciudadano | F49: Instrumento de tipo preventivo para el control de la corrupción, conforme a lo establecido en la Ley 1474 de 2011 del Estatuto Anticorrupción, cada entidad del orden nacional, departamental y municipal debe elaborar anualmente una estrategia de lucha contra la corrupción y de atención al ciudadano, que contempla, entre otras cosas, el mapa de riesgos de corrupción en la respectiva entidad, las medidas concretas para mitigar esos riesgos, las estrategias antitrámites y los mecanismos para mejorar la atención al ciudadano. Está compuesto por: Autodiagnóstico del PAAC Formulación del PAAC Seguimiento al PAAC Evidencias del PAAC Modificaciones al PAAC | G49: Archivos Institucionales - electrónico | H49: PDF | I49: Español | J49: No Aplica | K49: https://mintic.sharepoint.com/Gestion_Humana/transformacion_organizacional/Documentos%20compartidos/Forms/AllItems.aspx?viewid=3632d54b%2Dc64c%2D439b%2Db068%2D62de45b199cb&id=%2FGestion%5FHumana%2Ftransformacion%5Forganizacional%2FDocumentos%20compartidos
A50: =IF(D50<>"",VLOOKUP(Formato_ActivosInf_VF!D50,DATA!$B$2:$C$95,2,)&"-"&IF(ISERR(B50),"LEB",B50),"") -> 1103-46 | B50: =IF(AND(A49="",D50<>""),"LEB",IF(D50<>"",1+B49,"")) -> 46 | C50: Recurso Humano - P | D50: GRUPO INTERNO DE TRABAJO DE TRANSFORMACIÓN ORGANIZACIONAL | E50: Colaboradores Planta | F50: Personas con cargos administrativos (provisional, carrera administrativa o Libre nombramiento y remoción) que ejercen el rol de asesor dentro del GIT de Trasformación Organizacional y que poseen información de interés de la entidad. | G50: No Aplica | H50: PDF | I50: Español | J50: No Aplica | K50: No Aplica
A51: =IF(D51<>"",VLOOKUP(Formato_ActivosInf_VF!D51,DATA!$B$2:$C$95,2,)&"-"&IF(ISERR(B51),"LEB",B51),"") -> 1103-47 | B51: =IF(AND(A50="",D51<>""),"LEB",IF(D51<>"",1+B50,"")) -> 47 | C51: Recurso Humano - C | D51: GRUPO INTERNO DE TRABAJO DE TRANSFORMACIÓN ORGANIZACIONAL | E51: Colaboradores contratistas | F51: Personas con contrato de prestación de servicios que ejercen el rol de asesor dentro del GIT de Trasformación Organizacional y que poseen información de interés de la entidad. | G51: No Aplica | H51: PDF | I51: Español | J51: No Aplica | K51: No Aplica
A52: =IF(D52<>"",VLOOKUP(Formato_ActivosInf_VF!D52,DATA!$B$2:$C$95,2,)&"-"&IF(ISERR(B52),"LEB",B52),"") -> 1103-48 | B52: =IF(AND(A51="",D52<>""),"LEB",IF(D52<>"",1+B51,"")) -> 48 | C52: Información Digital | D52: GRUPO INTERNO DE TRABAJO DE TRANSFORMACIÓN ORGANIZACIONAL | E52: Documentación de apoyo del GTO | F52: Docuemntos que dan lineamientos en el quehacer de los procesos de Fortalecimiento Organizacional y Gestión del Conocimiento | G52: Archivos Institucionales - electrónico | H52: PDF | I52: Español | J52: No Aplica | K52: https://simig.mintic.gov.co/Documentacion/frmListadoMaestroDocumentos.aspx
A53: =IF(D53<>"",VLOOKUP(Formato_ActivosInf_VF!D53,DATA!$B$2:$C$95,2,)&"-"&IF(ISERR(B53),"LEB",B53),"") -> 11-49 | B53: =IF(AND(A52="",D53<>""),"LEB",IF(D53<>"",1+B52,"")) -> 49 | C53: Información Digital | D53: OFICINA ASESORA DE PLANEACIÓN Y ESTUDIOS SECTORIALES | E53: Acta de Comité MIG | F53: Es la instancia orientadora del MIG en donde se tratan los temas referentes a las políticas de gestión y desempeño institucional, y demás componentes del modelo, promoviendo sinergias entre las dependencias, iniciativas, estrategias y proyectos que redunden en beneficios institucionales y en la satisfacción de grupos de interés del Ministerio/Fondo Único TIC. Está compuesto por: Citación Correos Electrónicos de Sesiones virtuales Acta de comité Modelo Integrado de Gestión Presentaciónes Listado de asistencia Documentos soporte de los temas tratados en la sesión | G53: Archivos Institucionales - electrónico | H53: PDF | I53: Español | J53: No Aplica | K53: https://mintic.sharepoint.com/Gestion_Humana/transformacion_organizacional/Documentos%20compartidos/Forms/AllItems.aspx?viewid=3632d54b%2Dc64c%2D439b%2Db068%2D62de45b199cb&id=%2FGestion%5FHumana%2Ftransformacion%5Forganizacional%2FDocumentos%20compartidos%2FCOMIT%C3%89%20MIG
A54: =IF(D54<>"",VLOOKUP(Formato_ActivosInf_VF!D54,DATA!$B$2:$C$95,2,)&"-"&IF(ISERR(B54),"LEB",B54),"") -> 11-50 | B54: =IF(AND(A53="",D54<>""),"LEB",IF(D54<>"",1+B53,"")) -> 50 | C54: Información Digital | D54: OFICINA ASESORA DE PLANEACIÓN Y ESTUDIOS SECTORIALES | E54: Documentos Sistema de Gestión de Calidad | F54: Documentos que contienen las políticas y lineamientos a seguir en la ejecución y aplicación de cada uno de los procesos. Está compuesto por: procedimiento Manual de procesos y procedimientos Instructivos Formatos | G54: Archivos Institucionales - electrónico | H54: PDF | I54: Español | J54: No Aplica | K54: https://simig.mintic.gov.co
A55: =IF(D55<>"",VLOOKUP(Formato_ActivosInf_VF!D55,DATA!$B$2:$C$95,2,)&"-"&IF(ISERR(B55),"LEB",B55),"") -> 11-51 | B55: =IF(AND(A54="",D55<>""),"LEB",IF(D55<>"",1+B54,"")) -> 51 | C55: Información Digital | D55: OFICINA ASESORA DE PLANEACIÓN Y ESTUDIOS SECTORIALES | E55: Plan anticorrupción y de atención al ciudadano | F55: Instrumento de tipo preventivo para el control de la corrupción, conforme a lo establecido en la Ley 1474 de 2011 del Estatuto Anticorrupción, cada entidad del orden nacional, departamental y municipal debe elaborar anualmente una estrategia de lucha contra la corrupción y de atención al ciudadano, que contempla, entre otras cosas, el mapa de riesgos de corrupción en la respectiva entidad, las medidas concretas para mitigar esos riesgos, las estrategias antitrámites y los mecanismos para mejorar la atención al ciudadano. Está compuesto por: Plan anticorrupción y de atención al ciudadano Listado de asistencia | G55: Archivos Institucionales - electrónico | H55: PDF | I55: Español | J55: No Aplica | K55: https://mintic.sharepoint.com/Gestion_Humana/transformacion_organizacional/Documentos%20compartidos/Forms/AllItems.aspx?viewid=3632d54b%2Dc64c%2D439b%2Db068%2D62de45b199cb&id=%2FGestion%5FHumana%2Ftransformacion%5Forganizacional%2FDocumentos%20compartidos
A56: =IF(D56<>"",VLOOKUP(Formato_ActivosInf_VF!D56,DATA!$B$2:$C$95,2,)&"-"&IF(ISERR(B56),"LEB",B56),"") -> 12-52 | B56: =IF(AND(A55="",D56<>""),"LEB",IF(D56<>"",1+B55,"")) -> 52 | C56: Información Digital | D56: OFICINA ASESORA DE PRENSA | E56: Boletines Informativos Internos | F56: Elaboración de boletines internos para dar información mensual y/o semanal de toda la información institucional de la entidad y que va dirigida a los servidores. | G56: Portales, Intranet y Extranet | H56: HTML (Página Web) | I56: Español | J56: No Aplica | K56: Correo Electrónico
A57: =IF(D57<>"",VLOOKUP(Formato_ActivosInf_VF!D57,DATA!$B$2:$C$95,2,)&"-"&IF(ISERR(B57),"LEB",B57),"") -> 12-53 | B57: =IF(AND(A56="",D57<>""),"LEB",IF(D57<>"",1+B56,"")) -> 53 | C57: Información Digital | D57: OFICINA ASESORA DE PRENSA | E57: Boletines Informativos Externos | F57: Elaboración de boletines internos para dar información mensual y/o semanal de toda la información institucional de la entidad y que va dirigida a los servidores. | G57: Portales, Intranet y Extranet | H57: HTML (Página Web) | I57: Español | J57: No Aplica | K57: https://www.mintic.gov.co/portal/inicio/
A58: =IF(D58<>"",VLOOKUP(Formato_ActivosInf_VF!D58,DATA!$B$2:$C$95,2,)&"-"&IF(ISERR(B58),"LEB",B58),"") -> 12-54 | B58: =IF(AND(A57="",D58<>""),"LEB",IF(D58<>"",1+B57,"")) -> 54 | C58: Información Digital | D58: OFICINA ASESORA DE PRENSA | E58: Comunicados de Prensa | F58: Elaboración de contenidos escritos orientados a promocionar y socializar la oferta institucional y sus avances. | G58: Portales, Intranet y Extranet | H58: HTML (Página Web) | I58: Español | J58: No Aplica | K58: https://www.mintic.gov.co/portal/inicio/Sala-de-prensa/Noticias/
A59: =IF(D59<>"",VLOOKUP(Formato_ActivosInf_VF!D59,DATA!$B$2:$C$95,2,)&"-"&IF(ISERR(B59),"LEB",B59),"") -> 12-55 | B59: =IF(AND(A58="",D59<>""),"LEB",IF(D59<>"",1+B58,"")) -> 55 | C59: Información Digital | D59: OFICINA ASESORA DE PRENSA | E59: Comunicados de Prensa Internos | F59: Elaboración de contenidos escritos internos orientados a informar a los servidores de la entidad sobre su gestión y noticias de interés. | G59: Portales, Intranet y Extranet | H59: HTML (Página Web) | I59: Español | J59: No Aplica | K59: https://www.mintic.gov.co/portal/inicio/
A60: =IF(D60<>"",VLOOKUP(Formato_ActivosInf_VF!D60,DATA!$B$2:$C$95,2,)&"-"&IF(ISERR(B60),"LEB",B60),"") -> 12-56 | B60: =IF(AND(A59="",D60<>""),"LEB",IF(D60<>"",1+B59,"")) -> 56 | C60: Información Digital | D60: OFICINA ASESORA DE PRENSA | E60: Informes Ejecución de contratos | F60: Diligenciamiento del formato GCC-TIC-FM-055 correspondiente a los contratos de OPS y de proveedores de la OAP. | G60: Archivos Institucionales - electrónico | H60: PDF | I60: Español | J60: No Aplica | K60: https://community.secop.gov.co/STS/Users/Login/Index?SkinName=CCE
A61: =IF(D61<>"",VLOOKUP(Formato_ActivosInf_VF!D61,DATA!$B$2:$C$95,2,)&"-"&IF(ISERR(B61),"LEB",B61),"") -> 12-57 | B61: =IF(AND(A60="",D61<>""),"LEB",IF(D61<>"",1+B60,"")) -> 57 | C61: Información Digital | D61: OFICINA ASESORA DE PRENSA | E61: Respuestas PQRSD | F61: Elaboración de respuestas a Peticiones, Quejas, Reclamos, Sugerencias y Denuncas - PQRSD. | G61: Documentos de Archivo - electrónicos | H61: PDF | I61: Español | J61: No Aplica | K61: https://integratic.mintic.gov.co/AZDigital/Login/Login.php
A62: =IF(D62<>"",VLOOKUP(Formato_ActivosInf_VF!D62,DATA!$B$2:$C$95,2,)&"-"&IF(ISERR(B62),"LEB",B62),"") -> 12-58 | B62: =IF(AND(A61="",D62<>""),"LEB",IF(D62<>"",1+B61,"")) -> 58 | C62: Información Digital | D62: OFICINA ASESORA DE PRENSA | E62: Agenda de comunicaciones | F62: Definición de la agenda de comunicaciones de acuerdo con los temas que se van a divulgar. | G62: Uso de tecnologías en la nube | H62: XLS -PDF | I62: Español | J62: No Aplica | K62: https://mintic.sharepoint.com/Oficina_Asesora_Prensa/Documentos%20compartidos/Forms/AllItems.aspx?viewid=be062fe0%2Df607%2D4314%2Da0bb%2Def19b5735e6c&id=%2FOficina%5FAsesora%5FPrensa%2FDocumentos%20compartidos%2FMIG%202021%2F1%2E%20EVIDENCIA%20CONTROLES%2F2%2E%20CCES2
A63: =IF(D63<>"",VLOOKUP(Formato_ActivosInf_VF!D63,DATA!$B$2:$C$95,2,)&"-"&IF(ISERR(B63),"LEB",B63),"") -> 12-59 | B63: =IF(AND(A62="",D63<>""),"LEB",IF(D63<>"",1+B62,"")) -> 59 | C63: Información Digital | D63: OFICINA ASESORA DE PRENSA | E63: Piezas Gráficas | F63: Documentación soporte (procedimientos y/o manuales y/o instructivos)que utiliza la OAP para la ejecución y cumplimiento de los procesos internos a cargo de la oficina. | G63: Uso de tecnologías en la nube | H63: JPEG | I63: Español | J63: No Aplica | K63: https://mintic.sharepoint.com/Oficina_Asesora_Prensa/contratos/Forms/AllItems.aspx?viewid=5edaf01a%2D4dbb%2D4514%2Daac2%2D842b4633fedd&id=%2FOficina%5FAsesora%5FPrensa%2Fcontratos%2F2021%2FEvidencias%2FDise%C3%B1o
A64: =IF(D64<>"",VLOOKUP(Formato_ActivosInf_VF!D64,DATA!$B$2:$C$95,2,)&"-"&IF(ISERR(B64),"LEB",B64),"") -> 12-60 | B64: =IF(AND(A63="",D64<>""),"LEB",IF(D64<>"",1+B63,"")) -> 60 | C64: Información Digital | D64: OFICINA ASESORA DE PRENSA | E64: Autorización expresa de recolección de material audiovisual de ciudadanos | F64: Documento que da autorización expresa al MinTIC y Fondo Único TIC para la recolección de material audiovisual para la producción de los proyectos audiovisuales. | G64: Documentos de Archivo - electrónicos | H64: Imagen | I64: Español | J64: No Aplica | K64: https://mintic.sharepoint.com/Oficina_Asesora_Prensa/Documentos%20compartidos/Forms/AllItems.aspx?viewpath=%2FOficina%5FAsesora%5FPrensa%2FDocumentos%20compartidos%2FForms%2FAllItems%2Easpx
A65: =IF(D65<>"",VLOOKUP(Formato_ActivosInf_VF!D65,DATA!$B$2:$C$95,2,)&"-"&IF(ISERR(B65),"LEB",B65),"") -> 12-61 | B65: =IF(AND(A64="",D65<>""),"LEB",IF(D65<>"",1+B64,"")) -> 61 | C65: Información Digital | D65: OFICINA ASESORA DE PRENSA | E65: Logos Institucionales | F65: Archivos vectorizados de imagen corporativa de la entidad | G65: Documentos de Archivo - electrónicos | H65: Imagen | I65: Español | J65: No Aplica | K65: https://mintic.sharepoint.com/Oficina_Asesora_Prensa/Documentos%20compartidos/Forms/AllItems.aspx?viewpath=%2FOficina%5FAsesora%5FPrensa%2FDocumentos%
A66: =IF(D66<>"",VLOOKUP(Formato_ActivosInf_VF!D66,DATA!$B$2:$C$95,2,)&"-"&IF(ISERR(B66),"LEB",B66),"") -> 12-62 | B66: =IF(AND(A65="",D66<>""),"LEB",IF(D66<>"",1+B65,"")) -> 62 | C66: Información Digital | D66: OFICINA ASESORA DE PRENSA | E66: Archivo Fotográfico | F66: Recolección de material fotográfico sobre las jornadas de promoción y solicialización de la oferta institucional. | G66: Uso de tecnologías en la nube | H66: Imagen | I66: Español | J66: No Aplica | K66: https://www.flickr.com/
A67: =IF(D67<>"",VLOOKUP(Formato_ActivosInf_VF!D67,DATA!$B$2:$C$95,2,)&"-"&IF(ISERR(B67),"LEB",B67),"") -> 12-63 | B67: =IF(AND(A66="",D67<>""),"LEB",IF(D67<>"",1+B66,"")) -> 63 | C67: Información Digital | D67: OFICINA ASESORA DE PRENSA | E67: Informe de Seguimiento de Administración en Redes Sociales | F67: Reportes de métricas sobre el comportamiento e interacción de los seguidores en redes sociales e informe de recomendaciones. | G67: Uso de tecnologías en la nube | H67: PDF | I67: Español | J67: No Aplica | K67: https://mintic.sharepoint.com/Oficina_Asesora_Prensa/Documentos%20compartidos/Forms/AllItems.aspx?viewpath=%2FOficina%5FAsesora%5FPrensa%2FDocumentos%
A68: =IF(D68<>"",VLOOKUP(Formato_ActivosInf_VF!D68,DATA!$B$2:$C$95,2,)&"-"&IF(ISERR(B68),"LEB",B68),"") -> 12-64 | B68: =IF(AND(A67="",D68<>""),"LEB",IF(D68<>"",1+B67,"")) -> 64 | C68: Información Digital | D68: OFICINA ASESORA DE PRENSA | E68: Producción de medios audiovisuales | F68: Producción de contenidos audivisuales que promocionan y socializan la oferta institucional. | G68: Uso de tecnologías en la nube | H68: JPEG | I68: Español | J68: No Aplica | K68: https://mintic.sharepoint.com/Oficina_Asesora_Prensa/Documentos%20compartidos/Forms/AllItems.aspx?viewpath=%2FOficina%5FAsesora%5FPrensa%2FDocumentos%
A69: =IF(D69<>"",VLOOKUP(Formato_ActivosInf_VF!D69,DATA!$B$2:$C$95,2,)&"-"&IF(ISERR(B69),"LEB",B69),"") -> 12-65 | B69: =IF(AND(A68="",D69<>""),"LEB",IF(D69<>"",1+B68,"")) -> 65 | C69: Información Digital | D69: OFICINA ASESORA DE PRENSA | E69: Esquema de Publicación | F69: Consolidación y divulgación del Esquema de Publicación | G69: Portales, Intranet y Extranet | H69: XLS -PDF | I69: Español | J69: No Aplica | K69: https://www.mintic.gov.co/portal/inicio/Atencion-y-Servicio-a-la-Ciudadania/Transparencia/135890:Esquema-de-Publicacion
A70: =IF(D70<>"",VLOOKUP(Formato_ActivosInf_VF!D70,DATA!$B$2:$C$95,2,)&"-"&IF(ISERR(B70),"LEB",B70),"") -> 12-66 | B70: =IF(AND(A69="",D70<>""),"LEB",IF(D70<>"",1+B69,"")) -> 66 | C70: Información Digital | D70: OFICINA ASESORA DE PRENSA | E70: Documento de Análisis de Medios de Comunicación | F70: Informe de incidencia sobre las noticias del MInTIC y publicadas en los medios locales, regionales, nacionales e internet. | G70: Portales, Intranet y Extranet | H70: PDF | I70: Español | J70: No Aplica | K70: https://mintic.sharepoint.com/Oficina_Asesora_Prensa/Documentos%20compartidos/Forms/AllItems.aspx?viewpath=%2FOficina%5FAsesora%5FPrensa%2FDocumentos%
A71: =IF(D71<>"",VLOOKUP(Formato_ActivosInf_VF!D71,DATA!$B$2:$C$95,2,)&"-"&IF(ISERR(B71),"LEB",B71),"") -> 12-67 | B71: =IF(AND(A70="",D71<>""),"LEB",IF(D71<>"",1+B70,"")) -> 67 | C71: Recurso Humano - P | D71: OFICINA ASESORA DE PRENSA | E71: Colaboradores de Planta | F71: Funcionarios de libre nombramiento y remoción, de carrera administrativa y/o nombrados en provisionalidad | G71: Archivos Institucionales - físicos | H71: No Aplica | I71: Español | J71: No Aplica | K71: No Aplica
A72: =IF(D72<>"",VLOOKUP(Formato_ActivosInf_VF!D72,DATA!$B$2:$C$95,2,)&"-"&IF(ISERR(B72),"LEB",B72),"") -> 12-68 | B72: =IF(AND(A71="",D72<>""),"LEB",IF(D72<>"",1+B71,"")) -> 68 | C72: Recurso Humano - C | D72: OFICINA ASESORA DE PRENSA | E72: Colaboradores Contratistas | F72: Talento humano contratado a través de prestación de servicios o de apoyo a la gestiòn para el cumplimiento de las funciones asignadas a la OAP. | G72: Archivos Institucionales - electrónico | H72: No Aplica | I72: Español | J72: No Aplica | K72: No Aplica
A73: =IF(D73<>"",VLOOKUP(Formato_ActivosInf_VF!D73,DATA!$B$2:$C$95,2,)&"-"&IF(ISERR(B73),"LEB",B73),"") -> 12-69 | B73: =IF(AND(A72="",D73<>""),"LEB",IF(D73<>"",1+B72,"")) -> 69 | C73: Servicio | D73: OFICINA ASESORA DE PRENSA | E73: Proveedores Críticos | F73: Contratistas o proveedores de servicios que apoyan la implementaciòn de la estrategia de divulgación y socialización de la entidad. | G73: Archivos Institucionales - electrónico | H73: No Aplica | I73: Español | J73: No Aplica | K73: https://community.secop.gov.co/STS/Users/Login/Index?SkinName=CCE
A74: =IF(D74<>"",VLOOKUP(Formato_ActivosInf_VF!D74,DATA!$B$2:$C$95,2,)&"-"&IF(ISERR(B74),"LEB",B74),"") -> 12-70 | B74: =IF(AND(A73="",D74<>""),"LEB",IF(D74<>"",1+B73,"")) -> 70 | C74: Información Digital | D74: OFICINA ASESORA DE PRENSA | E74: Redes Sociales MinTIC | F74: Contratistas o proveedores de servicios que apoyan la implementaciòn de la estrategia de divulgación y socialización de la entidad. | G74: Uso de tecnologías en la nube | H74: No Aplica | I74: Español | J74: No Aplica | K74: https://www.facebook.com/MinisterioTIC.Colombia/ https://www.instagram.com/ministerio_tic/ https://twitter.com/Ministerio_TIC https://www.youtube.com/user/minticolombia https://t.me/MinisterioTIC
A75: =IF(D75<>"",VLOOKUP(Formato_ActivosInf_VF!D75,DATA!$B$2:$C$95,2,)&"-"&IF(ISERR(B75),"LEB",B75),"") -> 12-71 | B75: =IF(AND(A74="",D75<>""),"LEB",IF(D75<>"",1+B74,"")) -> 71 | C75: Servicio | D75: OFICINA ASESORA DE PRENSA | E75: Herramientas WEB | F75: Herramientas de seguimiento y medición de las estrategias de divulgación, difusión, promoción y socialización del MinTIC. | G75: Uso de tecnologías en la nube | H75: HTML (Página Web) | I75: Español | J75: No Aplica | K75: https://mailchimp.com https://www.typeform.com
A76: =IF(D76<>"",VLOOKUP(Formato_ActivosInf_VF!D76,DATA!$B$2:$C$95,2,)&"-"&IF(ISERR(B76),"LEB",B76),"") -> 12-72 | B76: =IF(AND(A75="",D76<>""),"LEB",IF(D76<>"",1+B75,"")) -> 72 | C76: Información Digital | D76: OFICINA ASESORA DE PRENSA | E76: Base de datos medios de comunicación externos | F76: Listado de periodistas de medios de comunicación locales, reginales y nacionales que realizan el cubrimiento de noticias del sector TIC. | G76: Uso de tecnologías en la nube | H76: XLS -PDF | I76: Español | J76: No Aplica | K76: https://mintic.sharepoint.com/Oficina_Asesora_Prensa/Documentos%20compartidos/Forms/AllItems.aspx?viewpath=%2FOficina%5FAsesora%5FPrensa%2FDocumentos%
A77: =IF(D77<>"",VLOOKUP(Formato_ActivosInf_VF!D77,DATA!$B$2:$C$95,2,)&"-"&IF(ISERR(B77),"LEB",B77),"") -> 13-73 | B77: =IF(AND(A76="",D77<>""),"LEB",IF(D77<>"",1+B76,"")) -> 73 | C77: Información Digital | D77: OFICINA INTERNACIONAL | E77: Acuerdos Internacionales de Cooperación | F77: Documentos de Acuerdos o Planes de Cooperación realizados entre el Ministerio TIC con instancias internacionales u otros países, que apoyan el desarrollo de las iniciativas del Ministerio derivadas de la política TIC definida. Estos acuerdos generalmente cuentan con un Acta de Inicio o un Convenio de Cooperación; pueden contar con prorrogas u otro si, o generar informes de ejecución por medio de comunicación oficial. | G77: Archivos Institucionales - electrónico | H77: Documento de Texto | I77: Inglés y Español | J77: No Aplica | K77: Espacio de SharePoint de la Oficina Internacional https://mintic.sharepoint.com/oficina_internacional/SitePages/Inicio.aspx
A78: =IF(D78<>"",VLOOKUP(Formato_ActivosInf_VF!D78,DATA!$B$2:$C$95,2,)&"-"&IF(ISERR(B78),"LEB",B78),"") -> 13-74 | B78: =IF(AND(A77="",D78<>""),"LEB",IF(D78<>"",1+B77,"")) -> 74 | C78: Información Digital | D78: OFICINA INTERNACIONAL | E78: Matriz de Seguimiento a Instrumentos de Cooperación | F78: La Matriz de Seguimiento a Instrumentos de Cooperación ses realizada por la Oficina Internacional. En ella se realiza una revisión y actualización constante de los instrumentos de Acuerdos de Cooperación Internacional que estén activos, así como los que se han formado recientemente, que apoyan el desarrollo de las iniciativas del Ministerio derivadas de la política TIC definida. | G78: Documentos de Archivo - electrónicos | H78: Hoja de cálculo | I78: Español | J78: No Aplica | K78: Espacio de SharePoint de la Oficina Internacional https://mintic.sharepoint.com/oficina_internacional/SitePages/Inicio.aspx
A79: =IF(D79<>"",VLOOKUP(Formato_ActivosInf_VF!D79,DATA!$B$2:$C$95,2,)&"-"&IF(ISERR(B79),"LEB",B79),"") -> 13-75 | B79: =IF(AND(A78="",D79<>""),"LEB",IF(D79<>"",1+B78,"")) -> 75 | C79: Información Digital | D79: OFICINA INTERNACIONAL | E79: Informe de Cooperación | F79: Los informes de gestión de Informe de Cooperación, son realizados por la Oficina Internacional y contienen información sobre la gestión de las actividades de cooperación internacional del Ministerio, en apoyo al diseño e implementación de políticas del sector TIC; bajo el marco de la inserción del Ministerio en distintos organismos internacionales, así como el relacionamiento bilaterales y multilaterales en materia de TIC. | G79: Documentos de Archivo - electrónicos | H79: Documento de Texto | I79: Español | J79: No Aplica | K79: Espacio de SharePoint de la Oficina Internacional https://mintic.sharepoint.com/oficina_internacional/SitePages/Inicio.aspx
A80: =IF(D80<>"",VLOOKUP(Formato_ActivosInf_VF!D80,DATA!$B$2:$C$95,2,)&"-"&IF(ISERR(B80),"LEB",B80),"") -> 13-76 | B80: =IF(AND(A79="",D80<>""),"LEB",IF(D80<>"",1+B79,"")) -> 76 | C80: Información Digital | D80: OFICINA INTERNACIONAL | E80: Fichas de Caracterización | F80: En el marco de la definición de la estrategia de cooperación internacional del sector TIC que se afina cada año, la Oficina Internacional realiza un ejercicio de mapeo: tanto de las necesidades, como de las potenciales ofertas de las diferentes áreas de la entidad, que pueden gestionarse por medio de la cooperación internacional, y que pueden así servir de insumos para definir los lineamientos y las acciones de esta estrategia. | G80: Documentos de Archivo - electrónicos | H80: Hoja de cálculo | I80: Español | J80: No Aplica | K80: Espacio de SharePoint de la Oficina Internacional https://mintic.sharepoint.com/oficina_internacional/SitePages/Inicio.aspx
A81: =IF(D81<>"",VLOOKUP(Formato_ActivosInf_VF!D81,DATA!$B$2:$C$95,2,)&"-"&IF(ISERR(B81),"LEB",B81),"") -> 13-77 | B81: =IF(AND(A80="",D81<>""),"LEB",IF(D81<>"",1+B80,"")) -> 77 | C81: Información Física – Digital | D81: OFICINA INTERNACIONAL | E81: Solicitud de Agenda Internacional | F81: Los Formatos de Solicitud de Agenda Internacional son documentos reglamentarios que diligencian los Comisionados para solicitar Comisiones al exterior. | G81: Documentos de Archivo - físicos | H81: Hoja de cálculo | I81: Español | J81: Cra. 8a entre calles 12 y 13 Edificio Murillo Toro piso 2 Archivo Oficina Internacional | K81: Espacio de SharePoint de la Oficina Internacional https://mintic.sharepoint.com/oficina_internacional/SitePages/Inicio.aspx
A82: =IF(D82<>"",VLOOKUP(Formato_ActivosInf_VF!D82,DATA!$B$2:$C$95,2,)&"-"&IF(ISERR(B82),"LEB",B82),"") -> 13-78 | B82: =IF(AND(A81="",D82<>""),"LEB",IF(D82<>"",1+B81,"")) -> 78 | C82: Información Digital | D82: OFICINA INTERNACIONAL | E82: Reporte Agenda Internacional | F82: Los informes de gestión de Reportes de Agenda Internacional son relalizados por los Comisionados sobre las participaciones en escenarios internacionales relevantes del mundo TIC. En ellos se debe relacionar el alcance de los objetivos planteados en el desarrollo de la Comisión. | G82: Documentos de Archivo - electrónicos | H82: Documento de Texto | I82: Español | J82: No Aplica | K82: Espacio de SharePoint de la Oficina Internacional https://mintic.sharepoint.com/oficina_internacional/SitePages/Inicio.aspx
A83: =IF(D83<>"",VLOOKUP(Formato_ActivosInf_VF!D83,DATA!$B$2:$C$95,2,)&"-"&IF(ISERR(B83),"LEB",B83),"") -> 13-79 | B83: =IF(AND(A82="",D83<>""),"LEB",IF(D83<>"",1+B82,"")) -> 79 | C83: Información Digital | D83: OFICINA INTERNACIONAL | E83: Informe de Agenda Internacional | F83: Los informes de gestión de Informe de Agenda Internacional son realizados por la Oficina Internacional y contienen información sobre el ejercicio de las funciones de la Oficina relacionadas con las participaciones en escenarios internacionales relevantes del mundo TIC, posicionando e impulsando la politica TIC definida. | G83: Documentos de Archivo - electrónicos | H83: Documento de Texto | I83: Español | J83: No Aplica | K83: Espacio de SharePoint de la Oficina Internacional https://mintic.sharepoint.com/oficina_internacional/SitePages/Inicio.aspx
A84: =IF(D84<>"",VLOOKUP(Formato_ActivosInf_VF!D84,DATA!$B$2:$C$95,2,)&"-"&IF(ISERR(B84),"LEB",B84),"") -> 13-80 | B84: =IF(AND(A83="",D84<>""),"LEB",IF(D84<>"",1+B83,"")) -> 80 | C84: Información Digital | D84: OFICINA INTERNACIONAL | E84: Matriz de seguimiento de Agenda Internacional | F84: La Matriz de seguimiento de Agenda Internacional es realizada por la Oficina Internacional. En ella se registra mensualmente la información y los detalles realicionados con las solicitudes y las aprobaciones de las Comisiones Internacionales que realiza el Ministerio y sus entidades adscritas. | G84: Documentos de Archivo - electrónicos | H84: Hoja de cálculo | I84: Español | J84: No Aplica | K84: Espacio de SharePoint de la Oficina Internacional https://mintic.sharepoint.com/oficina_internacional/SitePages/Inicio.aspx
A85: =IF(D85<>"",VLOOKUP(Formato_ActivosInf_VF!D85,DATA!$B$2:$C$95,2,)&"-"&IF(ISERR(B85),"LEB",B85),"") -> 13-81 | B85: =IF(AND(A84="",D85<>""),"LEB",IF(D85<>"",1+B84,"")) -> 81 | C85: Información Digital | D85: OFICINA INTERNACIONAL | E85: Actas de Comités Primarios | F85: Las Actas de los Comités Primarios son realizadas por la Oficina Internacional y en ellas se registran los temas y decisiones que se discuten internamente en los Comités sobre las gestiones que realiza la Oficina Internacional. | G85: Documentos de Archivo - electrónicos | H85: Documento de Texto | I85: Español | J85: No Aplica | K85: Espacio de SharePoint de la Oficina Internacional https://mintic.sharepoint.com/oficina_internacional/SitePages/Inicio.aspx
A86: =IF(D86<>"",VLOOKUP(Formato_ActivosInf_VF!D86,DATA!$B$2:$C$95,2,)&"-"&IF(ISERR(B86),"LEB",B86),"") -> 13-82 | B86: =IF(AND(A85="",D86<>""),"LEB",IF(D86<>"",1+B85,"")) -> 82 | C86: Información Digital | D86: OFICINA INTERNACIONAL | E86: Documentación de Apoyo | F86: Conjunto de documentos (Procedimientos de cooperación y agenda) que apoyan la ejecución de las funciones del proceso de la Oficina | G86: Sistemas de Información corporativos | H86: HTML (Página Web) | I86: Español | J86: No Aplica | K86: Publicada en SIMIG:https://simig.mintic.gov.co/Documentacion/frmListadoMaestroDocumentos.aspx
A87: =IF(D87<>"",VLOOKUP(Formato_ActivosInf_VF!D87,DATA!$B$2:$C$95,2,)&"-"&IF(ISERR(B87),"LEB",B87),"") -> 13-83 | B87: =IF(AND(A86="",D87<>""),"LEB",IF(D87<>"",1+B86,"")) -> 83 | C87: Recurso Humano - P | D87: OFICINA INTERNACIONAL | E87: Colaboradores de Planta | F87: Funcioarios nombrados en planta | G87: No Aplica | H87: No Aplica | I87: No Aplica | J87: No Aplica | K87: No Aplica
A88: =IF(D88<>"",VLOOKUP(Formato_ActivosInf_VF!D88,DATA!$B$2:$C$95,2,)&"-"&IF(ISERR(B88),"LEB",B88),"") -> 13-84 | B88: =IF(AND(A87="",D88<>""),"LEB",IF(D88<>"",1+B87,"")) -> 84 | C88: Recurso Humano - C | D88: OFICINA INTERNACIONAL | E88: Colaboradores Contratistas | F88: Colaboradores bajo la modalidad de prestación de servicios | G88: Documentos de Archivo - electrónicos | H88: No Aplica | I88: No Aplica | J88: No Aplica | K88: No Aplica
A89: =IF(D89<>"",VLOOKUP(Formato_ActivosInf_VF!D89,DATA!$B$2:$C$95,2,)&"-"&IF(ISERR(B89),"LEB",B89),"") -> 14-85 | B89: =IF(AND(A88="",D89<>""),"LEB",IF(D89<>"",1+B88,"")) -> 85 | C89: Información Física – Digital | D89: OFICINA DE TECNOLOGÍAS DE LA INFORMACIÓN | E89: Solicitud de cambios | F89: Documento que evidencia la solicitud del cambio y la revisión que se realiza después de la implementación de este | G89: Documentos de Archivo - electrónicos | H89: XLS | I89: Español | J89: No Aplica | K89: Herramienta de gestión de casos de la Oficina de TI (https://serviciosti.mintic.gov.co/)
A90: =IF(D90<>"",VLOOKUP(Formato_ActivosInf_VF!D90,DATA!$B$2:$C$95,2,)&"-"&IF(ISERR(B90),"LEB",B90),"") -> 14-86 | B90: =IF(AND(A89="",D90<>""),"LEB",IF(D90<>"",1+B89,"")) -> 86 | C90: Información Física – Digital | D90: OFICINA DE TECNOLOGÍAS DE LA INFORMACIÓN | E90: Acta de comité de control de cambios | F90: Documento que evidencia lo sucedido en los comités de control de cambios | G90: Documentos de Archivo - físicos | H90: PDF | I90: Español | J90: Oficina de TI | K90: Repositorio SharePoint
A91: =IF(D91<>"",VLOOKUP(Formato_ActivosInf_VF!D91,DATA!$B$2:$C$95,2,)&"-"&IF(ISERR(B91),"LEB",B91),"") -> 14-87 | B91: =IF(AND(A90="",D91<>""),"LEB",IF(D91<>"",1+B90,"")) -> 87 | C91: Información Física – Digital | D91: OFICINA DE TECNOLOGÍAS DE LA INFORMACIÓN | E91: Acta comité cooperación del sistema Colombia TIC | F91: Actas del comité de Cooperación del Sistema Colombia TIC (actas y anexos) | G91: Documentos de Archivo - electrónicos | H91: PDF | I91: Español | J91: Cra. 8a entre calles 12 y 13 Edificio Murillo Toro piso 2, Archivo de Gestión | K91: Repositorio SharePoint
A92: =IF(D92<>"",VLOOKUP(Formato_ActivosInf_VF!D92,DATA!$B$2:$C$95,2,)&"-"&IF(ISERR(B92),"LEB",B92),"") -> 14-88 | B92: =IF(AND(A91="",D92<>""),"LEB",IF(D92<>"",1+B91,"")) -> 88 | C92: Información Física – Digital | D92: OFICINA DE TECNOLOGÍAS DE LA INFORMACIÓN | E92: Acuerdo | F92: Acuerdos de servicios estratégicos con entidades del sector (actas y anexos) | G92: Documento de Archivo | H92: PDF | I92: Español | J92: Cra. 8a entre calles 12 y 13 Edificio Murillo Toro piso 3, Oficina de TI | K92: No Aplica
A93: =IF(D93<>"",VLOOKUP(Formato_ActivosInf_VF!D93,DATA!$B$2:$C$95,2,)&"-"&IF(ISERR(B93),"LEB",B93),"") -> 14-89 | B93: =IF(AND(A92="",D93<>""),"LEB",IF(D93<>"",1+B92,"")) -> 89 | C93: Información Física – Digital | D93: OFICINA DE TECNOLOGÍAS DE LA INFORMACIÓN | E93: Informe de estadísticas sectoriales | F93: Informe de estadísticas del sector | G93: Documento de Archivo | H93: PDF | I93: Español | J93: No Aplica | K93: No Aplica
A94: =IF(D94<>"",VLOOKUP(Formato_ActivosInf_VF!D94,DATA!$B$2:$C$95,2,)&"-"&IF(ISERR(B94),"LEB",B94),"") -> 14-90 | B94: =IF(AND(A93="",D94<>""),"LEB",IF(D94<>"",1+B93,"")) -> 90 | C94: Información Física – Digital | D94: OFICINA DE TECNOLOGÍAS DE LA INFORMACIÓN | E94: Estadísticas sectoriales | F94: Estadísticas del Sector | G94: Documento de Archivo | H94: HTML (Página Web) | I94: Español | J94: No Aplica | K94: Colombia TIC
A95: =IF(D95<>"",VLOOKUP(Formato_ActivosInf_VF!D95,DATA!$B$2:$C$95,2,)&"-"&IF(ISERR(B95),"LEB",B95),"") -> 14-91 | B95: =IF(AND(A94="",D95<>""),"LEB",IF(D95<>"",1+B94,"")) -> 91 | C95: Información Física – Digital | D95: OFICINA DE TECNOLOGÍAS DE LA INFORMACIÓN | E95: Indicadores sectoriales | F95: Informe de los Indicadores del sector | G95: Documento de Archivo | H95: HTML (Página Web) | I95: Español | J95: No Aplica | K95: SIMIG
A96: =IF(D96<>"",VLOOKUP(Formato_ActivosInf_VF!D96,DATA!$B$2:$C$95,2,)&"-"&IF(ISERR(B96),"LEB",B96),"") -> 14-92 | B96: =IF(AND(A95="",D96<>""),"LEB",IF(D96<>"",1+B95,"")) -> 92 | C96: Información Digital | D96: OFICINA DE TECNOLOGÍAS DE LA INFORMACIÓN | E96: Plan Estratégico de tecnologías de la Información PETI | F96: Contiene el plan estratégico de tecnologías de la Información PETI, del ministerio de Tecnologías de Información de acuerdo con las guías de marco de referencia de la arquitectura empresarial. | G96: Documento de Archivo | H96: PDF | I96: Español | J96: No Aplica | K96: https://www.mintic.gov.co/portal/inicio/Planes/Plan-Estrategico-TI/
A97: =IF(D97<>"",VLOOKUP(Formato_ActivosInf_VF!D97,DATA!$B$2:$C$95,2,)&"-"&IF(ISERR(B97),"LEB",B97),"") -> 14-93 | B97: =IF(AND(A96="",D97<>""),"LEB",IF(D97<>"",1+B96,"")) -> 93 | C97: Información Digital | D97: OFICINA DE TECNOLOGÍAS DE LA INFORMACIÓN | E97: Mapa de Proceso | F97: Informes del Proceso de información sectorial | G97: Archivos Institucionales - electrónico | H97: Digital | I97: Español | J97: No Aplica | K97: SIMIG
A98: =IF(D98<>"",VLOOKUP(Formato_ActivosInf_VF!D98,DATA!$B$2:$C$95,2,)&"-"&IF(ISERR(B98),"LEB",B98),"") -> 14-94 | B98: =IF(AND(A97="",D98<>""),"LEB",IF(D98<>"",1+B97,"")) -> 94 | C98: Información Digital | D98: OFICINA DE TECNOLOGÍAS DE LA INFORMACIÓN | E98: Proceso de información sectorial (informes) | F98: Proceso de información sectorial (informes) | G98: Archivos Institucionales - electrónico | H98: Digital | I98: Español | J98: No Aplica | K98: SIMIG
A99: =IF(D99<>"",VLOOKUP(Formato_ActivosInf_VF!D99,DATA!$B$2:$C$95,2,)&"-"&IF(ISERR(B99),"LEB",B99),"") -> 14-95 | B99: =IF(AND(A98="",D99<>""),"LEB",IF(D99<>"",1+B98,"")) -> 95 | C99: Recurso Humano - P | D99: OFICINA DE TECNOLOGÍAS DE LA INFORMACIÓN | E99: Colaboradores Planta | F99: Apoyar los lineamientos, en materia tecnológica, necesarios para definir políticas, estrategias y prácticas que soporten la gestión del sector en beneficio de la prestación efectiva de los servicios | G99: No Aplica | H99: No Aplica | I99: No Aplica | J99: No Aplica | K99: No Aplica
A100: =IF(D100<>"",VLOOKUP(Formato_ActivosInf_VF!D100,DATA!$B$2:$C$95,2,)&"-"&IF(ISERR(B100),"LEB",B100),"") -> 14-96 | B100: =IF(AND(A99="",D100<>""),"LEB",IF(D100<>"",1+B99,"")) -> 96 | C100: Recurso Humano - C | D100: OFICINA DE TECNOLOGÍAS DE LA INFORMACIÓN | E100: Colaboradores Contratistas | F100: Prestar servicios profesionales al Ministerio / Fondo Único de TIC - Oficina de TI con el fin de evolucionar y fortalecer la implementación de la estrategia establecida en el PETI. | G100: No Aplica | H100: No Aplica | I100: No Aplica | J100: No Aplica | K100: No Aplica
A101: =IF(D101<>"",VLOOKUP(Formato_ActivosInf_VF!D101,DATA!$B$2:$C$95,2,)&"-"&IF(ISERR(B101),"LEB",B101),"") -> 14-97 | B101: =IF(AND(A100="",D101<>""),"LEB",IF(D101<>"",1+B100,"")) -> 97 | C101: Información Digital | D101: OFICINA DE TECNOLOGÍAS DE LA INFORMACIÓN | E101: Repositorio Arquitectura Empresarial MinTIC | F101: Repositorio Documental de la Arquitectura TI y Arquitectura Empresarial acorde a Decreto 1008 de 2018, por el cual se establecen los lineamientos de cumplimiento de la estrategia de gobierno en línea, y alineado con el Guía General G.GEN.03 del proceso de arquitectura empresarial, donde se establece el repositorio de Arquitectura Empresarial | G101: Sistemas de Bases de Datos | H101: SQL | I101: Español | J101: No Aplica | K101: Software de escritorio Enterprise Architect
A102: =IF(D102<>"",VLOOKUP(Formato_ActivosInf_VF!D102,DATA!$B$2:$C$95,2,)&"-"&IF(ISERR(B102),"LEB",B102),"") -> 14-98 | B102: =IF(AND(A101="",D102<>""),"LEB",IF(D102<>"",1+B101,"")) -> 98 | C102: Servicio | D102: OFICINA DE TECNOLOGÍAS DE LA INFORMACIÓN | E102: Proveedores críticos | F102: Conjunto de proveedores de servicios de la Oficina de TI | G102: No Aplica | H102: No Aplica | I102: Español | J102: No Aplica | K102: No Aplica
A103: =IF(D103<>"",VLOOKUP(Formato_ActivosInf_VF!D103,DATA!$B$2:$C$95,2,)&"-"&IF(ISERR(B103),"LEB",B103),"") -> 14-99 | B103: =IF(AND(A102="",D103<>""),"LEB",IF(D103<>"",1+B102,"")) -> 99 | C103: Información Digital | D103: OFICINA DE TECNOLOGÍAS DE LA INFORMACIÓN | E103: Documentacion de apoyo para la gestión de la OTI | F103: Conjunto de Manuales procedimientos, instructivos, formatos, manuales, etc. los cuales apoyan la gestión de la OTI | G103: Documentos de Archivo - electrónicos | H103: HTML (Página Web) | I103: Español | J103: No Aplica | K103: https://simig.mintic.gov.co/
A104: =IF(D104<>"",VLOOKUP(Formato_ActivosInf_VF!D104,DATA!$B$2:$C$95,2,)&"-"&IF(ISERR(B104),"LEB",B104),"") -> 14-100 | B104: =IF(AND(A103="",D104<>""),"LEB",IF(D104<>"",1+B103,"")) -> 100 | C104: Información Digital | D104: OFICINA DE TECNOLOGÍAS DE LA INFORMACIÓN | E104: Plan de uso y apropación de la Oficina de TI | F104: Definir un plan específico de conocimiento, uso, apropiación y divulgación de los servicios TI del Ministerio, que soportan sus procesos y apoyan el logro de sus objetivos estratégicos | G104: Documentos de Archivo - electrónicos | H104: PDF | I104: Español | J104: No Aplica | K104: Repositorio interno SharePoint OTI
A105: =IF(D105<>"",VLOOKUP(Formato_ActivosInf_VF!D105,DATA!$B$2:$C$95,2,)&"-"&IF(ISERR(B105),"LEB",B105),"") -> 14-101 | B105: =IF(AND(A104="",D105<>""),"LEB",IF(D105<>"",1+B104,"")) -> 101 | C105: Información Digital | D105: OFICINA DE TECNOLOGÍAS DE LA INFORMACIÓN | E105: Plan de formación de la Oficina de TI | F105: Desarrollar actividades de formación y capacitación dirigidas a generar conocimientos y fortalecer las competencias de los servidores públicos y/o contratistas de la Entidad, con el fin de incrementar la capacidad individual y colectiva de los funcionarios para que logren el cumplimiento de la misión y objetivos institucionales y el eficaz desempeño del cargo | G105: Documentos de Archivo - electrónicos | H105: PDF | I105: Español | J105: No Aplica | K105: Repositorio interno SharePoint OTI
A106: =IF(D106<>"",VLOOKUP(Formato_ActivosInf_VF!D106,DATA!$B$2:$C$95,2,)&"-"&IF(ISERR(B106),"LEB",B106),"") -> 14-102 | B106: =IF(AND(A105="",D106<>""),"LEB",IF(D106<>"",1+B105,"")) -> 102 | C106: Información Digital | D106: OFICINA DE TECNOLOGÍAS DE LA INFORMACIÓN | E106: Plan de remediación de vulnerabilidades. | F106: Documento de seguimiento a la planeación y ejecución de las acciones para remediar las vulnerabilidades de seguridad identificadas en los análisis de seguridad realizados en la Entidad | G106: Documentos de Archivo - electrónicos | H106: XLS | I106: Español | J106: No Aplica | K106: Consulta interna Oficina de TI
A107: =IF(D107<>"",VLOOKUP(Formato_ActivosInf_VF!D107,DATA!$B$2:$C$95,2,)&"-"&IF(ISERR(B107),"LEB",B107),"") -> 1401-103 | B107: =IF(AND(A106="",D107<>""),"LEB",IF(D107<>"",1+B106,"")) -> 103 | C107: Información Digital | D107: GRUPO INTERNO DE TRABAJO DE SERVICIOS TECNOLÓGICOS | E107: Solicitud de cambios | F107: Documento que evidencia la solicitud del cambio y la revisión que se realiza después de la implementación de este | G107: Documentos de Archivo - electrónicos | H107: XLS | I107: Español | J107: No Aplica | K107: Herramienta de gestión de casos de la Oficina de TI (https://serviciosti.mintic.gov.co/)
A108: =IF(D108<>"",VLOOKUP(Formato_ActivosInf_VF!D108,DATA!$B$2:$C$95,2,)&"-"&IF(ISERR(B108),"LEB",B108),"") -> 1401-104 | B108: =IF(AND(A107="",D108<>""),"LEB",IF(D108<>"",1+B107,"")) -> 104 | C108: Información Física – Digital | D108: GRUPO INTERNO DE TRABAJO DE SERVICIOS TECNOLÓGICOS | E108: Acta de comité de control de cambios | F108: Documento que evidencia lo sucedido en los comités de control de cambios | G108: Documentos de Archivo - físicos | H108: PDF | I108: Español | J108: Cra. 8a entre calles 12 y 13 Edificio Murillo Toro piso 3, Oficina de TI | K108: Repositorio SharePoint
A109: =IF(D109<>"",VLOOKUP(Formato_ActivosInf_VF!D109,DATA!$B$2:$C$95,2,)&"-"&IF(ISERR(B109),"LEB",B109),"") -> 1401-105 | B109: =IF(AND(A108="",D109<>""),"LEB",IF(D109<>"",1+B108,"")) -> 105 | C109: Información Digital | D109: GRUPO INTERNO DE TRABAJO DE SERVICIOS TECNOLÓGICOS | E109: Informe de Gestión | F109: Informes de Gestión técnicos o de actividades relacionadas con la Coordinación deservicios tecnológicos | G109: Documentos de Archivo - electrónicos | H109: PDF | I109: Español | J109: No Aplica | K109: Herramienta de gestión de casos de la Oficina de TI (https://serviciosti.mintic.gov.co/)
A110: =IF(D110<>"",VLOOKUP(Formato_ActivosInf_VF!D110,DATA!$B$2:$C$95,2,)&"-"&IF(ISERR(B110),"LEB",B110),"") -> 1401-106 | B110: =IF(AND(A109="",D110<>""),"LEB",IF(D110<>"",1+B109,"")) -> 106 | C110: Información Digital | D110: GRUPO INTERNO DE TRABAJO DE SERVICIOS TECNOLÓGICOS | E110: Estadísticas | F110: Estadísticas de servicios tecnológicos | G110: Documentos de Archivo - electrónicos | H110: PDF | I110: Español | J110: No Aplica | K110: Repositorio de Servicios Tecnologicos
A111: =IF(D111<>"",VLOOKUP(Formato_ActivosInf_VF!D111,DATA!$B$2:$C$95,2,)&"-"&IF(ISERR(B111),"LEB",B111),"") -> 1401-107 | B111: =IF(AND(A110="",D111<>""),"LEB",IF(D111<>"",1+B110,"")) -> 107 | C111: Información Digital | D111: GRUPO INTERNO DE TRABAJO DE SERVICIOS TECNOLÓGICOS | E111: Indicadores | F111: Indicadores de servicios tecnológicos | G111: Documentos de Archivo - electrónicos | H111: PDF | I111: Español | J111: No Aplica | K111: Repositorio de Servicios Tecnologicos
A112: =IF(D112<>"",VLOOKUP(Formato_ActivosInf_VF!D112,DATA!$B$2:$C$95,2,)&"-"&IF(ISERR(B112),"LEB",B112),"") -> 1401-108 | B112: =IF(AND(A111="",D112<>""),"LEB",IF(D112<>"",1+B111,"")) -> 108 | C112: Información Digital | D112: GRUPO INTERNO DE TRABAJO DE SERVICIOS TECNOLÓGICOS | E112: Plan de para el desarrollo, administración y control de la infraestructura tecnológica en la Entidad para el soporte de los servicios tecnológicos y de información | F112: Plan que contiene los diferentes planes administración y control de la infraestructura tecnológica | G112: Documentos de Archivo - electrónicos | H112: PDF | I112: Español | J112: No Aplica | K112: Repositorio de Servicios Tecnologicos
A113: =IF(D113<>"",VLOOKUP(Formato_ActivosInf_VF!D113,DATA!$B$2:$C$95,2,)&"-"&IF(ISERR(B113),"LEB",B113),"") -> 1401-109 | B113: =IF(AND(A112="",D113<>""),"LEB",IF(D113<>"",1+B112,"")) -> 109 | C113: Información Digital | D113: GRUPO INTERNO DE TRABAJO DE SERVICIOS TECNOLÓGICOS | E113: Plan de mantenimiento | F113: Documento con el plan de mantenimiento de los equipos de computo o UPS o aires acondicionados de MINTIC. | G113: Documentos de Archivo - electrónicos | H113: XLS -PDF | I113: Español | J113: No Aplica | K113: Consulta interna Oficina de TI
A114: =IF(D114<>"",VLOOKUP(Formato_ActivosInf_VF!D114,DATA!$B$2:$C$95,2,)&"-"&IF(ISERR(B114),"LEB",B114),"") -> 1401-110 | B114: =IF(AND(A113="",D114<>""),"LEB",IF(D114<>"",1+B113,"")) -> 110 | C114: Información Digital | D114: GRUPO INTERNO DE TRABAJO DE SERVICIOS TECNOLÓGICOS | E114: Plan de recuperación de desastres de TI | F114: Documento con el Plan de recuperación de desastres de TI. El documento contiene las fases para implementar el plan de recuperación de desastres de TI. | G114: Documentos de Archivo - electrónicos | H114: PDF | I114: Español | J114: No Aplica | K114: Consulta interna Oficina de TI
A115: =IF(D115<>"",VLOOKUP(Formato_ActivosInf_VF!D115,DATA!$B$2:$C$95,2,)&"-"&IF(ISERR(B115),"LEB",B115),"") -> 1401-111 | B115: =IF(AND(A114="",D115<>""),"LEB",IF(D115<>"",1+B114,"")) -> 111 | C115: Información Digital | D115: GRUPO INTERNO DE TRABAJO DE SERVICIOS TECNOLÓGICOS | E115: Plan de gestión de la capacidad | F115: Documento con el plan de gestión de la capacidad de los equipos de computo de MINTIC. El documento contiene el detalle de las capacidades de infraestructura de MinTIC y la proyección de crecimiento. | G115: Documentos de Archivo - electrónicos | H115: PDF | I115: Español | J115: No Aplica | K115: Consulta interna Oficina de TI
A116: =IF(D116<>"",VLOOKUP(Formato_ActivosInf_VF!D116,DATA!$B$2:$C$95,2,)&"-"&IF(ISERR(B116),"LEB",B116),"") -> 1401-112 | B116: =IF(AND(A115="",D116<>""),"LEB",IF(D116<>"",1+B115,"")) -> 112 | C116: Información Digital | D116: GRUPO INTERNO DE TRABAJO DE SERVICIOS TECNOLÓGICOS | E116: Plan de gestión de contingencia de TI | F116: Documento con el plan de gestión de contingencia de TI de los equipos de cómputo y soluciones de MINTIC. | G116: Documentos de Archivo - electrónicos | H116: PDF | I116: Español | J116: No Aplica | K116: Consulta interna Oficina de TI
A117: =IF(D117<>"",VLOOKUP(Formato_ActivosInf_VF!D117,DATA!$B$2:$C$95,2,)&"-"&IF(ISERR(B117),"LEB",B117),"") -> 1401-113 | B117: =IF(AND(A116="",D117<>""),"LEB",IF(D117<>"",1+B116,"")) -> 113 | C117: Información Digital | D117: GRUPO INTERNO DE TRABAJO DE SERVICIOS TECNOLÓGICOS | E117: Plan de respaldo y restauración | F117: Documento con el plan de respaldo y restauración de los sistemas de información y servidores. | G117: Documentos de Archivo - físicos | H117: PDF | I117: Español | J117: No Aplica | K117: Sharepoint Oficina de TI
A118: =IF(D118<>"",VLOOKUP(Formato_ActivosInf_VF!D118,DATA!$B$2:$C$95,2,)&"-"&IF(ISERR(B118),"LEB",B118),"") -> 1401-114 | B118: =IF(AND(A117="",D118<>""),"LEB",IF(D118<>"",1+B117,"")) -> 114 | C118: Hardware | D118: GRUPO INTERNO DE TRABAJO DE SERVICIOS TECNOLÓGICOS | E118: Ucsserver3 | F118: endpoint, Identidad, relay correo, webapp, micrositios, archivo, owncloud | G118: No Aplica | H118: No Aplica | I118: Inglés y Español | J118: Cra. 8a entre calles 12 y 13 Edificio Murillo Toro piso 3 DataCenter MinTIC | K118: No Aplica
A119: =IF(D119<>"",VLOOKUP(Formato_ActivosInf_VF!D119,DATA!$B$2:$C$95,2,)&"-"&IF(ISERR(B119),"LEB",B119),"") -> 1401-115 | B119: =IF(AND(A118="",D119<>""),"LEB",IF(D119<>"",1+B118,"")) -> 115 | C119: Hardware | D119: GRUPO INTERNO DE TRABAJO DE SERVICIOS TECNOLÓGICOS | E119: Girasol.mintic.gov.co | F119: App, Bd, Vmware DWH SCOM portales 3PAR BIG DATA redvolucion ASPA ZAFFIRO ISOLUCION - SIMG Condonaciones VIRTUALIZACION Red Indigo APP SCOM stagging Zona wifi gratis para la gente SIMONTIC | G119: No Aplica | H119: No Aplica | I119: Inglés y Español | J119: Cra. 8a entre calles 12 y 13 Edificio Murillo Toro piso 3 DataCenter MinTIC | K119: No Aplica
A120: =IF(D120<>"",VLOOKUP(Formato_ActivosInf_VF!D120,DATA!$B$2:$C$95,2,)&"-"&IF(ISERR(B120),"LEB",B120),"") -> 1401-116 | B120: =IF(AND(A119="",D120<>""),"LEB",IF(D120<>"",1+B119,"")) -> 116 | C120: Hardware | D120: GRUPO INTERNO DE TRABAJO DE SERVICIOS TECNOLÓGICOS | E120: Aleluya | F120: App | G120: No Aplica | H120: No Aplica | I120: Inglés y Español | J120: Cra. 8a entre calles 12 y 13 Edificio Murillo Toro piso 3 DataCenter MinTIC | K120: No Aplica
A121: =IF(D121<>"",VLOOKUP(Formato_ActivosInf_VF!D121,DATA!$B$2:$C$95,2,)&"-"&IF(ISERR(B121),"LEB",B121),"") -> 1401-117 | B121: =IF(AND(A120="",D121<>""),"LEB",IF(D121<>"",1+B120,"")) -> 117 | C121: Hardware | D121: GRUPO INTERNO DE TRABAJO DE SERVICIOS TECNOLÓGICOS | E121: Cw_prime_ls | F121: aplicaciones-MONITOREO DATACENTER | G121: No Aplica | H121: No Aplica | I121: Inglés y Español | J121: Cra. 8a entre calles 12 y 13 Edificio Murillo Toro piso 3 DataCenter MinTIC | K121: No Aplica
A122: =IF(D122<>"",VLOOKUP(Formato_ActivosInf_VF!D122,DATA!$B$2:$C$95,2,)&"-"&IF(ISERR(B122),"LEB",B122),"") -> 1401-118 | B122: =IF(AND(A121="",D122<>""),"LEB",IF(D122<>"",1+B121,"")) -> 118 | C122: Hardware | D122: GRUPO INTERNO DE TRABAJO DE SERVICIOS TECNOLÓGICOS | E122: Cwwcs | F122: aplicaciones-MONITOREO DATACENTER | G122: No Aplica | H122: No Aplica | I122: Inglés y Español | J122: Cra. 8a entre calles 12 y 13 Edificio Murillo Toro piso 3 DataCenter MinTIC | K122: No Aplica
A123: =IF(D123<>"",VLOOKUP(Formato_ActivosInf_VF!D123,DATA!$B$2:$C$95,2,)&"-"&IF(ISERR(B123),"LEB",B123),"") -> 1401-119 | B123: =IF(AND(A122="",D123<>""),"LEB",IF(D123<>"",1+B122,"")) -> 119 | C123: Hardware | D123: GRUPO INTERNO DE TRABAJO DE SERVICIOS TECNOLÓGICOS | E123: Dentaria | F123: App, Open LDAP, PHP MY ADMIN | G123: No Aplica | H123: No Aplica | I123: Inglés y Español | J123: Cra. 8a entre calles 12 y 13 Edificio Murillo Toro piso 3 DataCenter MinTIC | K123: No Aplica
A124: =IF(D124<>"",VLOOKUP(Formato_ActivosInf_VF!D124,DATA!$B$2:$C$95,2,)&"-"&IF(ISERR(B124),"LEB",B124),"") -> 1401-120 | B124: =IF(AND(A123="",D124<>""),"LEB",IF(D124<>"",1+B123,"")) -> 120 | C124: Hardware | D124: GRUPO INTERNO DE TRABAJO DE SERVICIOS TECNOLÓGICOS | E124: Enclosure C7000 Bahia 1 | F124: App, Data protector | G124: No Aplica | H124: No Aplica | I124: Inglés y Español | J124: Cra. 8a entre calles 12 y 13 Edificio Murillo Toro piso 3 DataCenter MinTIC | K124: No Aplica
A125: =IF(D125<>"",VLOOKUP(Formato_ActivosInf_VF!D125,DATA!$B$2:$C$95,2,)&"-"&IF(ISERR(B125),"LEB",B125),"") -> 1401-121 | B125: =IF(AND(A124="",D125<>""),"LEB",IF(D125<>"",1+B124,"")) -> 121 | C125: Hardware | D125: GRUPO INTERNO DE TRABAJO DE SERVICIOS TECNOLÓGICOS | E125: Enclosure C7000 Bahia 15 | F125: BD, SAGE | G125: No Aplica | H125: No Aplica | I125: Inglés y Español | J125: Cra. 8a entre calles 12 y 13 Edificio Murillo Toro piso 3 DataCenter MinTIC | K125: No Aplica
A126: =IF(D126<>"",VLOOKUP(Formato_ActivosInf_VF!D126,DATA!$B$2:$C$95,2,)&"-"&IF(ISERR(B126),"LEB",B126),"") -> 1401-122 | B126: =IF(AND(A125="",D126<>""),"LEB",IF(D126<>"",1+B125,"")) -> 122 | C126: Hardware | D126: GRUPO INTERNO DE TRABAJO DE SERVICIOS TECNOLÓGICOS | E126: Enclosure C7000 Bahia 16 | F126: App, SAGE | G126: No Aplica | H126: No Aplica | I126: Inglés y Español | J126: Cra. 8a entre calles 12 y 13 Edificio Murillo Toro piso 3 DataCenter MinTIC | K126: No Aplica
A127: =IF(D127<>"",VLOOKUP(Formato_ActivosInf_VF!D127,DATA!$B$2:$C$95,2,)&"-"&IF(ISERR(B127),"LEB",B127),"") -> 1401-123 | B127: =IF(AND(A126="",D127<>""),"LEB",IF(D127<>"",1+B126,"")) -> 123 | C127: Hardware | D127: GRUPO INTERNO DE TRABAJO DE SERVICIOS TECNOLÓGICOS | E127: Enclosure C7000 Bahia 4 | F127: BD, AURAPORTAL 4.2 | G127: No Aplica | H127: No Aplica | I127: Inglés y Español | J127: Cra. 8a entre calles 12 y 13 Edificio Murillo Toro piso 3 DataCenter MinTIC | K127: No Aplica
A128: =IF(D128<>"",VLOOKUP(Formato_ActivosInf_VF!D128,DATA!$B$2:$C$95,2,)&"-"&IF(ISERR(B128),"LEB",B128),"") -> 1401-124 | B128: =IF(AND(A127="",D128<>""),"LEB",IF(D128<>"",1+B127,"")) -> 124 | C128: Hardware | D128: GRUPO INTERNO DE TRABAJO DE SERVICIOS TECNOLÓGICOS | E128: Enclosure C7000 Bahia 5 | F128: App, AURAPORTAL 4.2 | G128: No Aplica | H128: No Aplica | I128: Inglés y Español | J128: Cra. 8a entre calles 12 y 13 Edificio Murillo Toro piso 3 DataCenter MinTIC | K128: No Aplica
A129: =IF(D129<>"",VLOOKUP(Formato_ActivosInf_VF!D129,DATA!$B$2:$C$95,2,)&"-"&IF(ISERR(B129),"LEB",B129),"") -> 1401-125 | B129: =IF(AND(A128="",D129<>""),"LEB",IF(D129<>"",1+B128,"")) -> 125 | C129: Hardware | D129: GRUPO INTERNO DE TRABAJO DE SERVICIOS TECNOLÓGICOS | E129: Enclosure C7000 Bahia 7 | F129: App, SAGE | G129: No Aplica | H129: No Aplica | I129: Inglés y Español | J129: Cra. 8a entre calles 12 y 13 Edificio Murillo Toro piso 3 DataCenter MinTIC | K129: No Aplica
A130: =IF(D130<>"",VLOOKUP(Formato_ActivosInf_VF!D130,DATA!$B$2:$C$95,2,)&"-"&IF(ISERR(B130),"LEB",B130),"") -> 1401-126 | B130: =IF(AND(A129="",D130<>""),"LEB",IF(D130<>"",1+B129,"")) -> 126 | C130: Hardware | D130: GRUPO INTERNO DE TRABAJO DE SERVICIOS TECNOLÓGICOS | E130: Enclosure C7000 Bahia 8 | F130: App, SAGE | G130: No Aplica | H130: No Aplica | I130: Inglés y Español | J130: Cra. 8a entre calles 12 y 13 Edificio Murillo Toro piso 3 DataCenter MinTIC | K130: No Aplica
A131: =IF(D131<>"",VLOOKUP(Formato_ActivosInf_VF!D131,DATA!$B$2:$C$95,2,)&"-"&IF(ISERR(B131),"LEB",B131),"") -> 1401-127 | B131: =IF(AND(A130="",D131<>""),"LEB",IF(D131<>"",1+B130,"")) -> 127 | C131: Hardware | D131: GRUPO INTERNO DE TRABAJO DE SERVICIOS TECNOLÓGICOS | E131: IBM | F131: Telefonía | G131: No Aplica | H131: No Aplica | I131: Inglés y Español | J131: Cra. 8a entre calles 12 y 13 Edificio Murillo Toro piso 3 DataCenter MinTIC | K131: No Aplica
A132: =IF(D132<>"",VLOOKUP(Formato_ActivosInf_VF!D132,DATA!$B$2:$C$95,2,)&"-"&IF(ISERR(B132),"LEB",B132),"") -> 1401-128 | B132: =IF(AND(A131="",D132<>""),"LEB",IF(D132<>"",1+B131,"")) -> 128 | C132: Hardware | D132: GRUPO INTERNO DE TRABAJO DE SERVICIOS TECNOLÓGICOS | E132: Integración | F132: App, INTEGRACION | G132: No Aplica | H132: No Aplica | I132: Inglés y Español | J132: Cra. 8a entre calles 12 y 13 Edificio Murillo Toro piso 3 DataCenter MinTIC | K132: No Aplica
A133: =IF(D133<>"",VLOOKUP(Formato_ActivosInf_VF!D133,DATA!$B$2:$C$95,2,)&"-"&IF(ISERR(B133),"LEB",B133),"") -> 1401-129 | B133: =IF(AND(A132="",D133<>""),"LEB",IF(D133<>"",1+B132,"")) -> 129 | C133: Hardware | D133: GRUPO INTERNO DE TRABAJO DE SERVICIOS TECNOLÓGICOS | E133: Mirra | F133: App, AD - DNS | G133: No Aplica | H133: No Aplica | I133: Inglés y Español | J133: Cra. 8a entre calles 12 y 13 Edificio Murillo Toro piso 3 DataCenter MinTIC | K133: No Aplica
A134: =IF(D134<>"",VLOOKUP(Formato_ActivosInf_VF!D134,DATA!$B$2:$C$95,2,)&"-"&IF(ISERR(B134),"LEB",B134),"") -> 1401-130 | B134: =IF(AND(A133="",D134<>""),"LEB",IF(D134<>"",1+B133,"")) -> 130 | C134: Hardware | D134: GRUPO INTERNO DE TRABAJO DE SERVICIOS TECNOLÓGICOS | E134: Naranjo | F134: App, File Controller | G134: No Aplica | H134: No Aplica | I134: Inglés y Español | J134: Cra. 8a entre calles 12 y 13 Edificio Murillo Toro piso 3 DataCenter MinTIC | K134: No Aplica
A135: =IF(D135<>"",VLOOKUP(Formato_ActivosInf_VF!D135,DATA!$B$2:$C$95,2,)&"-"&IF(ISERR(B135),"LEB",B135),"") -> 1401-131 | B135: =IF(AND(A134="",D135<>""),"LEB",IF(D135<>"",1+B134,"")) -> 131 | C135: Hardware | D135: GRUPO INTERNO DE TRABAJO DE SERVICIOS TECNOLÓGICOS | E135: Netserver lh3 | F135: Telefonía, NETSERVER LH3 | G135: No Aplica | H135: No Aplica | I135: Inglés y Español | J135: Cra. 8a entre calles 12 y 13 Edificio Murillo Toro piso 3 DataCenter MinTIC | K135: No Aplica
A136: =IF(D136<>"",VLOOKUP(Formato_ActivosInf_VF!D136,DATA!$B$2:$C$95,2,)&"-"&IF(ISERR(B136),"LEB",B136),"") -> 1401-132 | B136: =IF(AND(A135="",D136<>""),"LEB",IF(D136<>"",1+B135,"")) -> 132 | C136: Hardware | D136: GRUPO INTERNO DE TRABAJO DE SERVICIOS TECNOLÓGICOS | E136: Ucs Chasis1 Bahia 1 | F136: App, UCS APP | G136: No Aplica | H136: No Aplica | I136: Inglés y Español | J136: Cra. 8a entre calles 12 y 13 Edificio Murillo Toro piso 3 DataCenter MinTIC | K136: No Aplica
A137: =IF(D137<>"",VLOOKUP(Formato_ActivosInf_VF!D137,DATA!$B$2:$C$95,2,)&"-"&IF(ISERR(B137),"LEB",B137),"") -> 1401-133 | B137: =IF(AND(A136="",D137<>""),"LEB",IF(D137<>"",1+B136,"")) -> 133 | C137: Hardware | D137: GRUPO INTERNO DE TRABAJO DE SERVICIOS TECNOLÓGICOS | E137: Ucs Chasis1 Bahia 2 | F137: App, VMWARE ESXI | G137: No Aplica | H137: No Aplica | I137: Inglés y Español | J137: Cra. 8a entre calles 12 y 13 Edificio Murillo Toro piso 3 DataCenter MinTIC | K137: No Aplica
A138: =IF(D138<>"",VLOOKUP(Formato_ActivosInf_VF!D138,DATA!$B$2:$C$95,2,)&"-"&IF(ISERR(B138),"LEB",B138),"") -> 1401-134 | B138: =IF(AND(A137="",D138<>""),"LEB",IF(D138<>"",1+B137,"")) -> 134 | C138: Hardware | D138: GRUPO INTERNO DE TRABAJO DE SERVICIOS TECNOLÓGICOS | E138: Ucs Chasis1 Bahia 3 | F138: App, UCSORACLE | G138: No Aplica | H138: No Aplica | I138: Inglés y Español | J138: Cra. 8a entre calles 12 y 13 Edificio Murillo Toro piso 3 DataCenter MinTIC | K138: No Aplica
A139: =IF(D139<>"",VLOOKUP(Formato_ActivosInf_VF!D139,DATA!$B$2:$C$95,2,)&"-"&IF(ISERR(B139),"LEB",B139),"") -> 1401-135 | B139: =IF(AND(A138="",D139<>""),"LEB",IF(D139<>"",1+B138,"")) -> 135 | C139: Hardware | D139: GRUPO INTERNO DE TRABAJO DE SERVICIOS TECNOLÓGICOS | E139: Ucs Chasis1 Bahia 4 | F139: App, UCSORACLE | G139: No Aplica | H139: No Aplica | I139: Inglés y Español | J139: Cra. 8a entre calles 12 y 13 Edificio Murillo Toro piso 3 DataCenter MinTIC | K139: No Aplica
A140: =IF(D140<>"",VLOOKUP(Formato_ActivosInf_VF!D140,DATA!$B$2:$C$95,2,)&"-"&IF(ISERR(B140),"LEB",B140),"") -> 1401-136 | B140: =IF(AND(A139="",D140<>""),"LEB",IF(D140<>"",1+B139,"")) -> 136 | C140: Hardware | D140: GRUPO INTERNO DE TRABAJO DE SERVICIOS TECNOLÓGICOS | E140: Ucs Chasis1 Bahia 5 | F140: App, VMWARE ESXI | G140: No Aplica | H140: No Aplica | I140: Inglés y Español | J140: Cra. 8a entre calles 12 y 13 Edificio Murillo Toro piso 3 DataCenter MinTIC | K140: No Aplica
A141: =IF(D141<>"",VLOOKUP(Formato_ActivosInf_VF!D141,DATA!$B$2:$C$95,2,)&"-"&IF(ISERR(B141),"LEB",B141),"") -> 1401-137 | B141: =IF(AND(A140="",D141<>""),"LEB",IF(D141<>"",1+B140,"")) -> 137 | C141: Hardware | D141: GRUPO INTERNO DE TRABAJO DE SERVICIOS TECNOLÓGICOS | E141: Ucs Chasis1 Bahia 6 | F141: App, VMWARE ESXI | G141: No Aplica | H141: No Aplica | I141: Inglés y Español | J141: Cra. 8a entre calles 12 y 13 Edificio Murillo Toro piso 3 DataCenter MinTIC | K141: No Aplica
A142: =IF(D142<>"",VLOOKUP(Formato_ActivosInf_VF!D142,DATA!$B$2:$C$95,2,)&"-"&IF(ISERR(B142),"LEB",B142),"") -> 1401-138 | B142: =IF(AND(A141="",D142<>""),"LEB",IF(D142<>"",1+B141,"")) -> 138 | C142: Hardware | D142: GRUPO INTERNO DE TRABAJO DE SERVICIOS TECNOLÓGICOS | E142: Ucs Chasis1 Bahia 7 | F142: App, UCS BD | G142: No Aplica | H142: No Aplica | I142: Inglés y Español | J142: Cra. 8a entre calles 12 y 13 Edificio Murillo Toro piso 3 DataCenter MinTIC | K142: No Aplica
A143: =IF(D143<>"",VLOOKUP(Formato_ActivosInf_VF!D143,DATA!$B$2:$C$95,2,)&"-"&IF(ISERR(B143),"LEB",B143),"") -> 1401-139 | B143: =IF(AND(A142="",D143<>""),"LEB",IF(D143<>"",1+B142,"")) -> 139 | C143: Hardware | D143: GRUPO INTERNO DE TRABAJO DE SERVICIOS TECNOLÓGICOS | E143: Ucs Chasis1 Bahia 8 | F143: App, UCS BD | G143: No Aplica | H143: No Aplica | I143: Inglés y Español | J143: Cra. 8a entre calles 12 y 13 Edificio Murillo Toro piso 3 DataCenter MinTIC | K143: No Aplica
A144: =IF(D144<>"",VLOOKUP(Formato_ActivosInf_VF!D144,DATA!$B$2:$C$95,2,)&"-"&IF(ISERR(B144),"LEB",B144),"") -> 1401-140 | B144: =IF(AND(A143="",D144<>""),"LEB",IF(D144<>"",1+B143,"")) -> 140 | C144: Hardware | D144: GRUPO INTERNO DE TRABAJO DE SERVICIOS TECNOLÓGICOS | E144: Ucs Chasis2 Bahia 3 | F144: App, VMWARE ESXI | G144: No Aplica | H144: No Aplica | I144: Inglés y Español | J144: Cra. 8a entre calles 12 y 13 Edificio Murillo Toro piso 3 DataCenter MinTIC | K144: No Aplica
A145: =IF(D145<>"",VLOOKUP(Formato_ActivosInf_VF!D145,DATA!$B$2:$C$95,2,)&"-"&IF(ISERR(B145),"LEB",B145),"") -> 1401-141 | B145: =IF(AND(A144="",D145<>""),"LEB",IF(D145<>"",1+B144,"")) -> 141 | C145: Hardware | D145: GRUPO INTERNO DE TRABAJO DE SERVICIOS TECNOLÓGICOS | E145: Ucs Chasis2 Bahia 4 | F145: App, VMWARE ESXI | G145: No Aplica | H145: No Aplica | I145: Inglés y Español | J145: Cra. 8a entre calles 12 y 13 Edificio Murillo Toro piso 3 DataCenter MinTIC | K145: No Aplica
A146: =IF(D146<>"",VLOOKUP(Formato_ActivosInf_VF!D146,DATA!$B$2:$C$95,2,)&"-"&IF(ISERR(B146),"LEB",B146),"") -> 1401-142 | B146: =IF(AND(A145="",D146<>""),"LEB",IF(D146<>"",1+B145,"")) -> 142 | C146: Hardware | D146: GRUPO INTERNO DE TRABAJO DE SERVICIOS TECNOLÓGICOS | E146: Ucs Chasis2 Bahia 5 | F146: App, VMWARE ESXI | G146: No Aplica | H146: No Aplica | I146: Inglés y Español | J146: Cra. 8a entre calles 12 y 13 Edificio Murillo Toro piso 3 DataCenter MinTIC | K146: No Aplica
A147: =IF(D147<>"",VLOOKUP(Formato_ActivosInf_VF!D147,DATA!$B$2:$C$95,2,)&"-"&IF(ISERR(B147),"LEB",B147),"") -> 1401-143 | B147: =IF(AND(A146="",D147<>""),"LEB",IF(D147<>"",1+B146,"")) -> 143 | C147: Hardware | D147: GRUPO INTERNO DE TRABAJO DE SERVICIOS TECNOLÓGICOS | E147: Ucs Chasis2 Bahia 6 | F147: App, VMWARE ESXI | G147: No Aplica | H147: No Aplica | I147: Inglés y Español | J147: Cra. 8a entre calles 12 y 13 Edificio Murillo Toro piso 3 DataCenter MinTIC | K147: No Aplica
A148: =IF(D148<>"",VLOOKUP(Formato_ActivosInf_VF!D148,DATA!$B$2:$C$95,2,)&"-"&IF(ISERR(B148),"LEB",B148),"") -> 1401-144 | B148: =IF(AND(A147="",D148<>""),"LEB",IF(D148<>"",1+B147,"")) -> 144 | C148: Hardware | D148: GRUPO INTERNO DE TRABAJO DE SERVICIOS TECNOLÓGICOS | E148: Ucs Chasis2 Bahia 7 | F148: App, VMWARE ESXI | G148: No Aplica | H148: No Aplica | I148: Inglés y Español | J148: Cra. 8a entre calles 12 y 13 Edificio Murillo Toro piso 3 DataCenter MinTIC | K148: No Aplica
A149: =IF(D149<>"",VLOOKUP(Formato_ActivosInf_VF!D149,DATA!$B$2:$C$95,2,)&"-"&IF(ISERR(B149),"LEB",B149),"") -> 1401-145 | B149: =IF(AND(A148="",D149<>""),"LEB",IF(D149<>"",1+B148,"")) -> 145 | C149: Hardware | D149: GRUPO INTERNO DE TRABAJO DE SERVICIOS TECNOLÓGICOS | E149: Ucs Chasis2 Bahia 8 | F149: App, VMWARE ESXI | G149: No Aplica | H149: No Aplica | I149: Inglés y Español | J149: Cra. 8a entre calles 12 y 13 Edificio Murillo Toro piso 3 DataCenter MinTIC | K149: No Aplica
A150: =IF(D150<>"",VLOOKUP(Formato_ActivosInf_VF!D150,DATA!$B$2:$C$95,2,)&"-"&IF(ISERR(B150),"LEB",B150),"") -> 1401-146 | B150: =IF(AND(A149="",D150<>""),"LEB",IF(D150<>"",1+B149,"")) -> 146 | C150: Hardware | D150: GRUPO INTERNO DE TRABAJO DE SERVICIOS TECNOLÓGICOS | E150: Ucsserver1 | F150: App Managemen OVM AD - DNS - CA CA Mintic AD - DNS - FSMO Principal Subsidios Internet Log and event colector | G150: No Aplica | H150: No Aplica | I150: Inglés y Español | J150: Cra. 8a entre calles 12 y 13 Edificio Murillo Toro piso 3 DataCenter MinTIC | K150: No Aplica
A151: =IF(D151<>"",VLOOKUP(Formato_ActivosInf_VF!D151,DATA!$B$2:$C$95,2,)&"-"&IF(ISERR(B151),"LEB",B151),"") -> 1401-147 | B151: =IF(AND(A150="",D151<>""),"LEB",IF(D151<>"",1+B150,"")) -> 147 | C151: Hardware | D151: GRUPO INTERNO DE TRABAJO DE SERVICIOS TECNOLÓGICOS | E151: Ucsserver3 | F151: App, webapp, micrositios, archivo owncloud | G151: No Aplica | H151: No Aplica | I151: Inglés y Español | J151: Cra. 8a entre calles 12 y 13 Edificio Murillo Toro piso 3 DataCenter MinTIC | K151: No Aplica
A152: =IF(D152<>"",VLOOKUP(Formato_ActivosInf_VF!D152,DATA!$B$2:$C$95,2,)&"-"&IF(ISERR(B152),"LEB",B152),"") -> 1401-148 | B152: =IF(AND(A151="",D152<>""),"LEB",IF(D152<>"",1+B151,"")) -> 148 | C152: Hardware | D152: GRUPO INTERNO DE TRABAJO DE SERVICIOS TECNOLÓGICOS | E152: Ucsserver7 | F152: BD, Monitoreo Bases de datos Operadores Celular | G152: No Aplica | H152: No Aplica | I152: Inglés y Español | J152: Cra. 8a entre calles 12 y 13 Edificio Murillo Toro piso 3 DataCenter MinTIC | K152: No Aplica
A153: =IF(D153<>"",VLOOKUP(Formato_ActivosInf_VF!D153,DATA!$B$2:$C$95,2,)&"-"&IF(ISERR(B153),"LEB",B153),"") -> 1401-149 | B153: =IF(AND(A152="",D153<>""),"LEB",IF(D153<>"",1+B152,"")) -> 149 | C153: Hardware | D153: GRUPO INTERNO DE TRABAJO DE SERVICIOS TECNOLÓGICOS | E153: Ucsserver8 | F153: App, Handover | G153: No Aplica | H153: No Aplica | I153: Inglés y Español | J153: Cra. 8a entre calles 12 y 13 Edificio Murillo Toro piso 3 DataCenter MinTIC | K153: No Aplica
A154: =IF(D154<>"",VLOOKUP(Formato_ActivosInf_VF!D154,DATA!$B$2:$C$95,2,)&"-"&IF(ISERR(B154),"LEB",B154),"") -> 1401-150 | B154: =IF(AND(A153="",D154<>""),"LEB",IF(D154<>"",1+B153,"")) -> 150 | C154: Hardware | D154: GRUPO INTERNO DE TRABAJO DE SERVICIOS TECNOLÓGICOS | E154: Uernia.mintic.gov.co | F154: App, escritorios virtuales, vCenter | G154: No Aplica | H154: No Aplica | I154: Inglés y Español | J154: Cra. 8a entre calles 12 y 13 Edificio Murillo Toro piso 3 DataCenter MinTIC | K154: No Aplica
A155: =IF(D155<>"",VLOOKUP(Formato_ActivosInf_VF!D155,DATA!$B$2:$C$95,2,)&"-"&IF(ISERR(B155),"LEB",B155),"") -> 1401-151 | B155: =IF(AND(A154="",D155<>""),"LEB",IF(D155<>"",1+B154,"")) -> 151 | C155: Hardware | D155: GRUPO INTERNO DE TRABAJO DE SERVICIOS TECNOLÓGICOS | E155: Vainilla.mintic.gov.co | F155: App, BIG DATA, Openshift | G155: No Aplica | H155: No Aplica | I155: Inglés y Español | J155: Cra. 8a entre calles 12 y 13 Edificio Murillo Toro piso 3 DataCenter MinTIC | K155: No Aplica
A156: =IF(D156<>"",VLOOKUP(Formato_ActivosInf_VF!D156,DATA!$B$2:$C$95,2,)&"-"&IF(ISERR(B156),"LEB",B156),"") -> 1401-152 | B156: =IF(AND(A155="",D156<>""),"LEB",IF(D156<>"",1+B155,"")) -> 152 | C156: Servicio | D156: GRUPO INTERNO DE TRABAJO DE SERVICIOS TECNOLÓGICOS | E156: Servicio Servidores | F156: Conjunto de recurso para el almacenamiento y procesamiento de información | G156: No Aplica | H156: No Aplica | I156: Inglés y Español | J156: Cra. 8a entre calles 12 y 13 Edificio Murillo Toro piso 3 DataCenter MinTIC | K156: No Aplica
A157: =IF(D157<>"",VLOOKUP(Formato_ActivosInf_VF!D157,DATA!$B$2:$C$95,2,)&"-"&IF(ISERR(B157),"LEB",B157),"") -> 1401-153 | B157: =IF(AND(A156="",D157<>""),"LEB",IF(D157<>"",1+B156,"")) -> 153 | C157: Información Digital | D157: GRUPO INTERNO DE TRABAJO DE SERVICIOS TECNOLÓGICOS | E157: CMDB | F157: Base de datos con la información de las configuraciónes de los difertes elementos tecnológicos y su interrelación. | G157: Documentos de Archivo - electrónicos | H157: XLS | I157: Español | J157: No Aplica | K157: Consulta interna Oficina de TI
A158: =IF(D158<>"",VLOOKUP(Formato_ActivosInf_VF!D158,DATA!$B$2:$C$95,2,)&"-"&IF(ISERR(B158),"LEB",B158),"") -> 1401-154 | B158: =IF(AND(A157="",D158<>""),"LEB",IF(D158<>"",1+B157,"")) -> 154 | C158: Información Digital | D158: GRUPO INTERNO DE TRABAJO DE SERVICIOS TECNOLÓGICOS | E158: Hoja de vida de los servidores | F158: Documento de hoja de vida de los servidores que contiene el detalle de los mismos. | G158: Archivos Institucionales - electrónico | H158: XLS -PDF | I158: Español | J158: No Aplica | K158: Servidores de la Oficina de TI
A159: =IF(D159<>"",VLOOKUP(Formato_ActivosInf_VF!D159,DATA!$B$2:$C$95,2,)&"-"&IF(ISERR(B159),"LEB",B159),"") -> 1401-155 | B159: =IF(AND(A158="",D159<>""),"LEB",IF(D159<>"",1+B158,"")) -> 155 | C159: Información Digital | D159: GRUPO INTERNO DE TRABAJO DE SERVICIOS TECNOLÓGICOS | E159: Bitácora de plataforma tecnológica | F159: Bitácora de los eventos evidenciados en la plataforma tecnológica. | G159: Sistemas de Bases de Datos | H159: Base de datos | I159: Español | J159: No Aplica | K159: Oficina de TI
A160: =IF(D160<>"",VLOOKUP(Formato_ActivosInf_VF!D160,DATA!$B$2:$C$95,2,)&"-"&IF(ISERR(B160),"LEB",B160),"") -> 1401-156 | B160: =IF(AND(A159="",D160<>""),"LEB",IF(D160<>"",1+B159,"")) -> 156 | C160: Información Digital | D160: GRUPO INTERNO DE TRABAJO DE SERVICIOS TECNOLÓGICOS | E160: Registro de inventario de medios | F160: Documento de registro de inventario de medios (cintas). | G160: Sistemas de Bases de Datos | H160: Base de datos | I160: Español | J160: No Aplica | K160: Servidores de la Oficina de TI
A161: =IF(D161<>"",VLOOKUP(Formato_ActivosInf_VF!D161,DATA!$B$2:$C$95,2,)&"-"&IF(ISERR(B161),"LEB",B161),"") -> 1401-157 | B161: =IF(AND(A160="",D161<>""),"LEB",IF(D161<>"",1+B160,"")) -> 157 | C161: Información Física – Digital | D161: GRUPO INTERNO DE TRABAJO DE SERVICIOS TECNOLÓGICOS | E161: Actas de entrega de equipos. | F161: Actas de recibido de equipo por parte de los usuarios. | G161: Archivos Institucionales - electrónico | H161: XLS | I161: Español | J161: No Aplica | K161: Consulta interna Oficina de TI
A162: =IF(D162<>"",VLOOKUP(Formato_ActivosInf_VF!D162,DATA!$B$2:$C$95,2,)&"-"&IF(ISERR(B162),"LEB",B162),"") -> 1401-158 | B162: =IF(AND(A161="",D162<>""),"LEB",IF(D162<>"",1+B161,"")) -> 158 | C162: Servicio | D162: GRUPO INTERNO DE TRABAJO DE SERVICIOS TECNOLÓGICOS | E162: Mesa de Servicio del Ministerio TIC | F162: Conjunto de recursos humanos y tecnológicos orientados a prestar servicios de TI, con el objeto de gestionar y brindar soluciona a todas las solicitudes (requerimientos, incidentes y cambios) de manera integral a los usuarios del Ministerio TIC. | G162: Sistemas de Trabajo colaborativo | H162: No Aplica | I162: Español | J162: No Aplica | K162: https://serviciosti.mintic.gov.co
A163: =IF(D163<>"",VLOOKUP(Formato_ActivosInf_VF!D163,DATA!$B$2:$C$95,2,)&"-"&IF(ISERR(B163),"LEB",B163),"") -> 1401-159 | B163: =IF(AND(A162="",D163<>""),"LEB",IF(D163<>"",1+B162,"")) -> 159 | C163: Servicio | D163: GRUPO INTERNO DE TRABAJO DE SERVICIOS TECNOLÓGICOS | E163: Servicios Tecnológicos | F163: Equipo de personas, recursos tecnológicos y servicios orientados en la generación de soluciones tecnológicas que permitan habilitar capacidades de recursos de computo, almacenamiento, redes, mensajería instantánea, telefonía, control de acceso, servicios de puesto de trabajo, licenciamiento, administración y mantenimiento. | G163: Disco duros, servidores, discos o medios portables, cintas o medios de video y audio (análogo o digital), etc. | H163: No Aplica | I163: Español | J163: Edificio Murillo Toro | K163: No Aplica
A164: =IF(D164<>"",VLOOKUP(Formato_ActivosInf_VF!D164,DATA!$B$2:$C$95,2,)&"-"&IF(ISERR(B164),"LEB",B164),"") -> 1401-160 | B164: =IF(AND(A163="",D164<>""),"LEB",IF(D164<>"",1+B163,"")) -> 160 | C164: Servicio | D164: GRUPO INTERNO DE TRABAJO DE SERVICIOS TECNOLÓGICOS | E164: Servicios de Plataforma Datacenter | F164: Conjunto de recursos tecnológicos y humanos, para prestar servicios de computo a nivel Plataforma como Servicio (PaaS) y Software como Servicio (SaaS), así como servicios, e instrumentos de apoyo para la operación de MinTIC. Incluido los servicios básicos de red, la gestión de almacenamiento, autenticación y la gestión de plataforma en general. Servicios incluidos Servicios básicos de plataforma y red. Servicios de backup, retención y recuperación. Servicios de autenticación y autorización. Servicio de gestión de licenciamiento. Servicios de la red eléctrica. Servicios sobre el sistema de refrigeración. | G164: Uso de tecnologías en la nube | H164: No Aplica | I164: Español | J164: Edificio Murillo Toro | K164: No Aplica
A165: =IF(D165<>"",VLOOKUP(Formato_ActivosInf_VF!D165,DATA!$B$2:$C$95,2,)&"-"&IF(ISERR(B165),"LEB",B165),"") -> 1401-161 | B165: =IF(AND(A164="",D165<>""),"LEB",IF(D165<>"",1+B164,"")) -> 161 | C165: Servicio | D165: GRUPO INTERNO DE TRABAJO DE SERVICIOS TECNOLÓGICOS | E165: Servicios de Plataforma de Escritorios | F165: Conjunto de recursos tecnológicos y humanos, para prestar servicios de computo para usuarios finales (Computadores, Impresión, tecnología de acceso, entre otros) como instrumentos de apoyo para la operación de MinTIC. Servicios de gestión de equipos de cómputo de usuario final. Servicio de gestión de software y licenciamiento de usuario final. | G165: Disco duros, servidores, discos o medios portables, cintas o medios de video y audio (análogo o digital), etc. | H165: No Aplica | I165: Español | J165: Instalaciones MinTIC | K165: No Aplica
A166: =IF(D166<>"",VLOOKUP(Formato_ActivosInf_VF!D166,DATA!$B$2:$C$95,2,)&"-"&IF(ISERR(B166),"LEB",B166),"") -> 1401-162 | B166: =IF(AND(A165="",D166<>""),"LEB",IF(D166<>"",1+B165,"")) -> 162 | C166: Servicio | D166: GRUPO INTERNO DE TRABAJO DE SERVICIOS TECNOLÓGICOS | E166: Servicios de comunicaciones | F166: Conjunto de recursos tecnológicos y humanos, para prestar servicios de comunicaciones (correo electrónico, plataforma colaborativa (Yammer Teams, skype) y Telefonía como instrumentos de apoyo para operación de MinTIC Servicios de plataforma colaborativa (mensajería instantánea y servicios de publicación). | G166: Uso de tecnologías en la nube | H166: No Aplica | I166: Español | J166: Edificio Murillo Toro | K166: No Aplica
A167: =IF(D167<>"",VLOOKUP(Formato_ActivosInf_VF!D167,DATA!$B$2:$C$95,2,)&"-"&IF(ISERR(B167),"LEB",B167),"") -> 1401-163 | B167: =IF(AND(A166="",D167<>""),"LEB",IF(D167<>"",1+B166,"")) -> 163 | C167: Servicio | D167: GRUPO INTERNO DE TRABAJO DE SERVICIOS TECNOLÓGICOS | E167: Conectividad y Acceso | F167: Conjunto de recursos tecnológicos, necesarios para asegurar el acceso a las redes públicas y privadas, así como a los servicios y aplicaciones internas y externas que requieren los servidores públicos y visitantes al edificio Murillo Toro de Ministerio TIC. | G167: Uso de tecnologías en la nube | H167: No Aplica | I167: Español | J167: Edificio Murillo Toro | K167: No Aplica
A168: =IF(D168<>"",VLOOKUP(Formato_ActivosInf_VF!D168,DATA!$B$2:$C$95,2,)&"-"&IF(ISERR(B168),"LEB",B168),"") -> 1401-164 | B168: =IF(AND(A167="",D168<>""),"LEB",IF(D168<>"",1+B167,"")) -> 164 | C168: Servicio | D168: GRUPO INTERNO DE TRABAJO DE SERVICIOS TECNOLÓGICOS | E168: Servicio de acceso a plataformas | F168: Conjunto de recursos tecnológicos que permite controlar y asegurar el acceso de los usuarios a las diferentes plataformas tecnológicas del Ministerio | G168: Portales, Intranet y Extranet | H168: No Aplica | I168: Español | J168: Edificio Murillo Toro | K168: No Aplica
A169: =IF(D169<>"",VLOOKUP(Formato_ActivosInf_VF!D169,DATA!$B$2:$C$95,2,)&"-"&IF(ISERR(B169),"LEB",B169),"") -> 1401-165 | B169: =IF(AND(A168="",D169<>""),"LEB",IF(D169<>"",1+B168,"")) -> 165 | C169: Información Física | D169: GRUPO INTERNO DE TRABAJO DE SERVICIOS TECNOLÓGICOS | E169: Credenciales de acceso usuarios administradores de la plataforma tecnológica | F169: Sobre sellado con las credenciales de acceso usuarios administradores de la plataforma tecnológica guardado en caja fuerte | G169: Documentos de Archivo - físicos | H169: Papel | I169: Español | J169: Instalaciones MinTIC | K169: No Aplica
A170: =IF(D170<>"",VLOOKUP(Formato_ActivosInf_VF!D170,DATA!$B$2:$C$95,2,)&"-"&IF(ISERR(B170),"LEB",B170),"") -> 1401-166 | B170: =IF(AND(A169="",D170<>""),"LEB",IF(D170<>"",1+B169,"")) -> 166 | C170: Servicio | D170: GRUPO INTERNO DE TRABAJO DE SERVICIOS TECNOLÓGICOS | E170: Servicio de UPS y aires acondicionados. | F170: Sistema de alimentación interrumpida y aires acondicionado ubicados en las areas de tecnología. | G170: No Aplica | H170: No Aplica | I170: Español | J170: No Aplica | K170: No Aplica
A171: =IF(D171<>"",VLOOKUP(Formato_ActivosInf_VF!D171,DATA!$B$2:$C$95,2,)&"-"&IF(ISERR(B171),"LEB",B171),"") -> 1401-167 | B171: =IF(AND(A170="",D171<>""),"LEB",IF(D171<>"",1+B170,"")) -> 167 | C171: Equipamiento Auxiliar o Soporte | D171: GRUPO INTERNO DE TRABAJO DE SERVICIOS TECNOLÓGICOS | E171: Equipamento de UPS y aires acondicionados. | F171: Sistema de alimentación interrumpida y aires acondicionado ubicados en las areas de tecnología. | G171: No Aplica | H171: No Aplica | I171: Español | J171: No Aplica | K171: No Aplica
A172: =IF(D172<>"",VLOOKUP(Formato_ActivosInf_VF!D172,DATA!$B$2:$C$95,2,)&"-"&IF(ISERR(B172),"LEB",B172),"") -> 1401-168 | B172: =IF(AND(A171="",D172<>""),"LEB",IF(D172<>"",1+B171,"")) -> 168 | C172: Software | D172: GRUPO INTERNO DE TRABAJO DE SERVICIOS TECNOLÓGICOS | E172: Aplicaciones Datacenter | F172: Software que apoya la operación administración Sistemas Operativos, respaldo y virtualización del Datacenter | G172: Uso de tecnologías en la nube | H172: No Aplica | I172: Ingles | J172: Edificio Murillo Toro | K172: No Aplica
A173: =IF(D173<>"",VLOOKUP(Formato_ActivosInf_VF!D173,DATA!$B$2:$C$95,2,)&"-"&IF(ISERR(B173),"LEB",B173),"") -> 1401-169 | B173: =IF(AND(A172="",D173<>""),"LEB",IF(D173<>"",1+B172,"")) -> 169 | C173: Información Digital | D173: GRUPO INTERNO DE TRABAJO DE SERVICIOS TECNOLÓGICOS | E173: Base de Datos - Usuarios Plataformas Telefónica y comunicaciones unificadas UC | F173: Registro y actualización de usuarios en las respectivas bases de datos de las plataformas telefónicas y Comunicaciones Unificadas. | G173: Sistemas de Bases de Datos | H173: Base de datos | I173: Español | J173: No Aplica | K173: Servidores de la Oficina de TI
A174: =IF(D174<>"",VLOOKUP(Formato_ActivosInf_VF!D174,DATA!$B$2:$C$95,2,)&"-"&IF(ISERR(B174),"LEB",B174),"") -> 1401-170 | B174: =IF(AND(A173="",D174<>""),"LEB",IF(D174<>"",1+B173,"")) -> 170 | C174: Servicio | D174: GRUPO INTERNO DE TRABAJO DE SERVICIOS TECNOLÓGICOS | E174: Comunicaciones Inteligentes | F174: Herramientas de comunicaciones inteligentes de la entidad que aseguran el uso y apropiación atreves de la plataforma Teams | G174: Uso de tecnologías en la nube | H174: Software | I174: Español | J174: No Aplica | K174: Herramienta Teams
A175: =IF(D175<>"",VLOOKUP(Formato_ActivosInf_VF!D175,DATA!$B$2:$C$95,2,)&"-"&IF(ISERR(B175),"LEB",B175),"") -> 1401-171 | B175: =IF(AND(A174="",D175<>""),"LEB",IF(D175<>"",1+B174,"")) -> 171 | C175: Servicio | D175: GRUPO INTERNO DE TRABAJO DE SERVICIOS TECNOLÓGICOS | E175: Herramientas de colaboración | F175: Herramientas colaborativas para la gestión de la información de los usuarios (Ej. SharePoint, OneDrive, Forms, Streem, entre otras) | G175: Uso de tecnologías en la nube | H175: Software | I175: Español | J175: No Aplica | K175: Plataforma Ofice
A176: =IF(D176<>"",VLOOKUP(Formato_ActivosInf_VF!D176,DATA!$B$2:$C$95,2,)&"-"&IF(ISERR(B176),"LEB",B176),"") -> 1401-172 | B176: =IF(AND(A175="",D176<>""),"LEB",IF(D176<>"",1+B175,"")) -> 172 | C176: Servicio | D176: GRUPO INTERNO DE TRABAJO DE SERVICIOS TECNOLÓGICOS | E176: Herramientas de administración datacenter | F176: Conjunto de herramientas para la administración de los servicios TI ( infraestructura y aplicaciones) Ej. Respaldo, virtualización, control de acceso de redes, entro otros. | G176: Uso de tecnologías en la nube | H176: Software | I176: Español | J176: No Aplica | K176: Plataformas datacenter
A177: =IF(D177<>"",VLOOKUP(Formato_ActivosInf_VF!D177,DATA!$B$2:$C$95,2,)&"-"&IF(ISERR(B177),"LEB",B177),"") -> 1401-173 | B177: =IF(AND(A176="",D177<>""),"LEB",IF(D177<>"",1+B176,"")) -> 173 | C177: Software | D177: GRUPO INTERNO DE TRABAJO DE SERVICIOS TECNOLÓGICOS | E177: Base de Datos- Zona_wifi_MT | F177: Base de datos con la información de los usuarios que acceden al punto Wifi para la gente ubicado en la carrera 7a del Edificio Murillo Toro | G177: Sistemas de Bases de Datos | H177: Base de datos | I177: Español | J177: No Aplica | K177: Servidores de la Oficina de TI
A178: =IF(D178<>"",VLOOKUP(Formato_ActivosInf_VF!D178,DATA!$B$2:$C$95,2,)&"-"&IF(ISERR(B178),"LEB",B178),"") -> 1401-174 | B178: =IF(AND(A177="",D178<>""),"LEB",IF(D178<>"",1+B177,"")) -> 174 | C178: Software | D178: GRUPO INTERNO DE TRABAJO DE SERVICIOS TECNOLÓGICOS | E178: Base de Datos- Incidentes y Requerimientos | F178: Base de datos con la información de las solicitudes de requerimientos e incidentes gestionados por la Oficina de TI | G178: Sistemas de Bases de Datos | H178: Base de datos | I178: Español | J178: No Aplica | K178: Servidores de la Oficina de TI
A179: =IF(D179<>"",VLOOKUP(Formato_ActivosInf_VF!D179,DATA!$B$2:$C$95,2,)&"-"&IF(ISERR(B179),"LEB",B179),"") -> 1401-175 | B179: =IF(AND(A178="",D179<>""),"LEB",IF(D179<>"",1+B178,"")) -> 175 | C179: Software | D179: GRUPO INTERNO DE TRABAJO DE SERVICIOS TECNOLÓGICOS | E179: Base de Datos- Active Directory users and computers | F179: Base de datos con la información de los usuarios de los colaboradores de la entidad. | G179: Sistemas de Bases de Datos | H179: Base de datos | I179: Español | J179: No Aplica | K179: Servidores de la Oficina de TI
A180: =IF(D180<>"",VLOOKUP(Formato_ActivosInf_VF!D180,DATA!$B$2:$C$95,2,)&"-"&IF(ISERR(B180),"LEB",B180),"") -> 1401-176 | B180: =IF(AND(A179="",D180<>""),"LEB",IF(D180<>"",1+B179,"")) -> 176 | C180: Software | D180: GRUPO INTERNO DE TRABAJO DE SERVICIOS TECNOLÓGICOS | E180: Base de Datos- UBPI | F180: Base de datos con la información de los ISPs para acceder a la plataforma de bloque para el contenido de abuso infantil. | G180: Sistemas de Bases de Datos | H180: Base de datos | I180: Español | J180: No Aplica | K180: Servidores de la Oficina de TI
A181: =IF(D181<>"",VLOOKUP(Formato_ActivosInf_VF!D181,DATA!$B$2:$C$95,2,)&"-"&IF(ISERR(B181),"LEB",B181),"") -> 1401-177 | B181: =IF(AND(A180="",D181<>""),"LEB",IF(D181<>"",1+B180,"")) -> 177 | C181: Software | D181: GRUPO INTERNO DE TRABAJO DE SERVICIOS TECNOLÓGICOS | E181: Base de Datos- ContinuumDB | F181: Base de datos con la información de los colaboradores para el acceso físico a las instalaciones de la entidad | G181: Sistemas de Bases de Datos | H181: Base de datos | I181: Español | J181: No Aplica | K181: Servidores de la Oficina de TI
A182: =IF(D182<>"",VLOOKUP(Formato_ActivosInf_VF!D182,DATA!$B$2:$C$95,2,)&"-"&IF(ISERR(B182),"LEB",B182),"") -> 1402-178 | B182: =IF(AND(A181="",D182<>""),"LEB",IF(D182<>"",1+B181,"")) -> 178 | C182: Información Digital | D182: GRUPO INTERNO DE TRABAJO DE GESTIÓN Y SISTEMAS DE INFORMACIÓN | E182: Estadísticas | F182: Estadísticas de gestión y sistemas de información | G182: Documentos de Archivo - electrónicos | H182: PDF | I182: Español | J182: No Aplica | K182: Repositorio de Servicios Tecnologicos
A183: =IF(D183<>"",VLOOKUP(Formato_ActivosInf_VF!D183,DATA!$B$2:$C$95,2,)&"-"&IF(ISERR(B183),"LEB",B183),"") -> 1402-179 | B183: =IF(AND(A182="",D183<>""),"LEB",IF(D183<>"",1+B182,"")) -> 179 | C183: Información Digital | D183: GRUPO INTERNO DE TRABAJO DE GESTIÓN Y SISTEMAS DE INFORMACIÓN | E183: Indicadores | F183: Indicadores de gestión y sistemas de información | G183: Documentos de Archivo - electrónicos | H183: HTML (Página Web) | I183: Español | J183: No Aplica | K183: Herramienta de gestión de casos de la Oficina de TI (https://serviciosti.mintic.gov.co/)
A184: =IF(D184<>"",VLOOKUP(Formato_ActivosInf_VF!D184,DATA!$B$2:$C$95,2,)&"-"&IF(ISERR(B184),"LEB",B184),"") -> 1402-180 | B184: =IF(AND(A183="",D184<>""),"LEB",IF(D184<>"",1+B183,"")) -> 180 | C184: Información Digital | D184: GRUPO INTERNO DE TRABAJO DE GESTIÓN Y SISTEMAS DE INFORMACIÓN | E184: Informe de Gestión | F184: Informes de Gestión técnicos o de actividades relacionadas con la Coordinación de gestión y sistemas de información. | G184: Documentos de Archivo - electrónicos | H184: PDF | I184: Español | J184: No Aplica | K184: Herramienta de gestión de casos de la Oficina de TI (https://serviciosti.mintic.gov.co/)
A185: =IF(D185<>"",VLOOKUP(Formato_ActivosInf_VF!D185,DATA!$B$2:$C$95,2,)&"-"&IF(ISERR(B185),"LEB",B185),"") -> 1402-181 | B185: =IF(AND(A184="",D185<>""),"LEB",IF(D185<>"",1+B184,"")) -> 181 | C185: Información Digital | D185: GRUPO INTERNO DE TRABAJO DE GESTIÓN Y SISTEMAS DE INFORMACIÓN | E185: Plan de gestión de sistemas de información | F185: Documentos que apoyan la gestión de la coordinación y el fortalecimiento de los sistemas de información. | G185: Documentos de Archivo - electrónicos | H185: PDF | I185: Español | J185: No Aplica | K185: Repositorio Gestion y sistemas de información
A186: =IF(D186<>"",VLOOKUP(Formato_ActivosInf_VF!D186,DATA!$B$2:$C$95,2,)&"-"&IF(ISERR(B186),"LEB",B186),"") -> 1402-182 | B186: =IF(AND(A185="",D186<>""),"LEB",IF(D186<>"",1+B185,"")) -> 182 | C186: Servicio | D186: GRUPO INTERNO DE TRABAJO DE GESTIÓN Y SISTEMAS DE INFORMACIÓN | E186: Kioscos Vive Digital | F186: Los Kioscos vive digital son puntos de acceso comunitario a Internet para los niños, jóvenes y adultos en zonas rurales de más de 100 habitantes, ubicados en las zonas más alejadas de Colombia, donde pueden conectarse a internet y recibir capacitaciones gratuitas en uso y apropiación de las TIC | G186: Portales, Intranet y Extranet | H186: XLS | I186: Español | J186: No Aplica | K186: http://colombiatic.mintic.gov.co/
A187: =IF(D187<>"",VLOOKUP(Formato_ActivosInf_VF!D187,DATA!$B$2:$C$95,2,)&"-"&IF(ISERR(B187),"LEB",B187),"") -> 1402-183 | B187: =IF(AND(A186="",D187<>""),"LEB",IF(D187<>"",1+B186,"")) -> 183 | C187: Servicio | D187: GRUPO INTERNO DE TRABAJO DE GESTIÓN Y SISTEMAS DE INFORMACIÓN | E187: Puntos Vive Digital | F187: Es un espacio que garantiza el acceso a las Tecnologías de la Información y las Comunicaciones mediante un modelo de servicios sostenible que permite integrar a la comunidad en escenarios de acceso, capacitación, entretenimiento y otras alternativas de servicios TIC en un mismo lugar. | G187: Portales, Intranet y Extranet | H187: XLS | I187: Español | J187: No Aplica | K187: http://colombiatic.mintic.gov.co/
A188: =IF(D188<>"",VLOOKUP(Formato_ActivosInf_VF!D188,DATA!$B$2:$C$95,2,)&"-"&IF(ISERR(B188),"LEB",B188),"") -> 1402-184 | B188: =IF(AND(A187="",D188<>""),"LEB",IF(D188<>"",1+B187,"")) -> 184 | C188: Servicio | D188: GRUPO INTERNO DE TRABAJO DE GESTIÓN Y SISTEMAS DE INFORMACIÓN | E188: Conectividad de Alta Velocidad | F188: El proyecto de Conectividad de Alta Velocidad-PNCAV busca conectar 28 cabeceras municipales y 19 corregimientos departamentales a través del despliegue de redes de alta velocidad, satelitales y/o terrestres, beneficiando aproximadamente 441.000 personas ubicadas en la selva colombiana. | G188: Portales, Intranet y Extranet | H188: XLS | I188: Español | J188: No Aplica | K188: http://colombiatic.mintic.gov.co/
A189: =IF(D189<>"",VLOOKUP(Formato_ActivosInf_VF!D189,DATA!$B$2:$C$95,2,)&"-"&IF(ISERR(B189),"LEB",B189),"") -> 1402-185 | B189: =IF(AND(A188="",D189<>""),"LEB",IF(D189<>"",1+B188,"")) -> 185 | C189: Servicio | D189: GRUPO INTERNO DE TRABAJO DE GESTIÓN Y SISTEMAS DE INFORMACIÓN | E189: Hogares Conectados CONSOLIDADO FASE I Y II | F189: Proyecto que lleva Internet a las familias de estratos 1 y 2, y Viviendas de Interés Prioritario -VIP, con el objetivo de que usen y se apropien de la tecnología. | G189: Portales, Intranet y Extranet | H189: XLS | I189: Español | J189: No Aplica | K189: http://colombiatic.mintic.gov.co/
A190: =IF(D190<>"",VLOOKUP(Formato_ActivosInf_VF!D190,DATA!$B$2:$C$95,2,)&"-"&IF(ISERR(B190),"LEB",B190),"") -> 1402-186 | B190: =IF(AND(A189="",D190<>""),"LEB",IF(D190<>"",1+B189,"")) -> 186 | C190: Servicio | D190: GRUPO INTERNO DE TRABAJO DE GESTIÓN Y SISTEMAS DE INFORMACIÓN | E190: Computadores Para Educar | F190: Computadores Para Educar | G190: Portales, Intranet y Extranet | H190: XLS | I190: Español | J190: No Aplica | K190: http://colombiatic.mintic.gov.co/
A191: =IF(D191<>"",VLOOKUP(Formato_ActivosInf_VF!D191,DATA!$B$2:$C$95,2,)&"-"&IF(ISERR(B191),"LEB",B191),"") -> 1402-187 | B191: =IF(AND(A190="",D191<>""),"LEB",IF(D191<>"",1+B190,"")) -> 187 | C191: Servicio | D191: GRUPO INTERNO DE TRABAJO DE GESTIÓN Y SISTEMAS DE INFORMACIÓN | E191: Ciudadanía Digital | F191: Entendemos la Ciudadanía Digital como el resultado de la transformación digital y productiva de los ciudadanos. Ante el reto de la economía digital, tenemos como país la meta de impulsar esa transformación en los próximos años. | G191: Portales, Intranet y Extranet | H191: XLS | I191: Español | J191: No Aplica | K191: http://colombiatic.mintic.gov.co/
A192: =IF(D192<>"",VLOOKUP(Formato_ActivosInf_VF!D192,DATA!$B$2:$C$95,2,)&"-"&IF(ISERR(B192),"LEB",B192),"") -> 1402-188 | B192: =IF(AND(A191="",D192<>""),"LEB",IF(D192<>"",1+B191,"")) -> 188 | C192: Servicio | D192: GRUPO INTERNO DE TRABAJO DE GESTIÓN Y SISTEMAS DE INFORMACIÓN | E192: En TIC Confío | F192: En TIC confío es la estrategia de promoción de uso responsable de internet y las TIC que ayuda a la sociedad a desenvolverse e interactuar responsablemente con las TIC, al tiempo que promueve la cero tolerancia con la pornografía infantil y la convivencia digital. | G192: Portales, Intranet y Extranet | H192: XLS | I192: Español | J192: No Aplica | K192: http://colombiatic.mintic.gov.co/
A193: =IF(D193<>"",VLOOKUP(Formato_ActivosInf_VF!D193,DATA!$B$2:$C$95,2,)&"-"&IF(ISERR(B193),"LEB",B193),"") -> 1402-189 | B193: =IF(AND(A192="",D193<>""),"LEB",IF(D193<>"",1+B192,"")) -> 189 | C193: Servicio | D193: GRUPO INTERNO DE TRABAJO DE GESTIÓN Y SISTEMAS DE INFORMACIÓN | E193: RedVolución | F193: Es un programa del Ministerio de Tecnologías de la Información y las Comunicaciones – MINTIC – que, busca inspirar el uso de internet en los colombianos, con el fin de reducir la brecha digital brindando a la sociedad herramientas y conocimientos que le permitan mejorar su calidad de vida y generar un mejor desarrollo social y económico. | G193: Portales, Intranet y Extranet | H193: XLS | I193: Español | J193: No Aplica | K193: http://colombiatic.mintic.gov.co/
A194: =IF(D194<>"",VLOOKUP(Formato_ActivosInf_VF!D194,DATA!$B$2:$C$95,2,)&"-"&IF(ISERR(B194),"LEB",B194),"") -> 1402-190 | B194: =IF(AND(A193="",D194<>""),"LEB",IF(D194<>"",1+B193,"")) -> 190 | C194: Servicio | D194: GRUPO INTERNO DE TRABAJO DE GESTIÓN Y SISTEMAS DE INFORMACIÓN | E194: Talento TI | F194: La iniciativa Talento TI del MinTIC es una de las apuestas del Plan Vive Digital para la Gente, que busca promover la formación de los colombianos en carreras TI para impulsar la competitividad, la investigación, la innovación y la proyección internacional del sector TI del país. | G194: Portales, Intranet y Extranet | H194: XLS | I194: Español | J194: No Aplica | K194: http://colombiatic.mintic.gov.co/
A195: =IF(D195<>"",VLOOKUP(Formato_ActivosInf_VF!D195,DATA!$B$2:$C$95,2,)&"-"&IF(ISERR(B195),"LEB",B195),"") -> 1402-191 | B195: =IF(AND(A194="",D195<>""),"LEB",IF(D195<>"",1+B194,"")) -> 191 | C195: Servicio | D195: GRUPO INTERNO DE TRABAJO DE GESTIÓN Y SISTEMAS DE INFORMACIÓN | E195: ViveLabs | F195: Espacios donde se facilitan herramientas tecnológicas y se brindan capacitaciones para realizar actividades de emprendimiento digital enfocados en aplicaciones y contenidos digitales. Buscan continuar con la estrategia nacional para el fortalecimiento y promoción de contenidos digitales. | G195: Portales, Intranet y Extranet | H195: XLS | I195: Español | J195: No Aplica | K195: http://colombiatic.mintic.gov.co/
A196: =IF(D196<>"",VLOOKUP(Formato_ActivosInf_VF!D196,DATA!$B$2:$C$95,2,)&"-"&IF(ISERR(B196),"LEB",B196),"") -> 1402-192 | B196: =IF(AND(A195="",D196<>""),"LEB",IF(D196<>"",1+B195,"")) -> 192 | C196: Servicio | D196: GRUPO INTERNO DE TRABAJO DE GESTIÓN Y SISTEMAS DE INFORMACIÓN | E196: Beneficiarios Apps.co | F196: Una iniciativa diseñada desde MinTIC para promover y potenciar la creación de negocios a partir del uso de las TIC, poniendo especial interés en el desarrollo de aplicaciones móviles, software y otros contenidos digitales. | G196: Portales, Intranet y Extranet | H196: XLS | I196: Español | J196: No Aplica | K196: http://colombiatic.mintic.gov.co/
A197: =IF(D197<>"",VLOOKUP(Formato_ActivosInf_VF!D197,DATA!$B$2:$C$95,2,)&"-"&IF(ISERR(B197),"LEB",B197),"") -> 1402-193 | B197: =IF(AND(A196="",D197<>""),"LEB",IF(D197<>"",1+B196,"")) -> 193 | C197: Servicio | D197: GRUPO INTERNO DE TRABAJO DE GESTIÓN Y SISTEMAS DE INFORMACIÓN | E197: Internet Fijo Cuota por proveedor | F197: Número de suscriptores con acceso fijo a Internet por proveedor de redes y servicios según sus datos al último día de cada trimestre, Consolidado. Basados en estos datos, se muestra el porcentaje de participación que tiene cada proveedor con respecto al total de suscriptores con acceso fijo a Internet en Colombia para cada trimestre. La tabla muestra en la última fila el total de suscriptores con acceso fijo a Internet en Colombia. | G197: Portales, Intranet y Extranet | H197: XLS | I197: Español | J197: No Aplica | K197: http://colombiatic.mintic.gov.co/
A198: =IF(D198<>"",VLOOKUP(Formato_ActivosInf_VF!D198,DATA!$B$2:$C$95,2,)&"-"&IF(ISERR(B198),"LEB",B198),"") -> 1402-194 | B198: =IF(AND(A197="",D198<>""),"LEB",IF(D198<>"",1+B197,"")) -> 194 | C198: Servicio | D198: GRUPO INTERNO DE TRABAJO DE GESTIÓN Y SISTEMAS DE INFORMACIÓN | E198: Internet Fijo Penetración Departamentos | F198: Número de suscriptores con acceso fijo a Internet para cada uno de los departamentos de Colombia según los datos reportados por los proveedores al último día de cada trimestre . Basados en estos datos, y en las proyecciones del DANE para la población por departamento, consolidado, se muestra el porcentaje de penetración de Internet fijo para cada trimestre. | G198: Portales, Intranet y Extranet | H198: XLS | I198: Español | J198: No Aplica | K198: http://colombiatic.mintic.gov.co/
A199: =IF(D199<>"",VLOOKUP(Formato_ActivosInf_VF!D199,DATA!$B$2:$C$95,2,)&"-"&IF(ISERR(B199),"LEB",B199),"") -> 1402-195 | B199: =IF(AND(A198="",D199<>""),"LEB",IF(D199<>"",1+B198,"")) -> 195 | C199: Servicio | D199: GRUPO INTERNO DE TRABAJO DE GESTIÓN Y SISTEMAS DE INFORMACIÓN | E199: Internet Fijo Penetración Municipio | F199: Número de suscriptores con acceso dedicado a Internet para cada uno de los departamentos y municipios de Colombia, según los datos reportados por los proveedores al último día de cada trimestre. Basados en estos datos y en las proyecciones del DANE para la población por municipio, departamento y en total en Colombia, se muestra el porcentaje de penetración de Internet fijo. | G199: Portales, Intranet y Extranet | H199: XLS | I199: Español | J199: No Aplica | K199: http://colombiatic.mintic.gov.co/
A200: =IF(D200<>"",VLOOKUP(Formato_ActivosInf_VF!D200,DATA!$B$2:$C$95,2,)&"-"&IF(ISERR(B200),"LEB",B200),"") -> 1402-196 | B200: =IF(AND(A199="",D200<>""),"LEB",IF(D200<>"",1+B199,"")) -> 196 | C200: Servicio | D200: GRUPO INTERNO DE TRABAJO DE GESTIÓN Y SISTEMAS DE INFORMACIÓN | E200: Internet Fijo Accesos por tecnología y segmento | F200: Ingresos del servicio de acceso fijo a Internet por proveedor de redes y servicios según sus datos al último día de cada trimestre. Esta información se refiere exclusivamente a los ingresos operacionales (en pesos colombianos), entendidos para efectos del reporte, como aquéllos que se producen en desarrollo de la actividad económica propia del negocio, por la prestación de servicios de telecomunicaciones. Se excluyen aquéllos ingresos que se producen por otros conceptos no operacionales, tales como ingresos financieros, rendimientos de inversiones o utilidades en venta de activos fijos, entre otros. | G200: Portales, Intranet y Extranet | H200: XLS | I200: Español | J200: No Aplica | K200: http://colombiatic.mintic.gov.co/
A201: =IF(D201<>"",VLOOKUP(Formato_ActivosInf_VF!D201,DATA!$B$2:$C$95,2,)&"-"&IF(ISERR(B201),"LEB",B201),"") -> 1402-197 | B201: =IF(AND(A200="",D201<>""),"LEB",IF(D201<>"",1+B200,"")) -> 197 | C201: Servicio | D201: GRUPO INTERNO DE TRABAJO DE GESTIÓN Y SISTEMAS DE INFORMACIÓN | E201: Internet Fijo ingresos por proveedor | F201: Datos referentes al servicio de acceso móvil a Internet por demanda. El número de abonados con acceso móvil a Internet por demanda es reportado por los proveedores al último día de cada trimestre. El acceso por demanda corresponde al acceso a Internet móvil sin que medie la contratación de un plan para tal fin. (...) Resolución 5076 de 2016. | G201: Portales, Intranet y Extranet | H201: XLS | I201: Español | J201: No Aplica | K201: http://colombiatic.mintic.gov.co/
A202: =IF(D202<>"",VLOOKUP(Formato_ActivosInf_VF!D202,DATA!$B$2:$C$95,2,)&"-"&IF(ISERR(B202),"LEB",B202),"") -> 1402-198 | B202: =IF(AND(A201="",D202<>""),"LEB",IF(D202<>"",1+B201,"")) -> 198 | C202: Servicio | D202: GRUPO INTERNO DE TRABAJO DE GESTIÓN Y SISTEMAS DE INFORMACIÓN | E202: Internet Móvil, abonado, ingresos, trafico demanda por proveedor | F202: Índice de penetración de los suscriptores y cantidad total de suscriptores de Internet con acceso móvil por suscripción. Los datos se muestran discriminados por proveedor y en total en Colombia | G202: Portales, Intranet y Extranet | H202: XLS | I202: Español | J202: No Aplica | K202: http://colombiatic.mintic.gov.co/
... 748 more rows

Sheet DATA (hidden)
A1: Unido Unidades / Grupos de Trabajo | B1: Unidades / Grupos de Trabajo | C1: Código del área | D1: Series | F1: Código de la Serie | G1: Unido Series | H1: Subseries | J1: Código de la Subserie | L1: Tipo_Activo | M1: Tipo_MacroProceso | N1: ESTRATEGICO | O1: APOYO | P1: EVALUACION | Q1: MISIONAL | R1: N/A
A2: =SUBSTITUTE(B2," ","") -> DESPACHODELMINISTRO | B2: DESPACHO DEL MINISTRO | C2: 1 | D2: DERECHOS DE PETICIÓN | E2: =SUBSTITUTE(D2," ","_") -> DERECHOS_DE_PETICIÓN | F2: 27 | G2: =_xlfn.CONCAT(E2,F2) -> DERECHOS_DE_PETICIÓN27 | H2: N/A | I2: DERECHOS_DE_PETICIÓN27 | J2: N/A | L2: Información Física | M2: ESTRATEGICO | N2: ARQUITECTURA_INSTITUCIONAL | O2: GESTION_RECURSOS | P2: ANALISIS_MEJORA_GESTION | Q2: ACCESO_USO_APROPIACION_TIC | R2: No_Aplica
A3: =SUBSTITUTE(B3," ","") -> OFICINAASESORADEPLANEACIÓNYESTUDIOSSECTORIALES | B3: OFICINA ASESORA DE PLANEACIÓN Y ESTUDIOS SECTORIALES | C3: 11 | D3: ESTATUTOS INTERNOS DEL FONDO DE TECNOLOGIAS DE LA INFORMACIÓN Y LAS COMUNICACIONES | E3: =SUBSTITUTE(D3," ","_") -> ESTATUTOS_INTERNOS_DEL_FONDO_DE_TECNOLOGIAS_DE_LA_INFORMACIÓN_Y_LAS_COMUNICACIONES | F3: 32 | G3: =_xlfn.CONCAT(E3,F3) -> ESTATUTOS_INTERNOS_DEL_FONDO_DE_TECNOLOGIAS_DE_LA_INFORMACIÓN_Y_LAS_COMUNICACIONES32 | H3: N/A | I3: ESTATUTOS_INTERNOS_DEL_FONDO_DE_TECNOLOGIAS_DE_LA_INFORMACIÓN_Y_LAS_COMUNICACIONES32 | J3: N/A | L3: Información Digital | M3: APOYO | N3: COMUNICACION_ESTRATEGICA | O3: GESTION_JURIDICA | Q3: GESTION_CONOCIMIENTO_SECTOR_TIC
A4: =SUBSTITUTE(B4," ","") -> GRUPOINTERNODETRABAJODEPLANEACIÓNYSEGUIMIENTO | B4: GRUPO INTERNO DE TRABAJO DE PLANEACIÓN Y SEGUIMIENTO | C4: 1101 | D4: INFORMES | E4: INFORMES | F4: 41 | G4: INFORMES41 | H4: INFORMES A ORGANISMOS DE CONTROL | I4: INFORMES41 | J4: 41.1 | L4: Información Física – Digital | M4: EVALUACION | N4: COOPERACION_INTERNACIONAL | Q4: PLANEACION_FORMULACION_POLITICAS_TIC
A5: =SUBSTITUTE(B5," ","") -> GRUPOINTERNODETRABAJODEESTADÍSTICAYESTUDIOSSECTORIALES | B5: GRUPO INTERNO DE TRABAJO DE ESTADÍSTICA Y ESTUDIOS SECTORIALES | C5: 1102 | D5: INFORMES | E5: INFORMES | F5: 41 | G5: INFORMES41 | H5: INFORMES DE GESTIÓN | I5: INFORMES41 | J5: 41.4 | L5: Hardware | M5: MISIONAL | N5: GESTION_ATENCION_GRUPOS_INTERES | Q5: SEGUIMIENTO_CONTROL_POLITICAS_TIC
A6: GRUPOINTERNODETRABAJODETRANSFORMACIÓNORGANIZACIONAL | B6: GRUPO INTERNO DE TRABAJO DE TRANSFORMACIÓN ORGANIZACIONAL | C6: 1103 | D6: POLITICAS | E6: POLITICAS | F6: 61 | G6: POLITICAS61 | H6: POLITICAS DE DIVULGACIÓN Y PROMOCIÓN DE TECNOLOGIA DE LA INFORMACIÓN Y LAS COMUNCIACIONES | I6: POLITICAS61 | J6: 61.2 | L6: Software | M6: No_Aplica | N6: MARCO_ESTRATEGICO
A7: OFICINAASESORADEPRENSA | B7: OFICINA ASESORA DE PRENSA | C7: 12 | D7: PROYECTOS | E7: PROYECTOS | F7: 65 | G7: PROYECTOS65 | H7: PROYECTOS DE CANALES DE TELEVISIÓN | I7: PROYECTOS65 | J7: 65.1 | L7: Servicio
A8: OFICINAINTERNACIONAL | B8: OFICINA INTERNACIONAL | C8: 13 | D8: PROYECTOS | E8: PROYECTOS | F8: 65 | G8: PROYECTOS65 | H8: PROYECTOS DE LEY | I8: PROYECTOS65 | J8: 65.6 | L8: Recurso Humano - P
A9: OFICINADETECNOLOGÍASDELAINFORMACIÓN | B9: OFICINA DE TECNOLOGÍAS DE LA INFORMACIÓN | C9: 14 | D9: ACTAS | E9: ACTAS | F9: 2 | G9: ACTAS2 | H9: ACTAS DE COMITÉ | I9: ACTAS2 | J9: 2.1 | L9: Recurso Humano - C
A10: =SUBSTITUTE(B10," ","") -> GRUPOINTERNODETRABAJODESERVICIOSTECNOLÓGICOS | B10: GRUPO INTERNO DE TRABAJO DE SERVICIOS TECNOLÓGICOS | C10: 1401 | D10: ACTAS | E10: =SUBSTITUTE(D10," ","_") -> ACTAS | F10: 2 | G10: =_xlfn.CONCAT(E10,F10) -> ACTAS2 | H10: ACTAS DE COMITÉ | I10: ACTAS2 | J10: 2.1 | L10: Equipamiento Auxiliar o Soporte
A11: GRUPOINTERNODETRABAJODEGESTIÓNYSISTEMASDEINFORMACIÓN | B11: GRUPO INTERNO DE TRABAJO DE GESTIÓN Y SISTEMAS DE INFORMACIÓN | C11: 1402 | D11: ACTAS | E11: ACTAS | F11: 2 | G11: ACTAS2 | H11: ACTAS DE GRUPO PRIMARIO | I11: ACTAS2 | J11: 2.4 | L11: Intangibles
A12: OFICINADEFOMENTOREGIONALDETECNOLOGÍASDELAINFORMACIÓNYLASCOMUNICACIONES | B12: OFICINA DE FOMENTO REGIONAL DE TECNOLOGÍAS DE LA INFORMACIÓN Y LAS COMUNICACIONES | C12: 15 | D12: CONCEPTOS | E12: CONCEPTOS | F12: 19 | G12: CONCEPTOS19 | H12: CONCEPTOS DE VIABILIDAD A LOS PROYECTOS DE INVERSIÓN | I12: CONCEPTOS19 | J12: 19.1
A13: GRUPOINTERNODETRABAJODECONSENSOSOCIAL | B13: GRUPO INTERNO DE TRABAJO DE CONSENSO SOCIAL | C13: 1501 | D13: INFORMES | E13: INFORMES | F13: 41 | G13: INFORMES41 | H13: INFORMES A ORGANISMOS DE CONTROL | I13: INFORMES41 | J13: 41.1
A14: OFICINADECONTROLINTERNO | B14: OFICINA DE CONTROL INTERNO | C14: 16 | D14: INFORMES | E14: INFORMES | F14: 41 | G14: INFORMES41 | H14: INFORMES DE GESTIÓN | I14: INFORMES41 | J14: 41.4
A15: DIRECCIÓNJURÍDICA | B15: DIRECCIÓN JURÍDICA | C15: 17 | D15: MANUALES | E15: MANUALES | F15: 50 | G15: MANUALES50 | H15: MANUALES DE PROCESOS Y PROCEDIMIENTOS | I15: MANUALES50 | J15: 50.3
A16: GRUPOINTERNODETRABAJODEDOCTRINAYSEGURIDADJURÍDICA | B16: GRUPO INTERNO DE TRABAJO DE DOCTRINA Y SEGURIDAD JURÍDICA | C16: 1701 | D16: DERECHOS DE PETICIÓN | E16: DERECHOS_DE_PETICIÓN | F16: 27 | G16: DERECHOS_DE_PETICIÓN27 | H16: N/A | I16: DERECHOS_DE_PETICIÓN27 | J16: N/A
A17: GRUPOINTERNODETRABAJODEPROCESOSJUDICIALESYEXTRAJUDICIALES | B17: GRUPO INTERNO DE TRABAJO DE PROCESOS JUDICIALES Y EXTRAJUDICIALES | C17: 1702 | D17: PLANES | E17: PLANES | F17: 59 | G17: PLANES59 | H17: PLAN ANTICORRUPCIÓN Y DE ATENCIÓN AL CIUDADANO | I17: PLANES59 | J17: 59.1
A18: GRUPOINTERNODETRABAJODECOBROCOACTIVO | B18: GRUPO INTERNO DE TRABAJO DE COBRO COACTIVO | C18: 1703 | D18: PLANES | E18: PLANES | F18: 59 | G18: PLANES59 | H18: PLANES INSTITUCIONALES | I18: PLANES59 | J18: 59.12
A19: DESPACHODELVICEMINISTRODECONECTIVIDAD | B19: DESPACHO DEL VICEMINISTRO DE CONECTIVIDAD | C19: 2 | D19: PLANES | E19: PLANES | F19: 59 | G19: PLANES59 | H19: PLANES INSTITUCIONALES | I19: PLANES59 | J19: 59.12
A20: GRUPOINTERNODETRABAJOESPECIALIZADODEAPELACIONES | B20: GRUPO INTERNO DE TRABAJO ESPECIALIZADO DE APELACIONES | C20: 2001 | D20: ANTEPROYECTO DEL PRESUPUESTO DE INVERSIÓN | E20: ANTEPROYECTO_DEL_PRESUPUESTO_DE_INVERSIÓN | F20: 6 | G20: ANTEPROYECTO_DEL_PRESUPUESTO_DE_INVERSIÓN6 | H20: N/A | I20: ANTEPROYECTO_DEL_PRESUPUESTO_DE_INVERSIÓN6 | J20: N/A
A21: GRUPOINTERNODETRABAJODEFORTALECIMIENTOALSISTEMADEMEDIOSPÚBLICOS | B21: GRUPO INTERNO DE TRABAJO DE FORTALECIMIENTO AL SISTEMA DE MEDIOS PÚBLICOS | C21: 2002 | D21: INFORMES | E21: INFORMES | F21: 412 | G21: INFORMES412 | H21: INFORMES DE GESTIÓN | I21: INFORMES412 | J21: 41.4
A22: DIRECCIÓNDEINFRAESTRUCTURA | B22: DIRECCIÓN DE INFRAESTRUCTURA | C22: 21 | D22: INFORMES | E22: INFORMES | F22: 412 | G22: INFORMES412 | H22: INFORMES DE GESTIÓN | I22: INFORMES41 | J22: 41.4
A23: GRUPOINTERNODETRABAJODERELACIONESINSTITUCIONALES | B23: GRUPO INTERNO DE TRABAJO DE RELACIONES INSTITUCIONALES | C23: 2101 | D23: PLANES | E23: PLANES | F23: 592 | G23: PLANES592 | H23: PLANES ESTRATÉGICOS | I23: PLANES592 | J23: 59.11
A24: =SUBSTITUTE(B24," ","") -> SUBDIRECCIÓNDEESTRUCTURACIÓNDEPROYECTOS | B24: SUBDIRECCIÓN DE ESTRUCTURACIÓN DE PROYECTOS | C24: 211 | D24: PLANES | E24: PLANES | F24: 592 | G24: PLANES592 | H24: PLANES INSTITUCIONALES | I24: PLANES592 | J24: 59.12
A25: SUBDIRECCIÓNDEOPERACIONES | B25: SUBDIRECCIÓN DE OPERACIONES | C25: 212 | D25: PROYECTOS | E25: PROYECTOS | F25: 652 | G25: PROYECTOS652 | H25: PROYECTOS DE GESTIÓN INTERNOS | I25: PROYECTOS652 | J25: 65.3
A26: DIRECCIÓNDEINDUSTRIADECOMUNICACIONES | B26: DIRECCIÓN DE INDUSTRIA DE COMUNICACIONES | C26: 22 | D26: PROYECTOS | E26: PROYECTOS | F26: 652 | G26: PROYECTOS652 | H26: PROYECTOS DE INVERSIÓN | I26: PROYECTOS652 | J26: 65.4
A27: GRUPOINTERNODETRABAJODEGESTIÓNDEGARANTÍAS | B27: GRUPO INTERNO DE TRABAJO DE GESTIÓN DE GARANTÍAS | C27: 2201 | D27: ACTAS | E27: ACTAS | F27: 21 | G27: =_xlfn.CONCAT(E27,F27) -> ACTAS21 | H27: ACTAS DE LA MESA TÉCNICA DE ESTADISTICAS TIC | I27: ACTAS21 | J27: 2.6
A28: SUBDIRECCIÓNPARALAINDUSTRIADECOMUNICACIONES | B28: SUBDIRECCIÓN PARA LA INDUSTRIA DE COMUNICACIONES | C28: 221 | D28: CERTIFICADOS | E28: CERTIFICADOS | F28: 13 | G28: CERTIFICADOS13 | H28: CERTIFICACIONES DE CALIDAD ESTADISTICA | I28: CERTIFICADOS13 | J28: 13.1
A29: GRUPOINTERNODETRABAJODEGESTIÓNDEESPECTRORADIOELÉCTRICO | B29: GRUPO INTERNO DE TRABAJO DE GESTIÓN DE ESPECTRO RADIOELÉCTRICO | C29: 2211 | D29: ESTUDIOS | E29: ESTUDIOS | F29: 33 | G29: ESTUDIOS33 | H29: ESTUDIOS SECTORIALES | I29: ESTUDIOS33 | J29: 33.3
A30: SUBDIRECCIÓNDERADIODIFUSIÓNSONORA | B30: SUBDIRECCIÓN DE RADIODIFUSIÓN SONORA | C30: 222 | D30: MODELO INTEGRADO DE GESTION | E30: MODELO_INTEGRADO_DE_GESTION | F30: 52 | G30: MODELO_INTEGRADO_DE_GESTION52 | H30: POLÍTICA DE GESTIÓN DE INFORMACIÓN ESTADÍSTICA | I30: MODELO_INTEGRADO_DE_GESTION52 | J30: 52.1
A31: SUBDIRECCIÓNDEASUNTOSPOSTALES | B31: SUBDIRECCIÓN DE ASUNTOS POSTALES | C31: 223 | D31: MODELO INTEGRADO DE GESTION | E31: MODELO_INTEGRADO_DE_GESTION | F31: 52 | G31: MODELO_INTEGRADO_DE_GESTION52 | H31: PROCESOS MIG | I31: MODELO_INTEGRADO_DE_GESTION52 | J31: 52.2
A32: =SUBSTITUTE(B32," ","") -> DIRECCIÓNDEVIGILANCIAINSPECCIÓNYCONTROL | B32: DIRECCIÓN DE VIGILANCIA INSPECCIÓN Y CONTROL | C32: 23 | D32: OPERACIONES ESTADISTICAS | E32: OPERACIONES_ESTADISTICAS | F32: 57 | G32: OPERACIONES_ESTADISTICAS57 | H32: N/A | I32: OPERACIONES_ESTADISTICAS57 | J32: N/A
A33: SUBDIRECCIÓNDEVIGILANCIAEINSPECCIÓN | B33: SUBDIRECCIÓN DE VIGILANCIA E INSPECCIÓN | C33: 231 | D33: FORMULARIOS UNICOS DE REPORTE DE AVANCES DE LA GESTIÓN FURAG | E33: FORMULARIOS_UNICOS_DE_REPORTE_DE_AVANCES_DE_LA_GESTIÓN_FURAG | F33: 36 | G33: FORMULARIOS_UNICOS_DE_REPORTE_DE_AVANCES_DE_LA_GESTIÓN_FURAG36 | H33: N/A | I33: FORMULARIOS_UNICOS_DE_REPORTE_DE_AVANCES_DE_LA_GESTIÓN_FURAG36 | J33: N/A
A34: GRUPOINTERNODETRABAJODEPROMOCIÓNYPREVENCIÓN | B34: GRUPO INTERNO DE TRABAJO DE PROMOCIÓN Y PREVENCIÓN | C34: 2311 | D34: INFORMES | E34: INFORMES | F34: 413 | G34: INFORMES413 | H34: INFORMES DE ADMINISTRACIÓN DE RIESGOS | I34: INFORMES413 | J34: 41.2
A35: GRUPOINTERNODETRABAJODERECOLECCIÓNYANÁLISISDEINFORMACIÓN | B35: GRUPO INTERNO DE TRABAJO DE RECOLECCIÓN Y ANÁLISIS DE INFORMACIÓN | C35: 2312 | D35: INFORMES | E35: INFORMES | F35: 413 | G35: INFORMES413 | H35: INFORMES DE ARQUITECTURA INSTITUCIONAL - COMPONENTE PROCESOS | I35: INFORMES413 | J35: 41.3
A36: SUBDIRECCIÓNDEINVESTIGACIONESADMINISTRATIVAS | B36: SUBDIRECCIÓN DE INVESTIGACIONES ADMINISTRATIVAS | C36: 232 | D36: INFORMES | E36: INFORMES | F36: 413 | G36: INFORMES413 | H36: INFORMES A ORGANISMOS DE CONTROL | I36: INFORMES413 | J36: 41.1
A37: GRUPOINTERNODETRABAJODEPROCESOSADMINISTRATIVOSSANCIONATORIOS | B37: GRUPO INTERNO DE TRABAJO DE PROCESOS ADMINISTRATIVOS SANCIONATORIOS | C37: 2321 | D37: INFORMES | E37: INFORMES | F37: 413 | G37: INFORMES413 | H37: INFORMES DE GESTIÓN | I37: INFORMES413 | J37: 41.4
A38: DESPACHODELVICEMINISTRODETRANSFORMACIÓNDIGITAL | B38: DESPACHO DEL VICEMINISTRO DE TRANSFORMACIÓN DIGITAL | C38: 3 | D38: INFORMES | E38: INFORMES | F38: 413 | G38: INFORMES413 | H38: INFORMES DE SEGUIMIENTO A LAS POLÍTICAS DE GESTIÓN Y DESEMPEÑO | I38: INFORMES413 | J38: N/A
A39: GRUPOINTERNODETRABAJODEDOMINIO.COYGOBERNANZADEINTERNET | B39: GRUPO INTERNO DE TRABAJO DE DOMINIO.CO Y GOBERNANZA DE INTERNET | C39: 3001 | D39: INFORMES | E39: INFORMES | F39: 413 | G39: INFORMES413 | H39: INFORMES DE SEGUIMIENTO, CONTROL Y MEJORA | I39: INFORMES413 | J39: N/A
A40: DIRECCIÓNDEAPROPIACIÓNDETECNOLOGÍASDELAINFORMACIÓNYLASCOMUNICACIONES | B40: DIRECCIÓN DE APROPIACIÓN DE TECNOLOGÍAS DE LA INFORMACIÓN Y LAS COMUNICACIONES | C40: 31 | D40: INFORMES | E40: INFORMES | F40: 413 | G40: INFORMES413 | H40: INFORMES DEL EJE ARTICULADOR -GESTIÓN DEL CONOCIMIENTO E INNOVACIÓN | I40: INFORMES41 | J40: N/A
A41: GRUPOINTERNODETRABAJODEINCLUSIÓNTICPARAPERSONASCONDISCAPACIDAD | B41: GRUPO INTERNO DE TRABAJO DE INCLUSIÓN TIC PARA PERSONAS CON DISCAPACIDAD | C41: 3101 | D41: DERECHOS DE PETICIÓN | E41: DERECHOS_DE_PETICIÓN | F41: 27 | G41: DERECHOS_DE_PETICIÓN27 | H41: N/A | I41: DERECHOS_DE_PETICIÓN27 | J41: N/A
A42: GRUPOINTERNODETRABAJODEEDUCACIÓNYCULTURADIGITAL | B42: GRUPO INTERNO DE TRABAJO DE EDUCACIÓN Y CULTURA DIGITAL | C42: 3102 | D42: PLANES | E42: PLANES | F42: 591 | G42: PLANES591 | H42: PLAN ANTICORRUPCIÓN Y DE ATENCIÓN AL CIUDADANO | I42: PLANES591 | J42: N/A
A43: GRUPOINTERNODETRABAJODEFOMENTODEHABILIDADESDIGITALESPARALAPRODUCTIVIDAD | B43: GRUPO INTERNO DE TRABAJO DE FOMENTO DE HABILIDADES DIGITALES PARA LA PRODUCTIVIDAD | C43: 3103 | D43: BOLETINES | E43: BOLETINES | F43: 12 | G43: BOLETINES12 | H43: BOLETINES INFORMATIVOS | I43: BOLETINES12 | J43: N/A
A44: DIRECCIÓNDEGOBIERNODIGITAL | B44: DIRECCIÓN DE GOBIERNO DIGITAL | C44: 32 | D44: COMUNICADOS DE PRENSA | E44: COMUNICADOS_DE_PRENSA | F44: 18 | G44: COMUNICADOS_DE_PRENSA18 | H44: N/A | I44: COMUNICADOS_DE_PRENSA18 | J44: N/A
A45: =SUBSTITUTE(B45," ","") -> GRUPOINTERNODETRABAJODESERVICIOSCIUDADANOSDIGITALES | B45: GRUPO INTERNO DE TRABAJO DE SERVICIOS CIUDADANOS DIGITALES | C45: 3201 | D45: INFORMES | E45: =SUBSTITUTE(D45," ","_") -> INFORMES | F45: 414 | G45: =_xlfn.CONCAT(E45,F45) -> INFORMES414 | H45: INFORMES DE GESTIÓN | I45: INFORMES414 | J45: N/A
A46: =SUBSTITUTE(B46," ","") -> SUBDIRECCIÓNDEESTÁNDARESYARQUITECTURADETECNOLOGÍASDELAINFORMACIÓN | B46: SUBDIRECCIÓN DE ESTÁNDARES Y ARQUITECTURA DE TECNOLOGÍAS DE LA INFORMACIÓN | C46: 321 | D46: INVENTARIOS | E46: INVENTARIOS | F46: 44 | G46: INVENTARIOS44 | H46: INVENTARIOS DE ACTIVOS DE INFORMACIÓN | I46: INVENTARIOS44 | J46: N/A
A47: SUBDIRECCIÓNDEFORTALECIMIENTODECAPACIDADESPÚBLICASDIGITALES | B47: SUBDIRECCIÓN DE FORTALECIMIENTO DE CAPACIDADES PÚBLICAS DIGITALES | C47: 322 | D47: DERECHOS DE PETICIÓN | E47: DERECHOS_DE_PETICIÓN | F47: 27 | G47: DERECHOS_DE_PETICIÓN27 | H47: N/A | I47: DERECHOS_DE_PETICIÓN27 | J47: N/A
A48: DIRECCIÓNDEECONOMIADIGITAL | B48: DIRECCIÓN DE ECONOMIA DIGITAL | C48: 33 | D48: ACUERDOS | E48: ACUERDOS | F48: 4 | G48: ACUERDOS4 | H48: ACUERDOS INTERNACIONALES DE COOPERACIÓN | I48: ACUERDOS4 | J48: 4.7
A49: SUBDIRECCIÓNPARALASCOMPETENCIASDIGITALES | B49: SUBDIRECCIÓN PARA LAS COMPETENCIAS DIGITALES | C49: 331 | D49: INFORMES | E49: INFORMES | F49: 41 | G49: INFORMES41 | H49: INFORMES A ORGANISMOS DE CONTROL | I49: INFORMES41 | J49: 41.1
A50: SUBDIRECCIÓNDEINDUSTRIADETECNOLOGÍASDELAINFORMACIÓN | B50: SUBDIRECCIÓN DE INDUSTRIA DE TECNOLOGÍAS DE LA INFORMACIÓN | C50: 332 | D50: INFORMES | E50: =SUBSTITUTE(D50," ","_") -> INFORMES | F50: 41 | G50: =_xlfn.CONCAT(E50,F50) -> INFORMES41 | H50: INFORMES DE GESTIÓN | I50: INFORMES41 | J50: 41.4
A51: SUBDIRECCIÓNPARALATRANSFORMACIÓNSECTORIAL | B51: SUBDIRECCIÓN PARA LA TRANSFORMACIÓN SECTORIAL | C51: 333 | D51: ACTAS | E51: ACTAS | F51: 22 | G51: =_xlfn.CONCAT(E51,F51) -> ACTAS22 | H51: ACTAS DE COMITÉ | I51: ACTAS22 | J51: 2.1
A52: SECRETARÍAGENERAL | B52: SECRETARÍA GENERAL | C52: 4 | D52: ACUERDOS | E52: ACUERDOS | F52: 41 | G52: ACUERDOS41 | H52: ACUERDOS DE SERVICIOS ESTRATÉGICOS CON ENTIDADES DEL SECTOR | I52: ACUERDOS41 | J52: 4.5
A53: GRUPOINTERNODETRABAJODECONTROLINTERNODISCIPLINARIO | B53: GRUPO INTERNO DE TRABAJO DE CONTROL INTERNO DISCIPLINARIO | C53: 4001 | D53: INFORMES | E53: INFORMES | F53: 415 | G53: =_xlfn.CONCAT(E53,F53) -> INFORMES415 | H53: INFORMES DE GESTIÓN | I53: INFORMES415 | J53: 41.4
A54: SUBDIRECCIÓNFINANCIERA | B54: SUBDIRECCIÓN FINANCIERA | C54: 401 | D54: PLANES | E54: PLANES | F54: 593 | G54: PLANES593 | H54: PLANES INSTITUCIONALES | I54: PLANES593 | J54: 59.12
A55: GRUPOINTERNODETRABAJODETESORERÍA | B55: GRUPO INTERNO DE TRABAJO DE TESORERÍA | C55: 4011 | D55: PROCESOS | E55: PROCESOS | F55: 62 | G55: PROCESOS62 | H55: PROCESOS DE INFORMACIÓN SECTORIAL | I55: PROCESOS62 | J55: 62.7
A56: GRUPOINTERNODETRABAJODECONTABILIDAD | B56: GRUPO INTERNO DE TRABAJO DE CONTABILIDAD | C56: 4012 | D56: ACTAS | E56: ACTAS | F56: 23 | G56: ACTAS23 | H56: ACTAS DE COMITÉ | I56: ACTAS23 | J56: 2.1
A57: GRUPOINTERNODETRABAJODEPRESUPUESTO | B57: GRUPO INTERNO DE TRABAJO DE PRESUPUESTO | C57: 4013 | D57: INFORMES | E57: INFORMES | F57: 416 | G57: INFORMES416 | H57: INFORMES DE GESTIÓN | I57: INFORMES416 | J57: 41.4
A58: GRUPOINTERNODETRABAJODECARTERA | B58: GRUPO INTERNO DE TRABAJO DE CARTERA | C58: 4014 | D58: PLANES | E58: PLANES | F58: 594 | G58: PLANES594 | H58: PLANES INSTITUCIONALES | I58: PLANES594 | J58: 59.12
A59: SUBDIRECCIÓNPARALAGESTIÓNDELTALENTOHUMANO | B59: SUBDIRECCIÓN PARA LA GESTIÓN DEL TALENTO HUMANO | C59: 402 | D59: POLITICAS | E59: POLITICAS | F59: 612 | G59: POLITICAS612 | H59: N/A | I59: POLITICAS612 | J59: N/A
A60: GRUPOINTERNODETRABAJODEGESTIÓNDELTALENTOHUMANO | B60: GRUPO INTERNO DE TRABAJO DE GESTIÓN DEL TALENTO HUMANO | C60: 4021 | D60: INFORMES | E60: INFORMES | F60: 416 | G60: INFORMES416 | H60: INFORMES DE GESTIÓN | I60: INFORMES416 | J60: 41.4
A61: GRUPOINTERNODETRABAJODEGESTIÓNPENSIONAL | B61: GRUPO INTERNO DE TRABAJO DE GESTIÓN PENSIONAL | C61: 4022 | D61: PLANES | E61: PLANES | F61: 595 | G61: =_xlfn.CONCAT(E61,F61) -> PLANES595 | H61: PLANES INSTITUCIONALES | I61: PLANES595 | J61: 59.12
A62: SUBDIRECCIÓNADMINISTRATIVA | B62: SUBDIRECCIÓN ADMINISTRATIVA | C62: 403 | D62: POLITICAS | E62: POLITICAS | F62: 612 | G62: POLITICAS612 | H62: N/A | I62: POLITICAS612 | J62: N/A
A63: GRUPOINTERNODETRABAJODEADMINISTRACIÓNDEBIENES | B63: GRUPO INTERNO DE TRABAJO DE ADMINISTRACIÓN DE BIENES | C63: 4031 | D63: ACTAS | E63: ACTAS | F63: 24 | G63: ACTAS24 | H63: ACTAS DE REUNIÓN | I63: ACTAS24 | J63: N/A
A64: GRUPOINTERNODETRABAJODENOTIFICACIONES | B64: GRUPO INTERNO DE TRABAJO DE NOTIFICACIONES | C64: 4032 | D64: ASESORÍAS | E64: ASESORÍAS | F64: 10 | G64: ASESORÍAS10 | H64: N/A | I64: ASESORÍAS10 | J64: N/A
A65: GRUPOINTERNODETRABAJODEGRUPOSDEINTERÉSYGESTIÓNDOCUMENTAL | B65: GRUPO INTERNO DE TRABAJO DE GRUPOS DE INTERÉS Y GESTIÓN DOCUMENTAL | C65: 4033 | D65: INFORMES | E65: INFORMES | F65: 416 | G65: INFORMES416 | H65: INFORMES DE GESTIÓN | I65: INFORMES416 | J65: 41.4
A66: GRUPOINTERNODETRABAJODEGESTIÓNDESERVICIOSADMINISTRATIVOS | B66: GRUPO INTERNO DE TRABAJO DE GESTIÓN DE SERVICIOS ADMINISTRATIVOS | C66: 4034 | D66: DERECHOS DE PETICIÓN | E66: DERECHOS_DE_PETICIÓN | F66: 27 | G66: DERECHOS_DE_PETICIÓN27 | H66: N/A | I66: DERECHOS_DE_PETICIÓN27 | J66: N/A
A67: SUBDIRECCIÓNDEGESTIÓNCONTRACTUAL | B67: SUBDIRECCIÓN DE GESTIÓN CONTRACTUAL | C67: 404 | D67: PLANES | E67: PLANES | F67: 596 | G67: PLANES596 | H67: PLANES INSTITUCIONALES | I67: PLANES596 | J67: 59.12
A68: GRUPOINTERNODETRABAJODEACTUACIONESADMINISTRATIVASCONTRACTUALES | B68: GRUPO INTERNO DE TRABAJO DE ACTUACIONES ADMINISTRATIVAS CONTRACTUALES | C68: 4041 | D68: PLANES | E68: PLANES | F68: 59 | G68: PLANES59 | H68: PLANES ESTRATÉGICOS | I68: PLANES59 | J68: 59.11
A69: =SUBSTITUTE(B69," ","") -> OFICINAPARALAGESTIÓNDEINGRESOSDELFONDO | B69: OFICINA PARA LA GESTIÓN DE INGRESOS DEL FONDO | C69: 410 | D69: PLANES | E69: PLANES | F69: 59 | G69: PLANES59 | H69: PLANES DE INVERSIÓN | I69: PLANES59 | J69: 59.7
A70: GRUPOINTERNODETRABAJODESEGUIMIENTOALOSINGRESOSDELFONDO | B70: GRUPO INTERNO DE TRABAJO DE SEGUIMIENTO A LOS INGRESOS DEL FONDO | C70: 4101 | D70: POLITICAS | E70: POLITICAS | F70: 613 | G70: POLITICAS613 | H70: POLÍTICAS PUBLICAS CON ENFOQUE DIFERENCIAL | I70: POLITICAS613 | J70: 61.6
A71: GRUPOINTERNODETRABAJODESEGUIMIENTOALAEJECUCIÓNDERECURSOSDELFONDO | B71: GRUPO INTERNO DE TRABAJO DE SEGUIMIENTO A LA EJECUCIÓN DE RECURSOS DEL FONDO | C71: 4102 | D71: ACTAS | E71: ACTAS | F71: 25 | G71: ACTAS25 | H71: N/A | I71: ACTAS25 | J71: N/A
D72: INFORMES | E72: INFORMES | F72: 416 | G72: INFORMES416 | H72: INFORMES DE GESTIÓN | I72: INFORMES416 | J72: 41.4
D73: DERECHOS DE PETICIÓN | E73: DERECHOS_DE_PETICIÓN | F73: 27 | G73: DERECHOS_DE_PETICIÓN27 | H73: N/A | I73: DERECHOS_DE_PETICIÓN27 | J73: N/A
D74: PLANES | E74: PLANES | F74: 597 | G74: PLANES597 | H74: PLANES ETNICOS | I74: PLANES59 | J74: 59.9
D75: PLANES | E75: PLANES | F75: 59 | G75: PLANES59 | H75: PLANES INSTITUCIONALES | I75: PLANES59 | J75: 59.12
D76: POLITICAS | E76: POLITICAS | F76: 613 | G76: POLITICAS613 | H76: POLÍTICAS PUBLICAS CON ENFOQUE DIFERENCIAL | I76: POLITICAS613 | J76: 61.6
D77: ACTAS | E77: ACTAS | F77: 22 | G77: ACTAS22 | H77: ACTAS DE COMITÉ | I77: ACTAS22 | J77: 2.1
D78: AUDITORIAS INTERNAS | E78: AUDITORIAS_INTERNAS | F78: 8 | G78: AUDITORIAS_INTERNAS8 | H78: AUDITORÍAS INTERNAS DE GESTIÓN | I78: AUDITORIAS_INTERNAS8 | J78: 8.1
D79: AUDITORIAS INTERNAS | E79: AUDITORIAS_INTERNAS | F79: 8 | G79: AUDITORIAS_INTERNAS8 | H79: AUDITORÍAS INTERNAS DE SISTEMAS DE GESTIÓN | I79: AUDITORIAS_INTERNAS8 | J79: 8.2
D80: INFORMES | E80: INFORMES | F80: 418 | G80: INFORMES418 | H80: INFORMES A ORGANISMOS DE CONTROL | I80: INFORMES418 | J80: 41.1
D81: INFORMES | E81: INFORMES | F81: 41 | G81: INFORMES41 | H81: INFORMES DE SEGUIMIENTO DE LEY Y EVALUACIÓN | I81: INFORMES41 | J81: 41.8
D82: PLANES | E82: PLANES | F82: 598 | G82: PLANES598 | H82: PLANES DE MEJORAMIENTO | I82: PLANES598 | J82: 59.8
D83: DERECHOS DE PETICIÓN | E83: DERECHOS_DE_PETICIÓN | F83: 27 | G83: DERECHOS_DE_PETICIÓN27 | H83: N/A | I83: DERECHOS_DE_PETICIÓN27 | J83: N/A
D84: INFORMES | E84: INFORMES | F84: 412 | G84: INFORMES412 | H84: INFORMES DE GESTIÓN | I84: INFORMES412 | J84: 41.4
D85: INFORMES | E85: INFORMES | F85: 41 | G85: INFORMES41 | H85: INFORMES DE GESTIÓN | I85: INFORMES41 | J85: 41.4
D86: DERECHOS DE PETICIÓN | E86: DERECHOS_DE_PETICIÓN | F86: 27 | G86: DERECHOS_DE_PETICIÓN27 | H86: N/A | I86: DERECHOS_DE_PETICIÓN27 | J86: N/A
D87: PROYECTOS | E87: PROYECTOS | F87: 657 | G87: PROYECTOS657 | H87: PROYECTOS NORMATIVOS | I87: PROYECTOS657 | J87: 65.8
D88: CONCEPTOS | E88: =SUBSTITUTE(D88," ","_") -> CONCEPTOS | F88: 191 | G88: =_xlfn.CONCAT(E88,F88) -> CONCEPTOS191 | H88: CONCEPTOS JUIRDICOS | I88: CONCEPTOS191 | J88: 19.2
D89: INFORMES | E89: INFORMES | F89: 412 | G89: INFORMES412 | H89: INFORMES DE GESTIÓN | I89: INFORMES412 | J89: 41.4
D90: DIRECTRICES JURÍDICAS | E90: DIRECTRICES_JURÍDICAS | F90: 28 | G90: DIRECTRICES_JURÍDICAS28 | H90: N/A | I90: DIRECTRICES_JURÍDICAS28 | J90: N/A
D91: DERECHOS DE PETICIÓN | E91: DERECHOS_DE_PETICIÓN | F91: 27 | G91: DERECHOS_DE_PETICIÓN27 | H91: N/A | I91: DERECHOS_DE_PETICIÓN27 | J91: N/A
D92: ACTAS | E92: ACTAS | F92: 26 | G92: ACTAS26 | H92: ACTAS DE COMITÉ | I92: ACTAS26 | J92: 2.1
D93: ACTAS | E93: ACTAS | F93: 2 | G93: ACTAS2 | H93: ACTAS DEL SUBCOMITÉ | I93: ACTAS2 | J93: 2.10
D94: ACCIONES CONSTITUCIONALES | E94: ACCIONES_CONSTITUCIONALES | F94: 1 | G94: ACCIONES_CONSTITUCIONALES1 | H94: ACCIONES DE CUMPLIMIENTO | I94: ACCIONES_CONSTITUCIONALES1 | J94: 1.1
D95: ACCIONES CONSTITUCIONALES | E95: ACCIONES_CONSTITUCIONALES | F95: 1 | G95: ACCIONES_CONSTITUCIONALES1 | H95: ACCIONES DE GRUPO | I95: ACCIONES_CONSTITUCIONALES1 | J95: 1.2
D96: ACCIONES CONSTITUCIONALES | E96: ACCIONES_CONSTITUCIONALES | F96: 1 | G96: ACCIONES_CONSTITUCIONALES1 | H96: ACCIONES DE INCONSTITUCIONALIDAD | I96: ACCIONES_CONSTITUCIONALES1 | J96: 1.3
D97: ACCIONES CONSTITUCIONALES | E97: =SUBSTITUTE(D97," ","_") -> ACCIONES_CONSTITUCIONALES | F97: 1 | G97: =_xlfn.CONCAT(E97,F97) -> ACCIONES_CONSTITUCIONALES1 | H97: ACCIONES DE TUTELA | I97: ACCIONES_CONSTITUCIONALES1 | J97: 1.4
D98: ACCIONES CONSTITUCIONALES | E98: ACCIONES_CONSTITUCIONALES | F98: 1 | G98: ACCIONES_CONSTITUCIONALES1 | H98: ACCIONES POPULARES | I98: ACCIONES_CONSTITUCIONALES1 | J98: 1.5
D99: CONCILIACIONES | E99: CONCILIACIONES | F99: 20 | G99: =_xlfn.CONCAT(E99,F99) -> CONCILIACIONES20 | H99: N/A | I99: CONCILIACIONES20 | J99: N/A
D100: INFORMES | E100: INFORMES | F100: 419 | G100: INFORMES419 | H100: INFORMES A ORGANISMOS DE CONTROL | I100: INFORMES419 | J100: 41.1
D101: INFORMES | E101: INFORMES | F101: 41 | G101: INFORMES41 | H101: INFORMES DE GESTIÓN | I101: INFORMES41 | J101: N/A
D102: PROCESOS | E102: PROCESOS | F102: 626 | G102: PROCESOS626 | H102: PROCESOS JUDICIALES DE AMPARO POLICIVO | I102: PROCESOS626 | J102: N/A
D103: PROCESOS | E103: PROCESOS | F103: 62 | G103: PROCESOS62 | H103: PROCESOS JUDICIALES DE CONFLICTOS DE COMPETENCIAS | I103: PROCESOS62 | J103: N/A
D104: PROCESOS | E104: PROCESOS | F104: 62 | G104: PROCESOS62 | H104: PROCESOS JUDICIALES DE CONTROVERSIAS CONTRACTUAL | I104: PROCESOS62 | J104: N/A
D105: PROCESOS | E105: PROCESOS | F105: 62 | G105: PROCESOS62 | H105: PROCESOS ARBITRALES | I105: PROCESOS62 | J105: 62.15
D106: PROCESOS | E106: PROCESOS | F106: 62 | G106: PROCESOS62 | H106: PROCESOS JUDICIALES DE LIQUIDACIÓN VOLUNTARIA | I106: PROCESOS62 | J106: 62.16
D107: PROCESOS | E107: PROCESOS | F107: 62 | G107: PROCESOS62 | H107: PROCESOS JUDICIALES DE NULIDAD | I107: PROCESOS62 | J107: 62.17
D108: PROCESOS | E108: PROCESOS | F108: 62 | G108: PROCESOS62 | H108: PROCESOS JUDICIALES DE NULIDAD POR INSCONSTITUCIONALIDAD | I108: PROCESOS62 | J108: 62.18
D109: PROCESOS | E109: PROCESOS | F109: 62 | G109: PROCESOS62 | H109: PROCESOS JUDICIALES DE NULIDAD Y RESTABLECIMIENTO DEL DERECHO | I109: PROCESOS62 | J109: 62.19
D110: PROCESOS | E110: PROCESOS | F110: 62 | G110: PROCESOS62 | H110: PROCESOS JUDICIALES DE REPARACIÓN DIRECTA | I110: PROCESOS62 | J110: 62.20
D111: PROCESOS | E111: PROCESOS | F111: 62 | G111: PROCESOS62 | H111: PROCESOS JUDICIALES DE RESTITUCIÓN DE TIERRAS | I111: PROCESOS62 | J111: 62.21
D112: PROCESOS | E112: PROCESOS | F112: 62 | G112: PROCESOS62 | H112: PROCESOS JUDICIALES EJECUTIVOS | I112: PROCESOS62 | J112: 62.22
D113: PROCESOS | E113: =SUBSTITUTE(D113," ","_") -> PROCESOS | F113: 62 | G113: =_xlfn.CONCAT(E113,F113) -> PROCESOS62 | H113: PROCESOS JUDICIALES ORDINARIO LABORAL | I113: PROCESOS62 | J113: 62.23
D114: PROCESOS | E114: PROCESOS | F114: 62 | G114: PROCESOS62 | H114: PROCESOS PENALES | I114: PROCESOS62 | J114: 62.25
D115: PROCESOS | E115: PROCESOS | F115: 62 | G115: PROCESOS62 | H115: PROCESOS VERBALES | I115: PROCESOS62 | J115: 62.27
D116: PROCESOS | E116: PROCESOS | F116: 62 | G116: PROCESOS62 | H116: PROCESOS Y ACTUACIONES ADMINISTRATIVAS | I116: PROCESOS62 | J116: 62.28
D117: ACUERDOS | E117: =SUBSTITUTE(D117," ","_") -> ACUERDOS | F117: 43 | G117: =_xlfn.CONCAT(E117,F117) -> ACUERDOS43 | H117: ACUERDOS DE LIQUIDACIÓN OBLIGATORIA O VOLUNTARIA | I117: ACUERDOS43 | J117: 4.1
D118: ACUERDOS | E118: ACUERDOS | F118: 4 | G118: ACUERDOS4 | H118: ACUERDOS DE REESTRUCTURACIÓN | I118: ACUERDOS4 | J118: 4.3
D119: ACUERDOS | E119: ACUERDOS | F119: 4 | G119: ACUERDOS4 | H119: ACUERDOS EXTRAJUDICIALES DE VALIDACIÓN | I119: ACUERDOS4 | J119: 4.6
D120: INFORMES | E120: INFORMES | F120: 41 | G120: INFORMES41 | H120: INFORMES A ORGANISMOS DE CONTROL | I120: INFORMES41 | J120: 41.1
D121: INFORMES | E121: INFORMES | F121: 41 | G121: INFORMES41 | H121: INFORMES DE GESTIÓN | I121: INFORMES41 | J121: 41.4
D122: PROCEDIMIENTOS ABIERTOS DE COBRO COACTIVO | E122: PROCEDIMIENTOS_ABIERTOS_DE_COBRO_COACTIVO | F122: 63 | G122: PROCEDIMIENTOS_ABIERTOS_DE_COBRO_COACTIVO63 | H122: N/A | I122: PROCEDIMIENTOS_ABIERTOS_DE_COBRO_COACTIVO63 | J122: N/A
D123: RESOLUCIONES | E123: RESOLUCIONES | F123: 68 | G123: RESOLUCIONES68 | H123: N/A | I123: RESOLUCIONES68 | J123: N/A
D124: INFORMES | E124: INFORMES | F124: 4102 | G124: INFORMES4102 | H124: INFORMES DE GESTIÓN | I124: INFORMES4102 | J124: 41.4
D125: INFORMES | E125: INFORMES | F125: 41 | G125: INFORMES41 | H125: INSTRUMENTOS DE CONTROL PARA LAS ACTUACIONES ADMINISTRATIVAS | I125: INFORMES41 | J125: 43.3
D126: DERECHOS DE PETICIÓN | E126: DERECHOS_DE_PETICIÓN | F126: 27 | G126: DERECHOS_DE_PETICIÓN27 | H126: N/A | I126: DERECHOS_DE_PETICIÓN27 | J126: N/A
D127: INFORMES | E127: INFORMES | F127: 4103 | G127: INFORMES4103 | H127: INFORMES DE GESTIÓN | I127: INFORMES4103 | J127: 41.4
D128: INSTRUMENTOS DE CONTROL | E128: INSTRUMENTOS_DE_CONTROL | F128: 43 | G128: INSTRUMENTOS_DE_CONTROL43 | H128: INSTRUMENTOS DE CONTROL PARA LAS ACTUACIONES ADMINISTRATIVAS | I128: INSTRUMENTOS_DE_CONTROL43 | J128: 43.3
D129: DERECHOS DE PETICIÓN | E129: DERECHOS_DE_PETICIÓN | F129: 27 | G129: DERECHOS_DE_PETICIÓN27 | H129: N/A | I129: DERECHOS_DE_PETICIÓN27 | J129: N/A
D130: RESOLUCIONES | E130: RESOLUCIONES | F130: 68 | G130: RESOLUCIONES68 | H130: N/A | I130: RESOLUCIONES68 | J130: N/A
D131: INFORMES | E131: INFORMES | F131: 4104 | G131: INFORMES4104 | H131: INFORMES DE GESTIÓN | I131: INFORMES4104 | J131: 41.4
D132: INFORMES | E132: INFORMES | F132: 41 | G132: INFORMES41 | H132: INFORMES DE PARTICIPACIÓN DELEGADA CON CANALES REGIONALES | I132: INFORMES41 | J132: 41.5
D133: DERECHOS DE PETICIÓN | E133: DERECHOS_DE_PETICIÓN | F133: 27 | G133: DERECHOS_DE_PETICIÓN27 | H133: N/A | I133: DERECHOS_DE_PETICIÓN27 | J133: N/A
D134: INSTRUMENTOS DE CONTROL | E134: INSTRUMENTOS_DE_CONTROL | F134: 43 | G134: INSTRUMENTOS_DE_CONTROL43 | H134: INSTRUMENTOS DE CONTROL PARA LAS ACTUACIONES ADMINISTRATIVAS | I134: INSTRUMENTOS_DE_CONTROL43 | J134: N/A
D135: INFORMES | E135: INFORMES | F135: 4105 | G135: INFORMES4105 | H135: INFORMES A ORGANISMOS DE CONTROL | I135: INFORMES4105 | J135: N/A
D136: INFORMES | E136: INFORMES | F136: 41 | G136: INFORMES41 | H136: INFORMES DE GESTIÓN | I136: INFORMES41 | J136: N/A
D137: INFORMES | E137: INFORMES | F137: 41 | G137: INFORMES41 | H137: INFORMES DE GESTIÓN | I137: INFORMES41 | J137: N/A
D138: PLANES | E138: PLANES | F138: 599 | G138: PLANES599 | H138: PLANES DE MEJORAMIENTO | I138: PLANES599 | J138: N/A
D139: ACTAS DE ARTICULACIÓN TERRITORIAL | E139: ACTAS_DE_ARTICULACIÓN_TERRITORIAL | F139: 3 | G139: ACTAS_DE_ARTICULACIÓN_TERRITORIAL3 | H139: N/A | I139: ACTAS_DE_ARTICULACIÓN_TERRITORIAL3 | J139: N/A
D140: INFORMES | E140: INFORMES | F140: 4106 | G140: INFORMES4106 | H140: INFORMES A ORGANISMOS DE CONTROL | I140: INFORMES4106 | J140: N/A
D141: DERECHOS DE PETICIÓN | E141: DERECHOS_DE_PETICIÓN | F141: 27 | G141: DERECHOS_DE_PETICIÓN27 | H141: N/A | I141: DERECHOS_DE_PETICIÓN27 | J141: N/A
D142: CONCEPTOS | E142: CONCEPTOS | F142: 193 | G142: CONCEPTOS193 | H142: CONCEPTOS TÉCNICOS | I142: CONCEPTOS193 | J142: 19.3
D143: PROYECTOS | E143: PROYECTOS | F143: 66 | G143: PROYECTOS66 | H143: PROYESTOS DE FINANCIACIÓN | I143: PROYECTOS66 | J143: 65.2
D144: INFORMES | E144: INFORMES | F144: 4107 | G144: INFORMES4107 | H144: INFORMES DE GESTIÓN | I144: INFORMES4107 | J144: 41.4
D145: OBLIGACIONES DE HACER | E145: OBLIGACIONES_DE_HACER | F145: 55 | G145: OBLIGACIONES_DE_HACER55 | H145: N/A | I145: OBLIGACIONES_DE_HACER55 | J145: N/A
D146: PLANES | E146: PLANES | F146: 593 | G146: PLANES593 | H146: PLANES INSTITUCIONALES | I146: PLANES593 | J146: 59.12
D147: CONCEPTOS | E147: CONCEPTOS | F147: 193 | G147: CONCEPTOS193 | H147: CONCEPTOS TÉCNICOS | I147: CONCEPTOS193 | J147: 19.3
D148: PROYECTOS | E148: PROYECTOS | F148: 653 | G148: PROYECTOS653 | H148: N/A | I148: PROYECTOS653 | J148: N/A
D149: INFORMES | E149: INFORMES | F149: 4107 | G149: INFORMES4107 | H149: INFORMES DE GESTIÓN | I149: INFORMES4107 | J149: 41.4
D150: DERECHOS DE PETICIÓN | E150: DERECHOS_DE_PETICIÓN | F150: 27 | G150: DERECHOS_DE_PETICIÓN27 | H150: N/A | I150: DERECHOS_DE_PETICIÓN27 | J150: N/A
D151: CONCEPTOS | E151: CONCEPTOS | F151: 193 | G151: CONCEPTOS193 | H151: CONCEPTOS TÉCNICOS | I151: CONCEPTOS193 | J151: 19.3
D152: AUTORIZACIONES VENTA DE EQUIPOS TERMINALES MOVILES | E152: AUTORIZACIONES_VENTA_DE_EQUIPOS__TERMINALES_MOVILES | F152: 9 | G152: AUTORIZACIONES_VENTA_DE_EQUIPOS__TERMINALES_MOVILES9 | H152: N/A | I152: AUTORIZACIONES_VENTA_DE_EQUIPOS__TERMINALES_MOVILES9 | J152: N/A
D153: INFORMES | E153: INFORMES | F153: 4107 | G153: INFORMES4107 | H153: INFORMES DE GESTIÓN | I153: INFORMES4107 | J153: 41.4
D154: DERECHOS DE PETICIÓN | E154: DERECHOS_DE_PETICIÓN | F154: 27 | G154: DERECHOS_DE_PETICIÓN27 | H154: N/A | I154: DERECHOS_DE_PETICIÓN27 | J154: N/A
D155: LICENCIAS | E155: LICENCIAS | F155: 49 | G155: LICENCIAS49 | H155: LICENCIA DE SERVICIO DE TELEVISIÓN ABIERTA DE INTERÉS PÚBLICO NACIONAL | I155: LICENCIAS49 | J155: 49.2
D156: LICENCIAS | E156: =SUBSTITUTE(D156," ","_") -> LICENCIAS | F156: 49 | G156: =_xlfn.CONCAT(E156,F156) -> LICENCIAS49 | H156: LICENCIA DE SERVICIO DE TELEVISIÓN COMUNITARIA CERRADA SIN ÁNIMO DE LUCRO | I156: LICENCIAS49 | J156: 49.3
D157: LICENCIAS | E157: LICENCIAS | F157: 49 | G157: LICENCIAS49 | H157: LICENCIA DE SERVICIO DE TELEVISIÓN ABIERTA DE CANALES REGIONALES | I157: LICENCIAS49 | J157: 49.4
D158: LICENCIAS | E158: LICENCIAS | F158: 49 | G158: LICENCIAS49 | H158: LICENCIA DE SERVICIO DE TELEVISIÓN ABIERTA LOCAL SIN ÁNIMO DE LUCRO | I158: LICENCIAS49 | J158: 49.5
D159: LICENCIAS | E159: =SUBSTITUTE(D159," ","_") -> LICENCIAS | F159: 49 | G159: LICENCIAS49 | H159: CONTRATOS DE CONCESIÓN SERVICIO DE TELEVISIÓN | I159: LICENCIAS49 | J159: 49.12
D160: PROCESOS | E160: PROCESOS | F160: 6201 | G160: PROCESOS6201 | H160: PROCESOS DE SELECCIÓN OBJETIVA DEL ESPECTRO | I160: PROCESOS6201 | J160: 62.9
D161: PROYECTOS | E161: PROYECTOS | F161: 6501 | G161: =_xlfn.CONCAT(E161,F161) -> PROYECTOS6501 | H161: PROYECTOS DE INVERSIÓN | I161: PROYECTOS6501 | J161: 65.4
D162: PROYECTOS | E162: PROYECTOS | F162: 65 | G162: PROYECTOS65 | H162: PROYECTOS NORMATIVOS | I162: PROYECTOS65 | J162: 65.8
D163: Obligaciones de Hacer | E163: Obligaciones_de_Hacer | F163: 55 | G163: Obligaciones_de_Hacer55 | H163: N/A | I163: Obligaciones_de_Hacer55 | J163: N/A
D164: REGISTROS | E164: REGISTROS | F164: 66 | G164: REGISTROS66 | H164: REGISTRO UNICO DE TIC | I164: REGISTROS66 | J164: N/A
D165: INFORMES | E165: INFORMES | F165: 4107 | G165: INFORMES4107 | H165: INFORMES DE GESTIÓN | I165: INFORMES4107 | J165: N/A
D166: DERECHOS DE PETICIÓN | E166: DERECHOS_DE_PETICIÓN | F166: 27 | G166: DERECHOS_DE_PETICIÓN27 | H166: N/A | I166: DERECHOS_DE_PETICIÓN27 | J166: N/A
D167: PROYECTOS | E167: PROYECTOS | F167: 6502 | G167: PROYECTOS6502 | H167: PROYECTOS NORMATIVOS | I167: PROYECTOS6502 | J167: N/A
D168: REGISTROS | E168: REGISTROS | F168: 6601 | G168: REGISTROS6601 | H168: REGISTROS DE GESTIÓN DE GARANTÍAS | I168: REGISTROS6601 | J168: N/A
D169: REGISTROS | E169: REGISTROS | F169: 66 | G169: REGISTROS66 | H169: REGISTROS DE APOYO A LA CONFORMACIÓN DE TÍTULOS COMPLEJOS DE COBRO COACTIVO | I169: REGISTROS66 | J169: N/A
D170: DERECHOS DE PETICIÓN | E170: DERECHOS_DE_PETICIÓN | F170: 27 | G170: DERECHOS_DE_PETICIÓN27 | H170: N/A | I170: DERECHOS_DE_PETICIÓN27 | J170: N/A
D171: PROYECTOS | E171: =SUBSTITUTE(D171," ","_") -> PROYECTOS | F171: 6503 | G171: =_xlfn.CONCAT(E171,F171) -> PROYECTOS6503 | H171: PROYECTOS TÉCNICOS Y NORMATIVOS | I171: PROYECTOS6503 | J171: N/A
D172: PLANES | E172: PLANES | F172: 5901 | G172: PLANES5901 | H172: PLANES DE ACCIÓN, SEGUIMIENTO Y MEJORA | I172: PLANES5901 | J172: N/A
D173: PROCESOS | E173: PROCESOS | F173: 6203 | G173: PROCESOS6203 | H173: PROCESO DE TRÁMITE DE REGISTRO DE CAPACIDAD SATELITAL, REGISTROS DE ASOCIACIONES DE BANDA CIUDADANA AUTORIZACIONES, CONCESIONES, LICENCIAS Y PERMISOS | I173: PROCESOS6203 | J173: N/A
D174: PARTICIPACIÓN EN COMISIONES TÉCNICAS O NORMATIVAS | E174: PARTICIPACIÓN_EN_COMISIONES_TÉCNICAS_O_NORMATIVAS | F174: 58 | G174: PARTICIPACIÓN_EN_COMISIONES_TÉCNICAS_O_NORMATIVAS58 | H174: N/A | I174: PARTICIPACIÓN_EN_COMISIONES_TÉCNICAS_O_NORMATIVAS58 | J174: N/A
D175: LICENCIAS | E175: LICENCIAS | F175: 4901 | G175: LICENCIAS4901 | H175: SOLICITUDES DENEGADAS DE REGISTROS, AUTORIZACIONES, LICENCIAS Y PERMISOS DE COMUNICACIONES | I175: LICENCIAS4901 | J175: 49.6
D176: DERECHOS DE PETICIÓN | E176: DERECHOS_DE_PETICIÓN | F176: 27 | G176: DERECHOS_DE_PETICIÓN27 | H176: N/A | I176: DERECHOS_DE_PETICIÓN27 | J176: N/A
D177: PROCESOS | E177: PROCESOS | F177: 6204 | G177: PROCESOS6204 | H177: PROCESOS DE ASIGNACIÓN DIRECTA DEL ESPECTRO RADIOELECTRICO PARA LA ATENCION Y PREVENCION DE SITUACIONES DE EMERGENCIA | I177: PROCESOS6204 | J177: 62.5
D178: PROCESOS | E178: PROCESOS | F178: 62 | G178: PROCESOS62 | H178: PROCESOS DE ASIGNACIÓN DIRECTA DEL ESPECTRO RADIOELECTRICO POR CONTINUIDAD DEL SERVICIO O PARA PRUEBA DE EQUIPOS | I178: PROCESOS62 | J178: 62.6
D179: PROCESOS | E179: PROCESOS | F179: 62 | G179: PROCESOS62 | H179: PROCESOS DE SELECCIÓN OBJETIVA PARA ASIGNACIÓN DEL ESPECTRO RADIOELÉCTRICO | I179: PROCESOS62 | J179: 62.10
D180: REGISTROS | E180: REGISTROS | F180: 6603 | G180: REGISTROS6603 | H180: REGISTROS DE RADIOAFICIONADOS Y RADIOS ITINERANTES | I180: REGISTROS6603 | J180: 66.5
D181: REGISTROS | E181: REGISTROS | F181: 6603 | G181: REGISTROS6603 | H181: REGISTROS DE ASOCIACIONES DE RADIOAFICIONADOS Y DE BANDA CIUDADANA | I181: REGISTROS66 | J181: 66.1
D182: REGISTROS | E182: REGISTROS | F182: 6603 | G182: REGISTROS6603 | H182: REGISTROS DE PROVEEDOR DE CAPACIDAD SATELITAL | I182: REGISTROS66 | J182: 66.4
D183: ACTAS | E183: ACTAS | F183: 201 | G183: ACTAS201 | H183: ACTAS DE COMITÉ | I183: ACTAS201 | J183: 2.1
D184: ESTUDIOS | E184: ESTUDIOS | F184: 3301 | G184: ESTUDIOS3301 | H184: N/A | I184: ESTUDIOS3301 | J184: N/A
D185: LICENCIAS DE CONCESIÓN DE SERVICIOS DE RADIODIFUSIÓN SONORA | E185: LICENCIAS_DE_CONCESIÓN_DE_SERVICIOS_DE_RADIODIFUSIÓN_SONORA | F185: 4902 | G185: LICENCIAS_DE_CONCESIÓN_DE_SERVICIOS_DE_RADIODIFUSIÓN_SONORA4902 | H185: LICENCIAS DE CONCESIÓN DE SERVICIOS DE RADIODIFUSIÓN SONORA | I185: LICENCIAS_DE_CONCESIÓN_DE_SERVICIOS_DE_RADIODIFUSIÓN_SONORA4902 | J185: 49.1
D186: LICENCIAS DE CONCESIÓN DE SERVICIOS DE RADIODIFUSIÓN SONORA | E186: LICENCIAS_DE_CONCESIÓN_DE_SERVICIOS_DE_RADIODIFUSIÓN_ SONORA | F186: 49 | G186: LICENCIAS_DE_CONCESIÓN_DE_SERVICIOS_DE_RADIODIFUSIÓN_ SONORA49 | H186: SOLICITUDES LICENCIAS DE CADENAS RADIALES | I186: LICENCIAS49 | J186: 49.8
D187: LICENCIAS DE CONCESIÓN DE SERVICIOS DE RADIODIFUSIÓN SONORA | E187: LICENCIAS_DE_CONCESIÓN_DE_SERVICIOS_DE_RADIODIFUSIÓN_ SONORA | F187: 49 | G187: LICENCIAS_DE_CONCESIÓN_DE_SERVICIOS_DE_RADIODIFUSIÓN_ SONORA49 | H187: SOLICITUDES LICENCIAS DE EMISORAS COMERCIALES | I187: LICENCIAS49 | J187: 49.9
D188: LICENCIAS DE CONCESIÓN DE SERVICIOS DE RADIODIFUSIÓN SONORA | E188: LICENCIAS_DE_CONCESIÓN_DE_SERVICIOS_DE_RADIODIFUSIÓN_ SONORA | F188: 49 | G188: LICENCIAS_DE_CONCESIÓN_DE_SERVICIOS_DE_RADIODIFUSIÓN_ SONORA49 | H188: SOLICITUDES LICENCIAS DE EMISORAS COMUNITARIAS | I188: LICENCIAS49 | J188: 49.10
D189: LICENCIAS DE CONCESIÓN DE SERVICIOS DE RADIODIFUSIÓN SONORA | E189: LICENCIAS_DE_CONCESIÓN_DE_SERVICIOS_DE_RADIODIFUSIÓN_ SONORA | F189: 49 | G189: LICENCIAS_DE_CONCESIÓN_DE_SERVICIOS_DE_RADIODIFUSIÓN_ SONORA49 | H189: SOLICITUDES LICENCIAS DE EMISORAS DE INTERÉS PÚBLICO | I189: LICENCIAS49 | J189: 49.11
D190: LICENCIAS DE CONCESIÓN DE SERVICIOS DE RADIODIFUSIÓN SONORA | E190: LICENCIAS_DE_CONCESIÓN_DE_SERVICIOS_DE_RADIODIFUSIÓN_ SONORA | F190: 49 | G190: LICENCIAS_DE_CONCESIÓN_DE_SERVICIOS_DE_RADIODIFUSIÓN_ SONORA49 | H190: SOLICITUDES DE LICENCIAS DE TRANSMOVILES | I190: LICENCIAS49 | J190: 49.7
D191: DERECHOS DE PETICIÓN | E191: DERECHOS_DE_PETICIÓN | F191: 27 | G191: DERECHOS_DE_PETICIÓN27 | H191: N/A | I191: DERECHOS_DE_PETICIÓN27 | J191: N/A
D192: POLITICAS Y PLANES DE RADIODIFUSION SONORA | E192: POLITICAS_Y_PLANES_DE_RADIODIFUSION_SONORA | F192: 6103 | G192: POLITICAS_Y_PLANES_DE_RADIODIFUSION_SONORA6103 | H192: N/A | I192: POLITICAS_Y_PLANES_DE_RADIODIFUSION_SONORA6103 | J192: 61.3
D193: PROCESOS DE SELECCIÓN OBJETIVA ASIGNACIÓN DE LICENCIAS DE RADIODIFUSIÓN SONORA | E193: PROCESOS_DE_SELECCIÓN_OBJETIVA_ASIGNACIÓN_DE_LICENCIAS_DE_RADIODIFUSIÓN_SONORA | F193: 6205 | G193: PROCESOS_DE_SELECCIÓN_OBJETIVA_ASIGNACIÓN_DE_LICENCIAS_DE_RADIODIFUSIÓN_SONORA6205 | H193: N/A | I193: PROCESOS_DE_SELECCIÓN_OBJETIVA_ASIGNACIÓN_DE_LICENCIAS_DE_RADIODIFUSIÓN_SONORA6205 | J193: 62.8
D194: PROYECTOS | E194: PROYECTOS | F194: 6505 | G194: PROYECTOS6505 | H194: PROYECTOS DE INVERSIÓN | I194: PROYECTOS6505 | J194: 65.4
D195: CONCEPTOS | E195: CONCEPTOS | F195: 193 | G195: CONCEPTOS193 | H195: CONCEPTOS TÉCNICOS | I195: CONCEPTOS193 | J195: 19.3
D196: CONVENIOS | E196: CONVENIOS | F196: 23 | G196: CONVENIOS23 | H196: CONVENIOS DEL CODIGO POSTAL DE LA REPÚBLICA DE COLOMBIA | I196: CONVENIOS23 | J196: 23.3
D197: INFORMES | E197: INFORMES | F197: 4107 | G197: INFORMES4107 | H197: INFORMES DE GESTIÓN | I197: INFORMES4107 | J197: 41.4
D198: PROCESOS | E198: PROCESOS | F198: 6207 | G198: PROCESOS6207 | H198: PROCESO DE INSCRIPCIÓN DE OPERADORES EN EL REGISTRO POSTAL | I198: PROCESOS6207 | J198: 62.2
D199: INVENTARIOS DEL MUSEO DE TECNOLOGIAS DE LA INFORMACIÓN Y LAS COMUNICACIONES | E199: INVENTARIOS_DEL_MUSEO_DE_TECNOLOGIAS_DE_LA_INFORMACIÓN_Y_LAS_COMUNICACIONES | F199: 45 | G199: INVENTARIOS_DEL_MUSEO_DE_TECNOLOGIAS_DE_LA_INFORMACIÓN_Y_LAS_COMUNICACIONES45 | H199: N/A | I199: INVENTARIOS_DEL_MUSEO_DE_TECNOLOGIAS_DE_LA_INFORMACIÓN_Y_LAS_COMUNICACIONES45 | J199: N/A
D200: POLITICAS | E200: POLITICAS | F200: 614 | G200: POLITICAS614 | H200: POLITICA DE SERVICIOS POSTALES | I200: POLITICAS614 | J200: 61.1
... 278 more rows

Sheet Lista_Datos (hidden)
A1: Identificador | B1: Oficina | C1: Código del área | D1: Unidades / Grupos de Trabajo | E1: Código de la Serie | F1: Series | G1: Código de la Subserie | H1: Subseries | I1: Nombre | J1: Descripción | K1: Tipo | L1: Nombre del Responsable de la Producción de la Información (Propietario del Activo) | M1: Nombre del Responsable de la Información (Custodio del Activo) | N1: Fecha de Generación de la Información o Ingreso del Activo | O1: Tipo | P1: Macroproceso | T1: Proceso | AF1: Documento_MIG | AG1: Código Documento MIG | AH1: Norma, Ley o Función que lo Justifica | AI1: Origen | AJ1: Soporte_del_Registro | AK1: Medio_de_Conservación | AL1: Formato | AM1: Idioma | AN1: Confidencialidad | AO1: Valor | AP1: Integridad | AQ1: Valor | AR1: Disponibilidad | AS1: Valor | AT1: Criticidad del Activo | AU1: Información_Publicada | AV1: Lugar de Consulta o Ubicación | AW1: Objetivo legítimo de la Excepción | AX1: Fundamento Constitucional o Legal | AY1: Fundamento Jurídico de la Excepción | AZ1: Excepción_Tota_o_Parcial | BA1: Fecha de Calificación DD/MM/AAAA | BB1: Tiempo que Cobija la Clasificación | BC1: ¿Contiene Datos Personales? | BD1: Tipo de Datos Personales | BE1: Finalidad de la Recoleccion de los Datos Personales | BF1: Cuenta con las Autorizaciones para el Tratamiento de los Datos Personales | BG1: ¿Existe Transferencia Internacional de Datos Personales? | BH1: ¿Es un Conjunto de Datos Estratégico? | BI1: ¿Es un Dato Abierto? | BJ1: Tipo Clasificación de Dato Publicado | BK1: URL de Publicación en Datos.gov.co | BL1: Cobertura Geográfica | BM1: Tipo de Información | BN1: Servicio Tecnológico | BO1: Clasificación de la Información | BP1: Nivel de Seguridad
P2: EVALUACION | Q2: APOYO | R2: ESTRATEGICO | S2: MISIONAL | T2: ANALISIS_MEJORA_GESTION | U2: GESTION_RECURSOS | V2: GESTION_JURIDICA | W2: ARQUITECTURA_INSTITUCIONAL | X2: COMUNICACION_ESTRATEGICA | Y2: COOPERACION_INTERNACIONAL | Z2: GESTION_ATENCION_GRUPOS_INTERES | AA2: MARCO_ESTRATEGICO | AB2: ACCESO_USO_APROPIACION_TIC | AC2: GESTION_CONOCIMIENTO_SECTOR_TIC | AD2: PLANEACION_FORMULACION_POLITICAS_TIC | AE2: SEGUIMIENTO_CONTROL_POLITICAS_TIC | BE2: FRDP
A3: Se Genera Automaticamente | B3: Desp. Vice-Min de Conectividad y Digitalización | C3: 100 | D3: DESPACHO DEL MINISTRO | E3: 100.37 | F3: ESTATUTOS INTERNOS DEL FONDO DE TECNOLOGIAS DE LA INFORMACIÓN Y LAS COMUNICACIONES | I3: Campo de texto | J3: Campo de texto | K3: INFORMACIÓN | L3: Desp. Vice-Min de Conectividad y Digitalización | M3: Desp. Vice-Min de Conectividad y Digitalización | N3: Campo de Fecha | O3: ESTRATEGICO | P3: ANALISIS_MEJORA_GESTION | Q3: GESTION_RECURSOS | R3: ARQUITECTURA_INSTITUCIONAL | S3: ACCESO_USO_APROPIACION_TIC | T3: EVALUACION Y APOYO AL CONTROL DE LA GESTION | U3: GESTION DE COMPRAS Y CONTRATACION | V3: GESTION JURIDICA | W3: FORTALECIMIENTO ORGANIZACIONAL | X3: COMUNICACION ESTRATEGICA | Y3: GESTION INTERNACIONAL | Z3: GESTION DE ATENCION A GRUPOS DE INTERES | AA3: DIRECCIONAMIENTO ESTRATEGICO | AB3: ACCESO A LAS TIC | AC3: GESTION DE LA INFORMACION SECTORIAL | AD3: PLANEACION Y FORMULACION DE POLITICAS TIC | AE3: SEGUIMIENTO Y EVALUACION DE POLITICAS TIC | AF3: SI | AG3: Campo de texto | AH3: Campo de texto | AI3: Externo | AJ3: Digital | AK3: Documentos de Archivo - físicos | AL3: API | AM3: Español | AN3: Alta | AO3: =IF(AP3="ALTA",3,IF(AP3="MEDIA",2,IF(AP3="BAJA",1,IF(AP3="","ESCOJA OPCION!",3)))) -> 3 | AP3: Grave | AQ3: 3 | AR3: Sí | AS3: 3 | AT3: ALTA | AU3: Publicada (Interno - Intranet) | AV3: Campo de texto | AW3: SI | AX3: Campo de texto | AY3: Campo de texto | AZ3: Reserva parcial | BA3: Campo de Fecha | BB3: Campo de texto | BC3: SI | BD3: Dato personal privado | BE3: a) Permitir el desarrollo del objeto del Ministerio/Fondo TIC, en los términos del Decreto 1064 2020. | BF3: SI | BG3: SI | BH3: SI | BI3: SI | BJ3: Agricultura y Desarrollo Rural | BK3: Campo de texto | BL3: INTERNACIONAL | BM3: Estructurado | BN3: Almacenamiento | BO3: Pública | BP3: Protegido
B4: Desp. Vice-Min de Economía Digital | C4: 100 | D4: DESPACHO DEL MINISTRO | E4: 100.47 | F4: INFORMES | G4: 100.47.01 | H4: Informes a Entes de Control y Vigilancia | K4: HARDWARE | L4: Desp. Vice-Min de Economía Digital | M4: Desp. Vice-Min de Economía Digital | O4: MISIONAL | Q4: GESTION_JURIDICA | R4: COMUNICACION_ESTRATEGICA | S4: GESTION_CONOCIMIENTO_SECTOR_TIC | U4: GESTION DE RECURSOS ADMINISTRATIVOS | W4: SEGURIDAD Y PRIVACIDAD DE LA INFORMACIÓN | AB4: FORTALECIMIENTO DE LA INDUSTRIA TIC | AC4: I+D+I | AE4: VIGILANCIA, INSPECCION Y CONTROL | AF4: NO | AI4: Interno | AJ4: Físico | AK4: Documentos de Archivo - electrónicos | AL4: Base de datos | AM4: Francés | AN4: Media | AO4: 2 | AP4: Importante | AQ4: 2 | AR4: No | AS4: 2 | AT4: MEDIA | AU4: No publicada | AW4: NO | AZ4: Reserva total | BC4: NO | BD4: Dato personal público | BE4: b) Desarrollar los estudios previos y procesos de selección para la contratación oficial del Ministerio/Fondo TIC destinada a garantizar el funcionamiento de la entidad y la ejecución de proyectos y el desarrollo de esquemas de gerencia de proyectos. | BF4: NO | BG4: NO | BH4: NO | BI4: NO | BJ4: Ambiente y Desarrollo Sostenible | BL4: NACIONAL | BM4: Semiestructurado | BN4: Comunicaciones Unificadas | BO4: Pública Clasificada | BP4: Desprotegido
B5: Despacho del Ministro | C5: 100 | D5: DESPACHO DEL MINISTRO | E5: 100.69 | F5: POLITICAS | G5: 100.47.02 | H5: Informes a Otros Organismos | K5: SOFTWARE | L5: Despacho del Ministro | M5: Despacho del Ministro | O5: APOYO | R5: COOPERACION_INTERNACIONAL | S5: PLANEACION_FORMULACION_POLITICAS_TIC | U5: GESTION DEL TALENTO HUMANO | W5: GESTION DE TECNOLOGIAS DE LA INFORMACION | AB5: GESTION DE LA INDUSTRIA DE LAS COMUNICACIONES | AF5: N/A | AI5: N/A | AJ5: N/A | AK5: Documentos de Archivo - físicos/electrónico | AL5: Hoja de cálculo | AM5: Ingles | AN5: Baja | AO5: 1 | AP5: Leve | AQ5: 1 | AR5: No Aplica | AS5: 1 | AT5: BAJA | AU5: Publicada (Externo - Internet) | AW5: N/A | AZ5: Sin reserva | BD5: Dato semiprivado | BE5: c) Realizar la selección, contratación y/o vinculación de servidores públicos y contratistas de prestación de servicios de la entidad. | BF5: N/A | BG5: N/A | BH5: N/A | BI5: N/A | BJ5: Ciencia, Tecnología e Innovación | BL5: DEPARTAMENTAL | BM5: No estructurado | BN5: Gestión de Aplicaciones | BO5: Pública Reservada | BP5: No Aplica
B6: Dir. Apropiación de TIC | C6: 100 | D6: DESPACHO DEL MINISTRO | E6: 100.79 | F6: PROYECTOS | G6: 100.47.16 | H6: Informes de Gestión | K6: SERVICIOS | L6: Dir. Apropiación de TIC | M6: Dir. Apropiación de TIC | O6: EVALUACION | R6: GESTION_ATENCION_GRUPOS_INTERES | S6: SEGUIMIENTO_CONTROL_POLITICAS_TIC | U6: GESTION DOCUMENTAL | W6: GESTION DELCONOCIMIENTO | AB6: USO Y APROPIACION DE LAS TIC | AK6: Archivos Institucionales - físicos | AL6: Imagen | AM6: Inglés y Español | AO6: 3 | AQ6: 3 | AS6: 3 | AT6: ALTA | AU6: No Aplica | AZ6: N/A | BD6: Datos sensibles | BE6: d) Formular, ejecutar y evaluar los programas de salud ocupacional y planes de atención a emergencias. | BJ6: Comercio, Industria y Turismo | BL6: MUNICIPAL | BM6: N/A | BN6: Gestión de Bases de Datos | BO6: No Clasificada
B7: Dir. de Desarrollo de la Industria TIC | C7: 100 | D7: DESPACHO DEL MINISTRO | E7: 101.21 | F7: CONCEPTOS | G7: 100.69.02 | H7: Politicas de Divulgación y Promoción de Tecnologia de la Información y las Comunciaciones | K7: RECURSO HUMANO | L7: Dir. de Desarrollo de la Industria TIC | M7: Dir. de Desarrollo de la Industria TIC | R7: MARCO_ESTRATEGICO | U7: GESTION FINANCIERA | AK7: Archivos Institucionales - electrónico | AL7: Audio | AM7: N/A | BD7: Datos de NNA | BE7: e) Mantener actualizada la historia laboral y registros de nómina de funcionarios del Ministerio/Fondo TIC. | BJ7: Cultura | BL7: N/A | BN7: Seguridad Informática
B8: Dir. de Industria de Comunicaciones | C8: 100 | D8: DESPACHO DEL MINISTRO | E8: 101.41 | F8: EVIDENCIAS DE LA REUNIÓN DE LAS ACCIONES INSTITUCIONALES EN EL MARCO DEL CONSENSO SOCIAL | G8: 100.79.01 | H8: Proyectos de Canales de Televisión | K8: INSTALACIONES | L8: Dir. de Industria de Comunicaciones | M8: Dir. de Industria de Comunicaciones | AK8: Sistemas de Información corporativos | AL8: Video | BD8: N/A | BE8: f) Atender y resolver peticiones, quejas, reclamos y sugerencias. | BJ8: DataJam - Desarrollo Rural | BN8: Servicios de Portales Web
B9: Dir. de Transformación Digital | C9: 100 | D9: DESPACHO DEL MINISTRO | E9: 101.47 | F9: INFORMES | G9: 100.79.06 | H9: Proyectos de Ley | K9: EQUIPAMIENTO AUXILIA | L9: Dir. de Transformación Digital | M9: Dir. de Transformación Digital | AK9: Sistemas de Trabajo colaborativo | AL9: Software | BE9: g) Conservar evidencia de los eventos de entrenamiento y sensibilización realizados, audiencias de adjudicación de contratos, reuniones internas y externas. | BJ9: Datathon Latam 2017 | BN9: Respaldos
B10: Dir. Gobierno Digital | C10: 101 | D10: GRUPO INTERNO DE TRABAJO PARA EL CONSENSO SOCIAL | E10: 101.65 | F10: PETICIONES, QUEJAS, RECLAMOS, SUGERENCIAS Y DENUNCIAS - PQRSD | G10: 101.21.05 | H10: Conceptos Técnicos | L10: Dir. Gobierno Digital | M10: Dir. Gobierno Digital | AK10: Sistema de Administración de Documentos | AL10: Documento de Texto | BE10: h) Atender requerimientos de información de entes de control tanto internos como externos. | BJ10: Deporte y Recreación | BN10: Redes
B11: Dir. Promoción de TIC | C11: 101 | D11: GRUPO INTERNO DE TRABAJO PARA EL CONSENSO SOCIAL | E11: 101.66 | F11: PLANES | L11: Dir. Promoción de TIC | M11: Dir. Promoción de TIC | AK11: Sistemas de Mensajería Electrónica | AL11: BWF | BE11: i) Efectuar la convocatoria y generar evidencia de la realización de sesiones de rendición de cuentas y participación ciudadana. | BJ11: Economía y Finanzas | BN11: Servidores
B12: Dir. Vigilancia y Control | C12: 101 | D12: GRUPO INTERNO DE TRABAJO PARA EL CONSENSO SOCIAL | E12: 101.69 | F12: POLITICAS | G12: 101.47.16 | H12: Informes de Gestión | L12: Dir. Vigilancia y Control | M12: Dir. Vigilancia y Control | AK12: Portales, Intranet y Extranet | AL12: CGM | BE12: j) Medir y realizar seguimiento a los niveles de satisfacción. de los usuarios de los servicios del Ministerio TIC, a través de encuestas. | BJ12: Educación | BN12: Fluido Eléctrico
B13: Dir. de Infraestructura | C13: 101 | D13: GRUPO INTERNO DE TRABAJO PARA EL CONSENSO SOCIAL | E13: 110.01 | F13: ACTAS | L13: Dir. de Infraestructura | M13: Dir. de Infraestructura | AK13: Sistemas de Bases de Datos | AL13: CSV | BE13: k) Registrar y/o autorizar el ingreso a las instalaciones del Edificio Murillo Toro o cualquier edificación que sea utilizada para cumplir la misión del Ministerio/Fondo TIC. | BJ13: Estadísticas Nacionales | BN13: UPS
B14: GIT de Conceptos | C14: 101 | D14: GRUPO INTERNO DE TRABAJO PARA EL CONSENSO SOCIAL | E14: 110.21 | F14: CONCEPTOS | G14: 101.66.15 | H14: Planes de Salvaguarda Etnicos | L14: GIT de Conceptos | M14: GIT de Conceptos | AK14: Disco duros, servidores, discos o medios portables, cintas o medios de video y audio (análogo o digital), etc. | AL14: dBase | BE14: l) Realizar análisis de seguridad para garantizar la protección de las personas y los bienes materiales que se encuentren en las instalaciones referidas en el literal k de este numeral. | BJ14: Función pública | BN14: No Aplica
B15: GIT de Cobro Coactivo | C15: 101 | D15: GRUPO INTERNO DE TRABAJO PARA EL CONSENSO SOCIAL | E15: 110.47 | F15: INFORMES | L15: GIT de Cobro Coactivo | M15: GIT de Cobro Coactivo | AK15: Cintas y medios de soporte (back up o contingencia). | AL15: DXF | BE15: N/A | BJ15: Gastos Gubernamentales
B16: GIT de Procesos Judiciales y Extrajudiciales | C16: 110 | D16: OFICINA ASESORA DE PLANEACIÓN Y ESTUDIOS SECTORIALES | E16: 110.60 | F16: MANUALES | G16: 110.01.17 | H16: Actas del Comité Modelo Integrado de Gestión | L16: GIT de Procesos Judiciales y Extrajudiciales | M16: GIT de Procesos Judiciales y Extrajudiciales | AK16: Uso de tecnologías en la nube | AL16: EML | BJ16: Hacienda y Crédito Público
B17: GIT de Actuaciones Administrativas y Asesoría Contractual | C17: 110 | D17: OFICINA ASESORA DE PLANEACIÓN Y ESTUDIOS SECTORIALES | E17: 110.65 | F17: PETICIONES, QUEJAS, RECLAMOS, SUGERENCIAS Y DENUNCIAS - PQRSD | G17: 110.01.19 | H17: Actas del Comité Sectorial de Desarrollo Administrativo | L17: GIT de Actuaciones Administrativas y Asesoría Contractual | M17: GIT de Actuaciones Administrativas y Asesoría Contractual | AK17: N/A | AL17: GZIP | BJ17: Inclusión Social y Reconciliación
B18: GIT para el Consenso Social | C18: 110 | D18: OFICINA ASESORA DE PLANEACIÓN Y ESTUDIOS SECTORIALES | E18: 110.66 | F18: PLANES | G18: 110.01.26 | H18: Actas Grupos Comités Primarios | L18: GIT para el Consenso Social | M18: GIT para el Consenso Social | AL18: HTML (Página Web) | BJ18: Justicia y Derecho
B19: GIT de Seguimiento a la Ejecución Contractual | C19: 110 | D19: OFICINA ASESORA DE PLANEACIÓN Y ESTUDIOS SECTORIALES | E19: 111.08 | F19: ANTEPROYECTO DEL PRESUPUESTO DE INVERSIÓN | G19: 110.21.02 | H19: Conceptos de Viabilidad a los Proyectos de Inversión | L19: GIT de Seguimiento a la Ejecución Contractual | M19: GIT de Seguimiento a la Ejecución Contractual | AL19: JPEG | BJ19: Mapas Nacionales
B20: GIT de Seguimiento a la Gestión de Ingresos del Fondo TIC | C20: 110 | D20: OFICINA ASESORA DE PLANEACIÓN Y ESTUDIOS SECTORIALES | E20: 111.47 | F20: INFORMES | G20: 110.47.01 | H20: Informes a Entes de Control y Vigilancia | L20: GIT de Seguimiento a la Gestión de Ingresos del Fondo TIC | M20: GIT de Seguimiento a la Gestión de Ingresos del Fondo TIC | AL20: JPG | BJ20: Minas y Energía
B21: GIT de Gestión del Talento Humano | C21: 110 | D21: OFICINA ASESORA DE PLANEACIÓN Y ESTUDIOS SECTORIALES | E21: 111.79 | F21: PROYECTOS | G21: 110.47.02 | H21: Informes a Otros Organismos | L21: GIT de Gestión del Talento Humano | M21: GIT de Gestión del Talento Humano | AL21: JSON | BJ21: Ordenamiento Territorial
B22: GIT de Gestión Pensional | C22: 110 | D22: OFICINA ASESORA DE PLANEACIÓN Y ESTUDIOS SECTORIALES | E22: 112.47 | F22: INFORMES | G22: 110.47.16 | H22: Informes de Gestión | L22: GIT de Gestión Pensional | M22: GIT de Gestión Pensional | AL22: KML | BJ22: Organismos de Control
B23: GIT de Gestión de Servicios Administrativos | C23: 110 | D23: OFICINA ASESORA DE PLANEACIÓN Y ESTUDIOS SECTORIALES | E23: 112.66 | F23: PLANES | G23: 110.60.03 | H23: Manuales de Procesos y Procedimientos | L23: GIT de Gestión de Servicios Administrativos | M23: GIT de Gestión de Servicios Administrativos | AL23: KML-KMZ | BJ23: Participación ciudadana
B24: GIT de Fortalecimiento de las Relaciones con los Grupos de Interés | C24: 110 | D24: OFICINA ASESORA DE PLANEACIÓN Y ESTUDIOS SECTORIALES | E24: 112.79 | F24: PROYECTOS | L24: GIT de Fortalecimiento de las Relaciones con los Grupos de Interés | M24: GIT de Fortalecimiento de las Relaciones con los Grupos de Interés | AL24: Maildir | BJ24: Presupuestos Gubernamentales
B25: GIT de Gestión de la Información | C25: 110 | D25: OFICINA ASESORA DE PLANEACIÓN Y ESTUDIOS SECTORIALES | E25: 113.01 | F25: ACTAS | G25: 110.66.01 | H25: Planes Anticorrupción y de Atención al Ciudadano | L25: GIT de Gestión de la Información | M25: GIT de Gestión de la Información | AL25: MBOX | BJ25: Resultados Electorales
B26: GIT de Administración de Bienes | C26: 110 | D26: OFICINA ASESORA DE PLANEACIÓN Y ESTUDIOS SECTORIALES | E26: 113.14 | F26: CERTIFICACIONES | G26: 110.66.06 | H26: Planes de Atención a Victimas y Poblaciones Vulnerables | L26: GIT de Administración de Bienes | M26: GIT de Administración de Bienes | AL26: MNG | BJ26: Salud y Protección Social
B27: GIT de Notificaciones | C27: 110 | D27: OFICINA ASESORA DE PLANEACIÓN Y ESTUDIOS SECTORIALES | E27: 113.39 | F27: ESTUDIOS | G27: 110.66.08 | H27: Planes de Equidad de Genero | L27: GIT de Notificaciones | M27: GIT de Notificaciones | AL27: MP3 | BJ27: Seguridad y Defensa
B28: GIT de Contratación | C28: 111 | D28: GRUPO INTERNO DE TRABAJO DE PLANEACIÓN Y SEGUIMIENTO PRESUPUESTAL | E28: 114.43 | F28: FORMULARIOS UNICOS DE REPORTE DE AVANCES DE LA GESTIÓN - FURAG | L28: GIT de Contratación | M28: GIT de Contratación | AL28: ODF | BJ28: Trabajo
B29: GIT de Control Interno Disciplinario | C29: 111 | D29: GRUPO INTERNO DE TRABAJO DE PLANEACIÓN Y SEGUIMIENTO PRESUPUESTAL | E29: 114.47 | F29: INFORMES | G29: 111.47.25 | H29: Informes de Seguimiento a Ejecución Presupuestal | L29: GIT de Control Interno Disciplinario | M29: GIT de Control Interno Disciplinario | AL29: Office OpenXML | BJ29: Transporte
B30: GIT de Contabilidad | C30: 111 | D30: GRUPO INTERNO DE TRABAJO DE PLANEACIÓN Y SEGUIMIENTO PRESUPUESTAL | E30: 114.65 | F30: PETICIONES, QUEJAS, RECLAMOS, SUGERENCIAS Y DENUNCIAS - PQRSD | G30: 111.79.04 | H30: Proyectos de Inversión Presupuestal | L30: GIT de Contabilidad | M30: GIT de Contabilidad | AL30: OOXML | BJ30: Vivienda, Ciudad y Territorio
B31: GIT de Cartera | C31: 112 | D31: GRUPO INTERNO DE TRABAJO DE SEGUIMIENTO A LA ESTRATEGIA | E31: 114.78 | F31: PROGRAMAS | G31: 112.47 | H31: Informes de Gestión | L31: GIT de Cartera | M31: GIT de Cartera | AL31: OpenDocument | BJ31: N/A
B32: GIT de Presupuesto | C32: 112 | D32: GRUPO INTERNO DE TRABAJO DE SEGUIMIENTO A LA ESTRATEGIA | E32: 120.01 | F32: ACTAS | G32: 112.66.04 | H32: Planes de Acción | L32: GIT de Presupuesto | M32: GIT de Presupuesto | AL32: Papel
B33: GIT de Tesorería | C33: 112 | D33: GRUPO INTERNO DE TRABAJO DE SEGUIMIENTO A LA ESTRATEGIA | E33: 120.04 | F33: ACUERDOS | G33: 112.66.05 | H33: Planes de Acción Institucionales | L33: GIT de Tesorería | M33: GIT de Tesorería | AL33: Papel/Otro
B34: GIT de Gestión de Espectro Radioeléctrico | C34: 112 | D34: GRUPO INTERNO DE TRABAJO DE SEGUIMIENTO A LA ESTRATEGIA | E34: 120.47 | F34: INFORMES | G34: 112.66.19 | H34: Planes Estratégicos Sectoriales | L34: GIT de Gestión de Espectro Radioeléctrico | M34: GIT de Gestión de Espectro Radioeléctrico | AL34: PDF
B35: GIT de Apoyo a la Gestión de Cobro Coactivo y Garantías | C35: 112 | D35: GRUPO INTERNO DE TRABAJO DE SEGUIMIENTO A LA ESTRATEGIA | E35: 120.54 | F35: INVENTARIOS | G35: 112.79.02 | H35: Proyectos de Gestión Internos | L35: GIT de Apoyo a la Gestión de Cobro Coactivo y Garantías | M35: GIT de Apoyo a la Gestión de Cobro Coactivo y Garantías | AL35: PNG
B36: GIT de Estructuración e Investigación | C36: 113 | D36: GRUPO INTERNO DE TRABAJO DE ESTADISTICAS Y ESTUDIOS SECTORIALES | E36: 120.66 | F36: PLANES | G36: 113.01.03 | H36: Actas de la Mesa Técnica de Estadisticas TIC | L36: GIT de Estructuración e Investigación | M36: GIT de Estructuración e Investigación | AL36: RDF-XML
B37: GIT de Operaciones | C37: 113 | D37: GRUPO INTERNO DE TRABAJO DE ESTADISTICAS Y ESTUDIOS SECTORIALES | E37: 120.72 | F37: PROCESOS DE INFORMACIÓN SECTORIAL | G37: 113.14.01 | H37: Certificaciones de Calidad Estadistica | L37: GIT de Operaciones | M37: GIT de Operaciones | AL37: SHP
B38: GIT de Relaciones Institucionales | C38: 113 | D38: GRUPO INTERNO DE TRABAJO DE ESTADISTICAS Y ESTUDIOS SECTORIALES | E38: 130.47 | F38: INFORMES | G38: 113.39.05 | H38: Estudios Sectoriales | L38: GIT de Relaciones Institucionales | M38: GIT de Relaciones Institucionales | AL38: SIARD
B39: GIT de Oferta Regional | C39: 114 | D39: GRUPO INTERNO DE TRABAJO DE TRANSFORMACIÓN ORGANIZACIONAL | E39: 130.66 | F39: PETICIONES, QUEJAS, RECLAMOS, SUGERENCIAS Y DENUNCIAS - PQRSD | L39: GIT de Oferta Regional | M39: GIT de Oferta Regional | AL39: SPARQL
B40: GIT de Proyectos Regionales | C40: 114 | D40: GRUPO INTERNO DE TRABAJO DE TRANSFORMACIÓN ORGANIZACIONAL | E40: 130.79 | F40: PROYECTOS | G40: 114.47.03 | H40: Informes de Administración de Riesgos | L40: GIT de Proyectos Regionales | M40: GIT de Proyectos Regionales | AL40: SQL
B41: GIT de Fomento Regional | C41: 114 | D41: GRUPO INTERNO DE TRABAJO DE TRANSFORMACIÓN ORGANIZACIONAL | E41: 131.21 | F41: CONCEPTOS | G41: 114.47.04 | H41: Informes de Arquitectura Institucional - Componente Procesos | L41: GIT de Fomento Regional | M41: GIT de Fomento Regional | AL41: SVG
B42: GIT Especializado de Recursos y Actuaciones Administrativas | C42: 114 | D42: GRUPO INTERNO DE TRABAJO DE TRANSFORMACIÓN ORGANIZACIONAL | E42: 131.47 | F42: INFORMES | G42: 114.47.13 | H42: Informes de Cultura Organizacional y Apropiación del Modelo Integrado de Gestión | L42: GIT Especializado de Recursos y Actuaciones Administrativas | M42: GIT Especializado de Recursos y Actuaciones Administrativas | AL42: Texto Plano
B43: Grupo Técnico de Innovación Social y Comunidades | C43: 114 | D43: GRUPO INTERNO DE TRABAJO DE TRANSFORMACIÓN ORGANIZACIONAL | E43: 132.47 | F43: INFORMES | G43: 114.47.27 | H43: Informes de Seguimiento a las Políticas de Gestión y Desempeño | L43: Grupo Técnico de Innovación Social y Comunidades | M43: Grupo Técnico de Innovación Social y Comunidades | AL43: TIFF
B44: Grupo Interno de Política | C44: 114 | D44: GRUPO INTERNO DE TRABAJO DE TRANSFORMACIÓN ORGANIZACIONAL | E44: 132.66 | F44: PETICIONES, QUEJAS, RECLAMOS, SUGERENCIAS Y DENUNCIAS - PQRSD | G44: 114.47.29 | H44: Informes de Seguimiento, Control y Mejora | L44: Grupo Interno de Política | M44: Grupo Interno de Política | AL44: TMX
B45: Grupo Interno de Ciudades Inteligentes | C45: 114 | D45: GRUPO INTERNO DE TRABAJO DE TRANSFORMACIÓN ORGANIZACIONAL | E45: 132.70 | F45: PROCESOS | G45: 114.47.30 | H45: Informes del Eje Articulador - Liderazgo, Gestión del Conocimiento e Innovación | L45: Grupo Interno de Ciudades Inteligentes | M45: Grupo Interno de Ciudades Inteligentes | AL45: WAVE
B46: GIT de Seguridad y Privacidad de la Información | C46: 114 | D46: GRUPO INTERNO DE TRABAJO DE TRANSFORMACIÓN ORGANIZACIONAL | E46: 133.01 | F46: ACTAS | L46: GIT de Seguridad y Privacidad de la Información | M46: GIT de Seguridad y Privacidad de la Información | AL46: WMS
B47: GIT de Investigación, Desarrollo e Innovación (I+D+i) | C47: 114 | D47: GRUPO INTERNO DE TRABAJO DE TRANSFORMACIÓN ORGANIZACIONAL | E47: 133.02 | F47: ACCIONES CONSTITUCIONALES | G47: 114.78.02 | H47: Programas de Ambiente y Cultura Organizacional | L47: GIT de Investigación, Desarrollo e Innovación (I+D+i) | M47: GIT de Investigación, Desarrollo e Innovación (I+D+i) | AL47: XLS
B48: GIT de Emprendimiento Apps.CO | C48: 120 | D48: OFICINA DE TECNOLOGIAS DE LA INFORMACIÓN | E48: 133.22 | F48: CONCILIACIONES | G48: 120.01.09 | H48: Actas del Comité de Control de Cambios | L48: GIT de Emprendimiento Apps.CO | M48: GIT de Emprendimiento Apps.CO | AL48: XLS -PDF
B49: GIT de Industria de Tecnologías de la Información | C49: 120 | D49: OFICINA DE TECNOLOGIAS DE LA INFORMACIÓN | E49: 133.47 | F49: INFORMES | G49: 120.01.11 | H49: Actas del Comité de Cooperación del Sistema Colombia TIC | L49: GIT de Industria de Tecnologías de la Información | M49: GIT de Industria de Tecnologías de la Información | AL49: XML
B50: GIT de Industria Creativa Digital | C50: 120 | D50: OFICINA DE TECNOLOGIAS DE LA INFORMACIÓN | E50: 133.70 | F50: PROCESOS | G50: 120.04.07 | H50: Acuerdos de Servicios Estratégicos con Entidades del Sector | L50: GIT de Industria Creativa Digital | M50: GIT de Industria Creativa Digital | AL50: XPDL
B51: Grupo Interno de Estrategia Talento de Tecnologías de la Información | C51: 120 | D51: OFICINA DE TECNOLOGIAS DE LA INFORMACIÓN | E51: 134.04 | F51: ACUERDOS | G51: 120.47.15 | H51: Informes de Estadisticas Sectoriales | L51: Grupo Interno de Estrategia Talento de Tecnologías de la Información | M51: Grupo Interno de Estrategia Talento de Tecnologías de la Información | AL51: XPM
B52: GIT de Comunicación Externa | C52: 120 | D52: OFICINA DE TECNOLOGIAS DE LA INFORMACIÓN | E52: 134.30 | F52: CUOTAS PARTES PENSIONALES | G52: 120.47.16 | H52: Informes de Gestión | L52: GIT de Comunicación Externa | M52: GIT de Comunicación Externa | AL52: ZIP
B53: GIT de Planeación y Seguimiento Presupuestal | C53: 120 | D53: OFICINA DE TECNOLOGIAS DE LA INFORMACIÓN | E53: 134.47 | F53: INFORMES | G53: 120.54.01 | H53: Inventarios de Activos de Información | L53: GIT de Planeación y Seguimiento Presupuestal | M53: GIT de Planeación y Seguimiento Presupuestal | AL53: N/A
B54: GIT de Seguimiento a la Estrategia | C54: 120 | D54: OFICINA DE TECNOLOGIAS DE LA INFORMACIÓN | E54: 134.70 | F54: PROCESOS | G54: 120.66.20 | H54: Planes Institucionales | L54: GIT de Seguimiento a la Estrategia | M54: GIT de Seguimiento a la Estrategia
B55: GIT de Estadísticas y Estudios Sectoriales | C55: 120 | D55: OFICINA DE TECNOLOGIAS DE LA INFORMACIÓN | E55: 140.05 | F55: ACUERDOS INTERNACIONALES | L55: GIT de Estadísticas y Estudios Sectoriales | M55: GIT de Estadísticas y Estudios Sectoriales
B56: GIT de Transformación Organizacional | C56: 130 | D56: OFICINA ASESORA JURIDICA | E56: 140.47 | F56: INFORMES | G56: 130.47.16 | H56: Informes de Gestión | L56: GIT de Transformación Organizacional | M56: GIT de Transformación Organizacional
B57: Oficina Asesora de Prensa | C57: 130 | D57: OFICINA ASESORA JURIDICA | E57: 150.12 | F57: BOLETINES INFORMATIVOS | G57: 130.47.19 | H57: Informe de Participación en el Comité de Estabilidad Jurídica | L57: Oficina Asesora de Prensa | M57: Oficina Asesora de Prensa
B58: Oficina Asesora Jurídica | C58: 130 | D58: OFICINA ASESORA JURIDICA | E58: 150.20 | F58: COMUNICADOS DE PRENSA | G58: 130.47.21 | H58: Informes de Patrimonios Autonomos de Remanentes Par Telecom | L58: Oficina Asesora Jurídica | M58: Oficina Asesora Jurídica
B59: Oficina de Control Interno | C59: 130 | D59: OFICINA ASESORA JURIDICA | E59: 150.47 | F59: INFORMES | L59: Oficina de Control Interno | M59: Oficina de Control Interno
B60: Oficina de Tecnologías de la Información | C60: 130 | D60: OFICINA ASESORA JURIDICA | E60: 150.65 | F60: PETICIONES, QUEJAS, RECLAMOS, SUGERENCIAS Y DENUNCIAS - PQRSD | G60: 130.79.10 | H60: Proyectos Normativos | L60: Oficina de Tecnologías de la Información | M60: Oficina de Tecnologías de la Información
B61: Oficina Internacional | C61: 131 | D61: GRUPO INTERNO DE TRABAJO DE CONCEPTOS | E61: 151.47 | F61: INFORMES | G61: 131.21.04 | H61: Conceptos Juirdicos | L61: Oficina Internacional | M61: Oficina Internacional
B62: Oficina para la Gestión de Ingresos del Fondo | C62: 131 | D62: GRUPO INTERNO DE TRABAJO DE CONCEPTOS | E62: 151.65 | F62: PETICIONES, QUEJAS, RECLAMOS, SUGERENCIAS Y DENUNCIAS - PQRSD | G62: 131.47.16 | H62: Informes de Gestión | L62: Oficina para la Gestión de Ingresos del Fondo | M62: Oficina para la Gestión de Ingresos del Fondo
B63: Oficina Asesora de Planeación y Estudios Sectoriales | C63: 132 | D63: GRUPO INTERNO DE TRABAJO ACTUACIONES ADMINISTRATIVAS Y ASESORIA CONTRACTUAL | E63: 151.66 | F63: PLANES | G63: 132.47.16 | H63: Informes de Gestión | L63: Oficina Asesora de Planeación y Estudios Sectoriales | M63: Oficina Asesora de Planeación y Estudios Sectoriales
B64: Secretaria General | C64: 132 | D64: GRUPO INTERNO DE TRABAJO ACTUACIONES ADMINISTRATIVAS Y ASESORIA CONTRACTUAL | E64: 160.01 | F64: ACTAS | L64: Secretaria General | M64: Secretaria General
B65: Sub. de Gobierno en Línea | C65: 132 | D65: GRUPO INTERNO DE TRABAJO ACTUACIONES ADMINISTRATIVAS Y ASESORIA CONTRACTUAL | E65: 160.47 | F65: INFORMES | G65: 132.70.18 | H65: Procesos Sancionatorios en las Actuaciones Administrativas | L65: Sub. de Gobierno en Línea | M65: Sub. de Gobierno en Línea
B66: Sub. Administrativa y de Gestión Humana | C66: 133 | D66: GRUPO INTERNO DE TRABAJO DE PROCESOS JUDICIALES Y EXTRAJUDICIALES | E66: 160.65 | F66: PETICIONES, QUEJAS, RECLAMOS, SUGERENCIAS Y DENUNCIAS - PQRSD | G66: 133.01.07 | H66: Actas del Comité de Conciliación y Defensa Judicial | L66: Sub. Administrativa y de Gestión Humana | M66: Sub. Administrativa y de Gestión Humana
B67: Sub. de Asuntos Postales | C67: 133 | D67: GRUPO INTERNO DE TRABAJO DE PROCESOS JUDICIALES Y EXTRAJUDICIALES | E67: 160.66 | F67: PLANES | G67: 133.01.25 | H67: Actas del Sucomité Sectorial de Defensa Juridica | L67: Sub. de Asuntos Postales | M67: Sub. de Asuntos Postales
B68: Sub. de Comercio Electrónico | C68: 133 | D68: GRUPO INTERNO DE TRABAJO DE PROCESOS JUDICIALES Y EXTRAJUDICIALES | E68: 160.78 | F68: PROGRAMAS | G68: 133.02.01 | H68: Acciones de Cumplimiento | L68: Sub. de Comercio Electrónico | M68: Sub. de Comercio Electrónico
B69: Sub. de Digitalización Sectorial | C69: 133 | D69: GRUPO INTERNO DE TRABAJO DE PROCESOS JUDICIALES Y EXTRAJUDICIALES | E69: 200.47 | F69: INFORMES | G69: 133.02.02 | H69: Acciones de Grupo | L69: Sub. de Digitalización Sectorial | M69: Sub. de Digitalización Sectorial
B70: Sub. de Radiodifusión Sonora | C70: 133 | D70: GRUPO INTERNO DE TRABAJO DE PROCESOS JUDICIALES Y EXTRAJUDICIALES | E70: 200.65 | F70: PETICIONES, QUEJAS, RECLAMOS, SUGERENCIAS Y DENUNCIAS - PQRSD | G70: 133.02.03 | H70: Acciones de Inconstitucionalidad | L70: Sub. de Radiodifusión Sonora | M70: Sub. de Radiodifusión Sonora
B71: Sub. Estándares y Arq de TI | C71: 133 | D71: GRUPO INTERNO DE TRABAJO DE PROCESOS JUDICIALES Y EXTRAJUDICIALES | E71: 201.47 | F71: INFORMES | G71: 133.02.04 | H71: Acciones de Tutela | L71: Sub. Estándares y Arq de TI | M71: Sub. Estándares y Arq de TI
B72: Sub. Financiera | C72: 133 | D72: GRUPO INTERNO DE TRABAJO DE PROCESOS JUDICIALES Y EXTRAJUDICIALES | E72: 201.52 | F72: INSTRUMENTOS DE CONTROL PARA LAS ACTUACIONES ADMINISTRATIVAS | G72: 133.02.05 | H72: Acciones Populares | L72: Sub. Financiera | M72: Sub. Financiera
B73: Sub. para la Industrial de Comunicaciones | C73: 133 | D73: GRUPO INTERNO DE TRABAJO DE PROCESOS JUDICIALES Y EXTRAJUDICIALES | E73: 201.65 | F73: PETICIONES, QUEJAS, RECLAMOS, SUGERENCIAS Y DENUNCIAS - PQRSD | G73: 133.22.06 | H73: Conciliaciones Extrajudiciales | L73: Sub. para la Industrial de Comunicaciones | M73: Sub. para la Industrial de Comunicaciones
B74: Sub. Procesos de Apropiación de TIC | C74: 133 | D74: GRUPO INTERNO DE TRABAJO DE PROCESOS JUDICIALES Y EXTRAJUDICIALES | E74: 210.21 | F74: CONCEPTOS | G74: 133.47.01 | H74: Informes a Entes de Control y Vigilancia | L74: Sub. Procesos de Apropiación de TIC | M74: Sub. Procesos de Apropiación de TIC
B75: Sub. Vigilancia y Control de Comunicaciones | C75: 133 | D75: GRUPO INTERNO DE TRABAJO DE PROCESOS JUDICIALES Y EXTRAJUDICIALES | E75: 210.47 | F75: INFORMES | G75: 133.47.16 | H75: Informes de Gestión | L75: Sub. Vigilancia y Control de Comunicaciones | M75: Sub. Vigilancia y Control de Comunicaciones
B76: Sub. Vigilancia y Control de Radiodifusión Sonora | C76: 133 | D76: GRUPO INTERNO DE TRABAJO DE PROCESOS JUDICIALES Y EXTRAJUDICIALES | E76: 210.65 | F76: PETICIONES, QUEJAS, RECLAMOS, SUGERENCIAS Y DENUNCIAS - PQRSD | G76: 133.70.05 | H76: Procesos Judiciales de Amparo Policivo | L76: Sub. Vigilancia y Control de Radiodifusión Sonora | M76: Sub. Vigilancia y Control de Radiodifusión Sonora
B77: Sub. Vigilancia y Control de Serv. Postales | C77: 133 | D77: GRUPO INTERNO DE TRABAJO DE PROCESOS JUDICIALES Y EXTRAJUDICIALES | E77: 210.74 | F77: PROCESOS DE SELECCIÓN OBJETIVA DEL ESPECTRO | G77: 133.70.06 | H77: Procesos Judiciales de Conflictos de Competencias | L77: Sub. Vigilancia y Control de Serv. Postales | M77: Sub. Vigilancia y Control de Serv. Postales
B78: Sub. Dirección de Cultura Digital | C78: 133 | D78: GRUPO INTERNO DE TRABAJO DE PROCESOS JUDICIALES Y EXTRAJUDICIALES | E78: 210.79 | F78: PROYECTOS | G78: 133.70.07 | H78: Procesos Judiciales de Controversias Contractual | L78: Sub. Dirección de Cultura Digital | M78: Sub. Dirección de Cultura Digital
C79: 133 | D79: GRUPO INTERNO DE TRABAJO DE PROCESOS JUDICIALES Y EXTRAJUDICIALES | E79: 211.01 | F79: ACTAS | G79: 133.70.08 | H79: Procesos Judiciales de Laudo Arbitral
C80: 133 | D80: GRUPO INTERNO DE TRABAJO DE PROCESOS JUDICIALES Y EXTRAJUDICIALES | E80: 211.65 | F80: PETICIONES, QUEJAS, RECLAMOS, SUGERENCIAS Y DENUNCIAS - PQRSD | G80: 133.70.09 | H80: Procesos Judiciales de Liquidación Voluntaria
C81: 133 | D81: GRUPO INTERNO DE TRABAJO DE PROCESOS JUDICIALES Y EXTRAJUDICIALES | E81: 211.79 | F81: PROYECTOS | G81: 133.70.10 | H81: Procesos Judiciales de Nulidad
C82: 133 | D82: GRUPO INTERNO DE TRABAJO DE PROCESOS JUDICIALES Y EXTRAJUDICIALES | E82: 211.84 | F82: REGISTROS DE GESTIÓN DE PLANES DE ACCIÓN, SEGUIMIENTO Y MEJORA | G82: 133.70.11 | H82: Procesos Judiciales de Nulidad por Insconstitucionalidad
C83: 133 | D83: GRUPO INTERNO DE TRABAJO DE PROCESOS JUDICIALES Y EXTRAJUDICIALES | E83: 211.85 | F83: REGISTROS DE LA GESTIÓN DE TRÁMITES, REGISTROS, AUTORIZACIONES, LICENCIAS Y PERMISOS | G83: 133.70.12 | H83: Procesos Judiciales de Nulidad y Restablecimiento del Derecho
C84: 133 | D84: GRUPO INTERNO DE TRABAJO DE PROCESOS JUDICIALES Y EXTRAJUDICIALES | E84: 211.86 | F84: REGISTROS DE PARTICIPACIÓN EN COMISIONES TÉCNICAS O NORMATIVAS | G84: 133.70.13 | H84: Procesos Judiciales de Reparación Directa
C85: 133 | D85: GRUPO INTERNO DE TRABAJO DE PROCESOS JUDICIALES Y EXTRAJUDICIALES | E85: 211.90 | F85: REQUERIMENTOS DE AJUSTES DE BASES DE DATOS | G85: 133.70.14 | H85: Procesos Judiciales de Restitución de Tierras
C86: 133 | D86: GRUPO INTERNO DE TRABAJO DE PROCESOS JUDICIALES Y EXTRAJUDICIALES | E86: 211.95 | F86: SOLICITUDES DENEGADAS, RECHAZADAS O INADMITIDAS SIN EXPEDIENTE EXISTENTE | G86: 133.70.15 | H86: Procesos Judiciales Ejecutivos
C87: 133 | D87: GRUPO INTERNO DE TRABAJO DE PROCESOS JUDICIALES Y EXTRAJUDICIALES | E87: 211.1.47 | F87: INFORMES | G87: 133.70.16 | H87: Procesos Judiciales Ordinario Laboral
C88: 133 | D88: GRUPO INTERNO DE TRABAJO DE PROCESOS JUDICIALES Y EXTRAJUDICIALES | E88: 211.1.65 | F88: PETICIONES, QUEJAS, RECLAMOS, SUGERENCIAS Y DENUNCIAS - PQRSD | G88: 133.70.17 | H88: Procesos Penales
C89: 133 | D89: GRUPO INTERNO DE TRABAJO DE PROCESOS JUDICIALES Y EXTRAJUDICIALES | E89: 211.1.71 | F89: PROCESO DE ASIGNACIÓN DIRECTA DEL ESPECTRO RADIOELECTRICO | G89: 133-70.19 | H89: Procesos Verbales
C90: 133 | D90: GRUPO INTERNO DE TRABAJO DE PROCESOS JUDICIALES Y EXTRAJUDICIALES | E90: 211.1.75 | F90: PROCESOS DE SELECCIÓN OBJETIVA PARA ASIGNACIÓN DEL ESPECTRO RADIOELÉCTRICO | G90: 133.70.20 | H90: Procesos y Actuaciones Administrativas
C91: 134 | D91: GRUPO INTERNO DE TRABAJO DE COBRO COACTIVO | E91: 211.1.81 | F91: REGISTRO DE RADIOAFICIONADOS Y RADIOS ITINERANTES | G91: 134.04.01 | H91: Acuerdos de Liquidación Obligatoria
C92: 134 | D92: GRUPO INTERNO DE TRABAJO DE COBRO COACTIVO | E92: 211.1.82 | F92: REGISTROS DE ASOCIACIONES DE RADIOAFICIONADOS Y DE BANDA CIUDADANA | G92: 134.04.02 | H92: Acuerdos de Liquidación Voluntaria
C93: 134 | D93: GRUPO INTERNO DE TRABAJO DE COBRO COACTIVO | E93: 211.1.87 | F93: REGISTROS DE PROVEEDOR DE CAPACIDAD SATELITAL | G93: 134.04.04 | H93: Acuerdos de Reestructuración de Pasivos
C94: 134 | D94: GRUPO INTERNO DE TRABAJO DE COBRO COACTIVO | E94: 211.2.47 | F94: INFORMES | G94: 134.04.05 | H94: Acuerdos de Reestructuración Empresarial
C95: 134 | D95: GRUPO INTERNO DE TRABAJO DE COBRO COACTIVO | E95: 211.2.65 | F95: PETICIONES, QUEJAS, RECLAMOS, SUGERENCIAS Y DENUNCIAS - PQRSD | G95: 134.04.06 | H95: Acuerdos de Reorganización Empresarial
C96: 134 | D96: GRUPO INTERNO DE TRABAJO DE COBRO COACTIVO | E96: 211.2.79 | F96: PROYECTOS | G96: 134.04.08 | H96: Acuerdo Extrajudicial de Validación
C97: 134 | D97: GRUPO INTERNO DE TRABAJO DE COBRO COACTIVO | E97: 211.2.83 | F97: REGISTROS DE GESTIÓN DE GARANTÍAS Y COBRO COACTIVO | G97: 134.30.01 | H97: Cobro Coactivo
C98: 134 | D98: GRUPO INTERNO DE TRABAJO DE COBRO COACTIVO | E98: 212.01 | F98: ACTAS | G98: 134.47.01 | H98: Informes a Entes de Control y Vigilancia
C99: 134 | D99: GRUPO INTERNO DE TRABAJO DE COBRO COACTIVO | E99: 212.39 | F99: ESTUDIOS | G99: 134.47.02 | H99: Informes a Otros Organismos
C100: 134 | D100: GRUPO INTERNO DE TRABAJO DE COBRO COACTIVO | E100: 212.58 | F100: LICENCIAS DE CONCESIÓN DE SERVICIOS DE RADIODIFUSIÓN SONORA | G100: 134.47.16 | H100: Informes de Gestión
C101: 134 | D101: GRUPO INTERNO DE TRABAJO DE COBRO COACTIVO | E101: 212.65 | F101: PETICIONES, QUEJAS, RECLAMOS, SUGERENCIAS Y DENUNCIAS - PQRSD | G101: 134.70.04 | H101: Procesos Ejecutivos Abiertos de Cobro Coactivo
C102: 140 | D102: OFICINA INTERNACIONAL | E102: 212.66 | F102: PLANES | G102: 140.05.01 | H102: Acuerdos Internacionales de Cooperación
C103: 140 | D103: OFICINA INTERNACIONAL | E103: 212.67 | F103: POLITICA NACIONAL DE RADIODIFUSIÓN SONORA | G103: 140.47.02 | H103: Informes a Otros Organismos
C104: 140 | D104: OFICINA INTERNACIONAL | E104: 212.73 | F104: PROCESOS DE SELECCIÓN OBJETIVA ASIGNACIÓN DE LICENCIAS DE RADIODIFUSIÓN SONORA | G104: 140.47.10 | H104: Informes de Comisiones Internacionales
C105: 140 | D105: OFICINA INTERNACIONAL | E105: 212.79 | F105: PROYECTOS | G105: 140.47.16 | H105: Informes de Gestión
C106: 150 | D106: OFICINA ASESORA DE PRENSA | E106: 213.21 | F106: CONCEPTOS | G106: 150.12.03
C107: 150 | D107: OFICINA ASESORA DE PRENSA | E107: 213.25 | F107: CONVENIOS DEL CODIGO POSTAL DE LA REPÚBLICA DE COLOMBIA
C108: 150 | D108: OFICINA ASESORA DE PRENSA | E108: 213.47 | F108: INFORMES | G108: 150.47.16 | H108: Informes de Gestión
C109: 150 | D109: OFICINA ASESORA DE PRENSA | E109: 213.48 | F109: INSCRIPCIÓN DE OPERADORES EN EL REGISTRO POSTAL | G109: 150.47.17 | H109: Informes de Gestión Audiovisuales
C110: 150 | D110: OFICINA ASESORA DE PRENSA | E110: 213.53 | F110: INVENTARIOS DEL MUSEO DE TECNOLOGIAS DE LA INFORMACIÓN Y LAS COMUNICACIONES
C111: 151 | D111: GRUPO INTERNO DE TRABAJO DE COMUNICACIÓN EXTERNA | E111: 213.67 | F111: POLITICA DE SERVICIOS POSTALES | G111: 151.47.16 | H111: Informes de Gestión
C112: 151 | D112: GRUPO INTERNO DE TRABAJO DE COMUNICACIÓN EXTERNA | E112: 213.93 | F112: RESOLUCIONES DE HABILITACIÓN DE SERVICIOS POSTALES
C113: 151 | D113: GRUPO INTERNO DE TRABAJO DE COMUNICACIÓN EXTERNA | E113: 213.94 | F113: SOLICITUDES DE EMISIONES FILATELICAS | G113: 151.66.07 | H113: Planes de Divulgación
C114: 160 | D114: OFICINA DE CONTROL INTERNO | E114: 220.47 | F114: INFORMES | G114: 160.01.02 | H114: Actas del Comité de Coordinación del Sistema de Control Interno
C115: 160 | D115: OFICINA DE CONTROL INTERNO | E115: 220.65 | F115: PETICIONES, QUEJAS, RECLAMOS, SUGERENCIAS Y DENUNCIAS - PQRSD | G115: 160.47.01 | H115: Informes a Entidades de Control y Vigilancia
C116: 160 | D116: OFICINA DE CONTROL INTERNO | E116: 220.70 | F116: PROCESOS | G116: 160.47.05 | H116: Informes de Auditorias de Calidad
C117: 160 | D117: OFICINA DE CONTROL INTERNO | E117: 220.78 | F117: PROGRAMAS | G117: 160.47.06 | H117: Informes de Auditorias de Gestión
C118: 160 | D118: OFICINA DE CONTROL INTERNO | E118: 221.03 | F118: ACTUACIONES DE VIGILANCIA Y CONTROL | G118: 160.47.16 | H118: Informes de Gestión
C119: 160 | D119: OFICINA DE CONTROL INTERNO | E119: 221.47 | F119: INFORMES
C120: 160 | D120: OFICINA DE CONTROL INTERNO | E120: 221.65 | F120: PETICIONES, QUEJAS, RECLAMOS, SUGERENCIAS Y DENUNCIAS - PQRSD | G120: 160.66.11 | H120: Planes de Mejoramiento de Calidad y Gestión
C121: 160 | D121: OFICINA DE CONTROL INTERNO | E121: 221.70 | F121: PROCESOS | G121: 160.66.13 | H121: Planes de Mejoramiento para Contraloria
C122: 160 | D122: OFICINA DE CONTROL INTERNO | E122: 221.78 | F122: PROGRAMAS | G122: 160.78.01 | H122: Programas Anuales de Auditorias
C123: 200 | D123: DESPACHO DEL VICEMINISTRO DE CONECTIVIDAD Y DIGITALIZACIÓN | E123: 222.21 | F123: CONCEPTOS | G123: 200.47.16 | H123: Informes de Gestión
C124: 200 | D124: DESPACHO DEL VICEMINISTRO DE CONECTIVIDAD Y DIGITALIZACIÓN | E124: 222.47 | F124: INFORMES
C125: 201 | D125: GRUPO INTERNO DE TRABAJO ESPECIALIZADO DE RECURSOS Y ACTUACIONES ADMINISTRATIVAS | E125: 222.65 | F125: PETICIONES, QUEJAS, RECLAMOS, SUGERENCIAS Y DENUNCIAS - PQRSD | G125: 201.47.16 | H125: Informes de Gestión
C126: 201 | D126: GRUPO INTERNO DE TRABAJO ESPECIALIZADO DE RECURSOS Y ACTUACIONES ADMINISTRATIVAS | E126: 222.70 | F126: PROCESOS
C127: 201 | D127: GRUPO INTERNO DE TRABAJO ESPECIALIZADO DE RECURSOS Y ACTUACIONES ADMINISTRATIVAS | E127: 222.78 | F127: PROGRAMAS
C128: 210 | D128: DIRECCIÓN DE INDUSTRIA DE COMUNICACIONES | E128: 223.21 | F128: CONCEPTOS | G128: 210.21.06 | H128: Conceptos Técnicos sobre Servicios de Telecomunicaciones
C129: 210 | D129: DIRECCIÓN DE INDUSTRIA DE COMUNICACIONES | E129: 223.47 | F129: INFORMES | G129: 210.47.16 | H129: Informes de Gestión
C130: 210 | D130: DIRECCIÓN DE INDUSTRIA DE COMUNICACIONES | E130: 223.65 | F130: PETICIONES, QUEJAS, RECLAMOS, SUGERENCIAS Y DENUNCIAS - PQRSD
C131: 210 | D131: DIRECCIÓN DE INDUSTRIA DE COMUNICACIONES | E131: 223.70 | F131: PROCESOS
C132: 210 | D132: DIRECCIÓN DE INDUSTRIA DE COMUNICACIONES | E132: 223.78 | F132: PROGRAMAS | G132: 210.79.03 | H132: Proyectos de Inversión
C133: 210 | D133: DIRECCIÓN DE INDUSTRIA DE COMUNICACIONES | E133: 230.47 | F133: INFORMES | G133: 210.79.12 | H133: Proyectos por Obligaciones de Hacer
C134: 211 | D134: SUBDIRECCIÓN PARA LA INDUSTRIA DE COMUNICACIONES | E134: 230.66 | F134: PLANES | G134: 211.01.13 | H134: Actas del Comité de Obligaciones de Hacer
C135: 211 | D135: SUBDIRECCIÓN PARA LA INDUSTRIA DE COMUNICACIONES | E135: 231.47 | F135: INFORMES
C136: 211 | D136: SUBDIRECCIÓN PARA LA INDUSTRIA DE COMUNICACIONES | E136: 232.47 | F136: INFORMES | G136: 211.79.13 | H136: Proyectos Técnicos y Normativos
C137: 211 | D137: SUBDIRECCIÓN PARA LA INDUSTRIA DE COMUNICACIONES | E137: 233.42 | F137: EVIDENCIAS EN EL MARCO DE LA ARTICULACIÓN TERRITORIAL
C138: 211 | D138: SUBDIRECCIÓN PARA LA INDUSTRIA DE COMUNICACIONES | E138: 233.47 | F138: INFORMES
C139: 211 | D139: SUBDIRECCIÓN PARA LA INDUSTRIA DE COMUNICACIONES | E139: 233.65 | F139: PETICIONES, QUEJAS, RECLAMOS, SUGERENCIAS Y DENUNCIAS - PQRSD
C140: 211 | D140: SUBDIRECCIÓN PARA LA INDUSTRIA DE COMUNICACIONES | E140: 240.47 | F140: INFORMES
C141: 211 | D141: SUBDIRECCIÓN PARA LA INDUSTRIA DE COMUNICACIONES | E141: 241.47 | F141: INFORMES
C142: 211.1 | D142: GRUPO INTERNO DE TRABAJO DE GESTIÓN DE ESPECTRO RADIOÉLECTRICO | E142: 241.61 | F142: MATRICES DE OFERTA INSTITUCIONAL | G142: 211.1.47.18 | H142: Informes de Participación en Comisiones Técnicas o Normativas
C143: 211.1 | D143: GRUPO INTERNO DE TRABAJO DE GESTIÓN DE ESPECTRO RADIOÉLECTRICO | E143: 241.65 | F143: PETICIONES, QUEJAS, RECLAMOS, SUGERENCIAS Y DENUNCIAS - PQRSD
C144: 211.1 | D144: GRUPO INTERNO DE TRABAJO DE GESTIÓN DE ESPECTRO RADIOÉLECTRICO | E144: 242.47 | F144: INFORMES
C145: 211.1 | D145: GRUPO INTERNO DE TRABAJO DE GESTIÓN DE ESPECTRO RADIOÉLECTRICO | E145: 242.65 | F145: PETICIONES, QUEJAS, RECLAMOS, SUGERENCIAS Y DENUNCIAS - PQRSD
C146: 211.1 | D146: GRUPO INTERNO DE TRABAJO DE GESTIÓN DE ESPECTRO RADIOÉLECTRICO | E146: 243.47 | F146: INFORMES
C147: 211.1 | D147: GRUPO INTERNO DE TRABAJO DE GESTIÓN DE ESPECTRO RADIOÉLECTRICO | E147: 243.65 | F147: PETICIONES, QUEJAS, RECLAMOS, SUGERENCIAS Y DENUNCIAS - PQRSD
C148: 211.1 | D148: GRUPO INTERNO DE TRABAJO DE GESTIÓN DE ESPECTRO RADIOÉLECTRICO | E148: 300.47 | F148: INFORMES
C149: 211.2 | D149: GRUPO INTERNO DE TRABAJO DE APOYO A LA GESTIÓN DE COBRO COACTIVO Y GARANTIAS | E149: 300.65 | F149: PETICIONES, QUEJAS, RECLAMOS, SUGERENCIAS Y DENUNCIAS - PQRSD | G149: 211.2.47.16 | H149: Informes de Gestión
C150: 211.2 | D150: GRUPO INTERNO DE TRABAJO DE APOYO A LA GESTIÓN DE COBRO COACTIVO Y GARANTIAS | E150: 300.78 | F150: PROGRAMAS
C151: 211.2 | D151: GRUPO INTERNO DE TRABAJO DE APOYO A LA GESTIÓN DE COBRO COACTIVO Y GARANTIAS | E151: 300.79 | F151: PROYECTOS | G151: 211.2.79.11 | H151: Proyectos Normativos y de Reglamentos en Materia de Garantías
C152: 211.2 | D152: GRUPO INTERNO DE TRABAJO DE APOYO A LA GESTIÓN DE COBRO COACTIVO Y GARANTIAS | E152: 310.47 | F152: INFORMES
C153: 212 | D153: SUBDIRECCIÓN DE RADIO DIFUSIÓN SONORA | E153: 310.65 | F153: PETICIONES, QUEJAS, RECLAMOS, SUGERENCIAS Y DENUNCIAS - PQRSD | G153: 212.01.05 | H153: Actas del Comité Consultivo de Radio Comunitaria
C154: 212 | D154: SUBDIRECCIÓN DE RADIO DIFUSIÓN SONORA | E154: 310.1.33 | F154: DIAGNÓSTICOS DE POLITICA PÚBLICA DE TI EN POBLACIONES VULNERABLES | G154: 212.39.01 | H154: Estudios de Radiodifusión Sonora
C155: 212 | D155: SUBDIRECCIÓN DE RADIO DIFUSIÓN SONORA | E155: 310.1.47 | F155: INFORMES | G155: 212.58.01 | H155: Solicitudes Licencias de Cadenas Radiales
C156: 212 | D156: SUBDIRECCIÓN DE RADIO DIFUSIÓN SONORA | E156: 310.1.65 | F156: PETICIONES, QUEJAS, RECLAMOS, SUGERENCIAS Y DENUNCIAS - PQRSD | G156: 212.58.02 | H156: Solicitudes Licencias de Emisoras Comerciales
C157: 212 | D157: SUBDIRECCIÓN DE RADIO DIFUSIÓN SONORA | E157: 311.47 | F157: INFORMES | G157: 212.58.03 | H157: Solicitudes Licencias de Emisoras Comunitarias
C158: 212 | D158: SUBDIRECCIÓN DE RADIO DIFUSIÓN SONORA | E158: 311.65 | F158: PETICIONES, QUEJAS, RECLAMOS, SUGERENCIAS Y DENUNCIAS - PQRSD | G158: 212.58.04 | H158: Solicitudes Licencias de Emisoras de Interés Público
C159: 212 | D159: SUBDIRECCIÓN DE RADIO DIFUSIÓN SONORA | E159: 311.79 | F159: PROYECTOS | G159: 212.58.05 | H159: Solicitudes de Licencias de Transmoviles
C160: 212 | D160: SUBDIRECCIÓN DE RADIO DIFUSIÓN SONORA | E160: 312.47 | F160: INFORMES
C161: 212 | D161: SUBDIRECCIÓN DE RADIO DIFUSIÓN SONORA | E161: 312.65 | F161: PETICIONES, QUEJAS, RECLAMOS, SUGERENCIAS Y DENUNCIAS - PQRSD | G161: 212.66.22 | H161: Planes Técnicos Nacionales de Radiodifusión Sonora
C162: 212 | D162: SUBDIRECCIÓN DE RADIO DIFUSIÓN SONORA | E162: 320.47 | F162: INFORMES
C163: 212 | D163: SUBDIRECCIÓN DE RADIO DIFUSIÓN SONORA | E163: 320.65 | F163: PETICIONES, QUEJAS, RECLAMOS, SUGERENCIAS Y DENUNCIAS - PQRSD
C164: 212 | D164: SUBDIRECCIÓN DE RADIO DIFUSIÓN SONORA | E164: 320.66 | F164: PLANES | G164: 212.79.05 | H164: Proyectos de Inversión Radio Pública
C165: 213 | D165: SUBDIRECCIÓN DE ASUNTOS POSTALES | E165: 320.78 | F165: PROGRAMAS | G165: 213.21.03 | H165: Conceptos Emitidos
C166: 213 | D166: SUBDIRECCIÓN DE ASUNTOS POSTALES | E166: 320.1.38 | F166: ESTRATEGIAS DE SEGURIDAD Y PRIVACIDAD DE LA INFORMACIÓN
C167: 213 | D167: SUBDIRECCIÓN DE ASUNTOS POSTALES | E167: 320.1.69 | F167: POLITICAS | G167: 213.47.16 | H167: Informes de Gestión
C168: 213 | D168: SUBDIRECCIÓN DE ASUNTOS POSTALES | E168: 320.2.47 | F168: INFORMES
C169: 213 | D169: SUBDIRECCIÓN DE ASUNTOS POSTALES | E169: 320.2.65 | F169: PETICIONES, QUEJAS, RECLAMOS, SUGERENCIAS Y DENUNCIAS - PQRSD
C170: 213 | D170: SUBDIRECCIÓN DE ASUNTOS POSTALES | E170: 320.2.66 | F170: PLANES
C171: 213 | D171: SUBDIRECCIÓN DE ASUNTOS POSTALES | E171: 320.2.78 | F171: PROGRAMAS | G171: 213.93.01 | H171: Incoporación en el Registro Postal
C172: 213 | D172: SUBDIRECCIÓN DE ASUNTOS POSTALES | E172: 320.3.39 | F172: ESTUDIOS | G172: 213.93.02 | H172: Resoluciones de Habilitación de Servicios Postales de Pago
C173: 213 | D173: SUBDIRECCIÓN DE ASUNTOS POSTALES | E173: 320.3.47 | F173: INFORMES | G173: 213.93.03 | H173: Resoluciones de Habilitación de Servicios Postales para Mensajeria Expresa
C174: 213 | D174: SUBDIRECCIÓN DE ASUNTOS POSTALES | E174: 320.3.65 | F174: PETICIONES, QUEJAS, RECLAMOS, SUGERENCIAS Y DENUNCIAS - PQRSD
C175: 220 | D175: DIRECCIÓN DE VIGILANCIA Y CONTROL | E175: 320.3.69 | F175: POLITICAS | G175: 220.47.16 | H175: Informes de Gestión
C176: 220 | D176: DIRECCIÓN DE VIGILANCIA Y CONTROL | E176: 321.47 | F176: INFORMES | G176: 220.47.23 | H176: Informes de Presunto Incumplimiento
C177: 220 | D177: DIRECCIÓN DE VIGILANCIA Y CONTROL | E177: 321.65 | F177: PETICIONES, QUEJAS, RECLAMOS, SUGERENCIAS Y DENUNCIAS - PQRSD
C178: 220 | D178: DIRECCIÓN DE VIGILANCIA Y CONTROL | E178: 321.66 | F178: PLANES | G178: 220.70.01 | H178: Procesos Administrativos contra los Proveedores
C179: 220 | D179: DIRECCIÓN DE VIGILANCIA Y CONTROL | E179: 321.69 | F179: POLITICAS | G179: 220.78.11 | H179: Programas de Vigilancia y Control Preventivos
C180: 221 | D180: SUBDIRECCIÓN DE VIGILANCIA Y CONTROL DE COMUNICACIONES | E180: 321.70 | F180: PROCESOS
C181: 221 | D181: SUBDIRECCIÓN DE VIGILANCIA Y CONTROL DE COMUNICACIONES | E181: 321.79 | F181: PROYECTOS | G181: 221.47.16 | H181: Informes de Gestión
C182: 221 | D182: SUBDIRECCIÓN DE VIGILANCIA Y CONTROL DE COMUNICACIONES | E182: 322.06 | F182: ALIANZAS PUBLICO PRIVADAS NACIONALES E INTERNACIONALES
C183: 221 | D183: SUBDIRECCIÓN DE VIGILANCIA Y CONTROL DE COMUNICACIONES | E183: 322.47 | F183: INFORMES | G183: 221.70.02 | H183: Procesos Administrativos Sancionatorios
C184: 221 | D184: SUBDIRECCIÓN DE VIGILANCIA Y CONTROL DE COMUNICACIONES | E184: 322.55 | F184: INVESTIGACIONES EN MATERIA DE TECNOLÓGIAS DE LA INFORMACIÓN | G184: 221.78.15 | H184: Programas Preventivos de Servicios de Telecomunicaciones
C185: 222 | D185: SUBDIRECCIÓN DE VIGILANCIA Y CONTROL DE RADIODIFUSIÓN SONORA | E185: 322.65 | F185: PETICIONES, QUEJAS, RECLAMOS, SUGERENCIAS Y DENUNCIAS - PQRSD | G185: 222.21.01 | H185: Conceptos de no Procedibilidad
C186: 222 | D186: SUBDIRECCIÓN DE VIGILANCIA Y CONTROL DE RADIODIFUSIÓN SONORA | E186: 322.69 | F186: POLITICAS | G186: 222.47.16 | H186: Informes de Gestión
C187: 222 | D187: SUBDIRECCIÓN DE VIGILANCIA Y CONTROL DE RADIODIFUSIÓN SONORA | E187: 330.01 | F187: ACTAS
C188: 222 | D188: SUBDIRECCIÓN DE VIGILANCIA Y CONTROL DE RADIODIFUSIÓN SONORA | E188: 339.39 | F188: ESTUDIOS | G188: 222.70.02 | H188: Procesos Admnistrativos Sancionatorios
C189: 222 | D189: SUBDIRECCIÓN DE VIGILANCIA Y CONTROL DE RADIODIFUSIÓN SONORA | E189: 330.47 | F189: INFORMES | G189: 222.78.14 | H189: Programas Preventivos de Servicios de Radiodifusión Sonora
C190: 223 | D190: SUBDIRECCIÓN DE VIGILANCIA Y CONTROL DE SERVICIOS POSTALES | E190: 330.65 | F190: PETICIONES, QUEJAS, RECLAMOS, SUGERENCIAS Y DENUNCIAS - PQRSD | G190: 223.21.01 | H190: Conceptos de no Procedibilidad
C191: 223 | D191: SUBDIRECCIÓN DE VIGILANCIA Y CONTROL DE SERVICIOS POSTALES | E191: 330.1.47 | F191: INFORMES | G191: 223.47.16 | H191: Informes de Gestión
C192: 223 | D192: SUBDIRECCIÓN DE VIGILANCIA Y CONTROL DE SERVICIOS POSTALES | E192: 330.1.65 | F192: PETICIONES, QUEJAS, RECLAMOS, SUGERENCIAS Y DENUNCIAS - PQRSD
C193: 223 | D193: SUBDIRECCIÓN DE VIGILANCIA Y CONTROL DE SERVICIOS POSTALES | E193: 331.47 | F193: INFORMES | G193: 223.70.02 | H193: Procesos Administrativos Sancionatorios
C194: 223 | D194: SUBDIRECCIÓN DE VIGILANCIA Y CONTROL DE SERVICIOS POSTALES | E194: 331.65 | F194: PETICIONES, QUEJAS, RECLAMOS, SUGERENCIAS Y DENUNCIAS - PQRSD | G194: 223.78.16 | H194: Programas Preventivos de Servicios Postales
C195: 230 | D195: DIRECCIÓN DE INFRAESTUCTURA | E195: 332.47 | F195: INFORMES | G195: 230.47.01 | H195: Informes a Entes de Control y Vigilancia
C196: 230 | D196: DIRECCIÓN DE INFRAESTUCTURA | E196: 332.65 | F196: PETICIONES, QUEJAS, RECLAMOS, SUGERENCIAS Y DENUNCIAS - PQRSD | G196: 230.47.02 | H196: Informes a Otros Organismos
C197: 230 | D197: DIRECCIÓN DE INFRAESTUCTURA | E197: 340.39 | F197: ESTUDIOS | G197: 230.47.16 | H197: Informes de Gestión
C198: 230 | D198: DIRECCIÓN DE INFRAESTUCTURA | E198: 340.47 | F198: INFORMES | G198: 230.47.28 | H198: Informes de Seguimiento de Calidad
C199: 230 | D199: DIRECCIÓN DE INFRAESTUCTURA | E199: 340.65 | F199: PETICIONES, QUEJAS, RECLAMOS, SUGERENCIAS Y DENUNCIAS - PQRSD | G199: 230.66.10 | H199: Planes de Mejoramiento
C200: 231 | D200: GRUPO INTERNO DE TRABAJO DE ESTRUCTURACIÓN E INVESTIGACIÓN | E200: 341.47 | F200: INFORMES | G200: 231.47.16 | H200: Informes de Gestión
... 280 more rows
